Workbook

Sheet Lotto7_R7525_1
H2: Convenzione Tecnologie Server 4 - Lotto 7 | J2: =IF(T100>1,"ERRORE NELLA CONFIGURAZIONE","") -> 
M3: Quota massima 20 %
J4: Guida alla Convenzione | K4: Totale Singola Configurazione | M4: =Riepilogo_Ordine!G59 -> 0
K5: =K152 -> 0 | M5: Totale Ordine Iva Esclusa
H6: DELL POWEREDGE R7525 GPU Ready | J6: Quantità Server | K6: 0 | M6: =Riepilogo_Ordine!J60 -> 0
H9: N° Ordine Consip | I9: Amministrazione | L9: Data
H12: Nom. Referente Consegna | I12: Email Consegna | L12: Tel.
H15: Nom. Referente Installazione | I15: Email Installazione | J15: Tel. | L15: Tel.
H19: Base | U19: PowerEdge R7525 Server (General Purpose)
H20: PowerEdge R7525 Server (GPU Double-Wide Ready) | J20: =IF($K$6>0,"TS4L7-SRV","") ->  | K20: =IF($K$6>0,1,"") ->  | M20: =Q20 -> 4047.7 | Q20: =IF($U$20="nVME",VLOOKUP($H$20,TS3L4_ALL,10,FALSE)*1.04,VLOOKUP($H$20,TS3L4_ALL,10,FALSE)) -> 4047.7 | S20: =VLOOKUP($H20,TS3L4_ALL,12,FALSE) -> L7N01 | U20: =IF(H20=ConfigurationTS3L4!A4,"GPU","") -> GPU | V20: =IF(H20=ConfigurationTS3L4!A11,"Vsan","") ->  | W20: =IF(J23="TS3L4-GPUSW",1,IF(J23="TS3L4-GPUDW",1,"")) -> 
H22: Chassis Configuration
H23: =IF(K32=1,VLOOKUP($H$20,TS3L4_Chassis,3,FALSE),VLOOKUP($H$20,TS3L4_Chassis,2,FALSE)) -> Chassis with Up to 16 x 2.5 Hard Drives for 2CPU, GPU Double-Wide Configuration | J23: =IF($K$32=1,VLOOKUP($H$20,TS3L4_Chassis,8,FALSE),VLOOKUP($H$20,TS3L4_Chassis,9,FALSE)) -> Kit upgrade chassies for Server GPU Double-Wide Ready | K23: =IF(H20=U19,VLOOKUP($H$20,TS3L4_Chassis,6,FALSE),VLOOKUP($H$20,TS3L4_Chassis,7,FALSE)) -> 1 | M23: =IF(J23="TS3L4-VSAN","ATTENZIONE SELEZIONARE UNA COMPONENTE PER IL BOOT A SCELTA TRA ''ISDM Module'' oppure ''BOSS Controller Card''","") ->  | Q23: =VLOOKUP($H20,TS3L4_Chassis,11,FALSE) -> 0 | S23: =VLOOKUP($H20,TS3L4_Chassis,12,FALSE) -> L7N37 | U23: Chassis with Up to 24 x 2.5'' Hard Drives for 2CPU Configuration | V23: 1
H25: Trusted Platform Module (TPM)
H26: Trusted Platform Module 2.0 V3
H28: Processor
H29: AMD EPYC 7313 3.0GHz, 16C/32T, 128M Cache (155W) DDR4-3200 | J29: =IF(K23=1,VLOOKUP($H$29,TS3L4_CPU8core,13,FALSE),VLOOKUP($H$29,TS3L4_CPU8core,13,FALSE)) ->  | K29: =IF(K23=1,VLOOKUP($H$29,TS3L4_CPU8core,7,FALSE),VLOOKUP($H$29,TS3L4_CPU8core,7,FALSE)) -> 0 | Q29: =IF(K23=1,VLOOKUP($H$29,TS3L4_CPU8core,10,FALSE),VLOOKUP($H$29,TS3L4_CPU8core,10,FALSE)) -> 0 | R29: =IF(K23=1,VLOOKUP($H$29,TS3L4_CPU8core,11,FALSE),VLOOKUP($H$29,TS3L4_CPU8core,11,FALSE)) -> 0 | S29: =IF(R29=0,0,VLOOKUP($H29,TS3L4_CPU8core,12,FALSE)) -> 0
H31: Additional Processor
H32: AMD EPYC 7313 3.0GHz, 16C/32T, 128M Cache (155W) DDR4-3200 | J32: =IF(K23=1,VLOOKUP($H$29,TS3L4_CPU,13,FALSE),VLOOKUP($H$32,TS3L4_CPU,13,FALSE)) -> TS4L7-CPU | K32: =IF(K23=1,VLOOKUP($H$29,TS3L4_CPU,7,FALSE),VLOOKUP($H$32,TS3L4_CPU,7,FALSE)) -> 1 | M32: =Q32 -> 680.84 | Q32: =IF(K23=1,VLOOKUP($H$29,TS3L4_CPU,10,FALSE),VLOOKUP($H$32,TS3L4_CPU,10,FALSE)) -> 680.84 | R32: =IF(K23=1,VLOOKUP($H$29,TS3L4_CPU,11,FALSE),VLOOKUP($H$32,TS3L4_CPU,11,FALSE)) -> 0 | S32: =IF(K23=1,VLOOKUP(H29,TS3L4_ALL,12,FALSE),VLOOKUP($H32,TS3L4_CPU,12,FALSE)) -> L7N02 | U32: =IF(K23=1,"AMD EPYC 7313 3.0GHz, 16C/32T, 128M Cache (155W) DDR4-3200",H32) -> AMD EPYC 7313 3.0GHz, 16C/32T, 128M Cache (155W) DDR4-3200
S33: =IF(J33="TS3L4-CPU","L4N02",0) -> 0 | U33: =VLOOKUP($S$32,Tabella_prezzi!$A$1:$L$382,4,FALSE) -> 680.84 | V33: =VLOOKUP($S$32,Tabella_prezzi!$A$1:$L$382,7,FALSE) -> 1
H34: Memory Capacity (GB) | K34: =IF(AND(K32=0,H35>512),"Selezionare Quantità RAM Corretta","") -> 
H35: 256 | J35: =IFERROR(U35,"TS3L4-RAM64") -> TS4L7-WINSRVSTD | K35: =IFERROR(V35,IF($U$20="VxFlex",5,1)) -> 0 | M35: =Q35 -> 0 | Q35: =IFERROR(W35,444) -> 0 | S35: =IFERROR(X35,"L4N04") -> L7N03 | U35: =IF($K$32=1,VLOOKUP($H$35,ConfigurationTS3L4!A45:M65,13,FALSE),VLOOKUP($H$35,TS3L4_RAM1CPU,13,FALSE)) -> TS4L7-WINSRVSTD | V35: =IF($K$32=1,VLOOKUP($H$35,ConfigurationTS3L4!A45:M65,7,FALSE),VLOOKUP($H$35,TS3L4_RAM1CPU,7,FALSE)) -> 0 | W35: =IF($K$32=1,VLOOKUP($H$35,ConfigurationTS3L4!A45:M65,10,FALSE),VLOOKUP($H$35,TS3L4_RAM1CPU,10,FALSE)) -> 0 | X35: =IF($K$32=1,VLOOKUP($H$35,ConfigurationTS3L4!A45:M65,12,FALSE),VLOOKUP($H$35,TS3L4_RAM1CPU,12,FALSE)) -> L7N03 | Z35: 384GB | AA35: =IF(U20="VxFlex",0,1) -> 1 | AB35: =IF(U20="VxFlex",VLOOKUP(H35,ConfigurationTS3L4!A69:A72,1,FALSE),"192GB") -> 192GB | AC35: =IFERROR(AB35,1) -> 192GB | AD35: =IF(H35="256",1,0) -> 0 | AE35: =AD35*K23 -> 0
H37: Operating System STANDARD | K37: =IF(AND(K32=0,K38>3),"Selezionare Numero Corretto di Licenze",IF(AND(H38="Ubuntu Server 22.04 LTS 64 Bit",K38>1),"Selezionare Numero Corretto di Licenze","")) -> 
H38: No Operating System | J38: =VLOOKUP($H$38,TS3L4_OS,13,FALSE) ->  | M38: =Q38 -> 0 | Q38: =VLOOKUP($H$38,TS3L4_OS,10,FALSE)*K38 -> 0 | R38: =VLOOKUP($H$38,TS3L4_OS,11,FALSE) -> 0 | S38: =VLOOKUP($H38,TS3L4_ALL,12,FALSE) -> 
H39: Windows Server 2022 Standard Edition, Add License,2CORE | J39: =VLOOKUP($H$39,TS3L4_OS,13,FALSE) -> TS4L7-WINSRV2C | M39: =Q39 -> 0 | Q39: =VLOOKUP($H$39,TS3L4_OS,10,FALSE)*K39 -> 0 | R39: =VLOOKUP($H$38,TS3L4_OS,11,FALSE) -> 0 | S39: =VLOOKUP($H39,TS3L4_ALL,12,FALSE) -> L7N26
H42: Operating System Device CAL / User CAL
H43: 1-pack of Windows Server 2022/2019 Device CALs (STD or DC) | J43: =VLOOKUP($H$43,ConfigurationTS3L4!A79:W80,13,FALSE) -> TS4L7-WINDEVCAL | M43: =Q43 -> 0 | Q43: =VLOOKUP($H$43,ConfigurationTS3L4!A79:N80,10,FALSE)*K43 -> 0 | R43: =VLOOKUP($H$38,TS3L4_OS,11,FALSE) -> 0 | S43: =VLOOKUP($H43,TS3L4_ALL,12,FALSE) -> L7N24
H44: 1-pack of Windows Server 2022/2019 User CALs (STD or DC) | J44: =VLOOKUP($H$44,ConfigurationTS3L4!A80:W81,13,FALSE) -> TS4L7-WINUSRCAL | M44: =Q44 -> 0 | Q44: =VLOOKUP($H$44,ConfigurationTS3L4!A80:N81,10,FALSE)*K44 -> 0 | R44: =VLOOKUP($H$38,TS3L4_OS,11,FALSE) -> 0 | S44: =VLOOKUP($H44,TS3L4_ALL,12,FALSE) -> L7N25
H46: Disk Controller
F47: =IF($J$23="TS3L4-VSAN","vSAN HCL","") ->  | H47: PERC H745 Controller | J47: =IF(H23="Chassis with Up to 24 x 2.5'' Hard Drives for 2CPU Configuration","TS3L4-HBA335i-L",IF(U20="VxFlex","TS3L4-HBA355i-L",VLOOKUP($H47,TS3L4_CRTL,13,FALSE))) -> 0 | K47: =IF(H23="Chassis with Up to 24 x 2.5'' Hard Drives for 2CPU Configuration","1",IF(U20="VxFlex","1",VLOOKUP($H47,TS3L4_CRTL,7,FALSE))) ->  | Q47: =IF(H47=ConfigurationTS3L4!A48,0,VLOOKUP($H47,TS3L4_CRTL,10,FALSE)) -> 0 | R47: =IF(H23="Chassis with Up to 24 x 2.5'' Hard Drives for 2CPU Configuration",180,IF(U20="VxFlex",180,IF(M5="",0,VLOOKUP($H47,TS3L4_CRTL,11,FALSE)))) -> 0 | S47: =IF(H23="Chassis with Up to 24 x 2.5'' Hard Drives for 2CPU Configuration","L4N34",IF(U20="VxFlex","L4N34",IF(M5="","",VLOOKUP($H47,TS3L4_ALL,12,FALSE)))) -> L7N44 | U47: =IF(J47="TS3L4-HBA330-L",1,0) -> 0 | V47: =IF(H47="PERC H740P RAID Controller, 8GB NV Cache",1,0) -> 0 | W47: =IF(X47=1,X47*U47,V47*U47) -> 0 | X47: =IF(M5="",1,0) -> 0
H49: Hard Drivers Bays n° 16 - 2 bay occupate dai dischi 960GB SSD di base | J49: Usati | K49: Disponibili | T49: =IF(H23="Chassis with Up to 24 x 2.5'' Hard Drives for 2CPU Configuration",ConfigurationTS3L4!$A$126,IF($M$5="",ConfigurationTS3L4!$A$125,ConfigurationTS3L4!$A$125:$A$126)) -> 
J50: =K52+K54+K56+K62+K64+K58+K60 -> 2 | K50: =16-J50 -> 14
F52: =IF($J$23="TS3L4-VSAN","vSAN HCL","") ->  | H52: =ConfigurationTS3L4!A86 -> 2.4TB 10k SAS ISE 12Gbps | J52: =VLOOKUP($H52,TS3L4_HDD,13,FALSE) -> TS4L7-HDD2TB | M52: =Q52 -> 0 | Q52: =VLOOKUP($H52,TS3L4_HDD,10,FALSE)*K52 -> 0 | R52: =VLOOKUP($H52,TS3L4_HDD,11,FALSE) -> 0 | S52: =VLOOKUP($H52,TS3L4_ALL,12,FALSE) -> L7N12
F54: =IF($J$23="TS3L4-VSAN","vSAN HCL","") ->  | H54: =ConfigurationTS3L4!A87 -> 1.2TB 10K RPM SAS ISE 12Gbps | J54: =VLOOKUP($H54,TS3L4_HDD,13,FALSE) -> TS4L7-HDD1TB | M54: =Q54 -> 0 | Q54: =VLOOKUP($H54,TS3L4_HDD,10,FALSE)*K54 -> 0 | R54: =VLOOKUP($H54,TS3L4_HDD,11,FALSE) -> 0 | S54: =VLOOKUP($H54,TS3L4_ALL,12,FALSE) -> L7N13
F56: =IF($J$23="TS3L4-VSAN","vSAN HCL","") ->  | H56: =ConfigurationTS3L4!A88 -> 3.84TB SSD SAS ISE RI 12Gbps | J56: =VLOOKUP($H56,TS3L4_HDD,13,FALSE) -> TS4L7-SSD-RI3,8TB | M56: =Q56 -> 0 | Q56: =VLOOKUP($H56,TS3L4_HDD,10,FALSE)*K56 -> 0 | R56: =VLOOKUP($H56,TS3L4_HDD,11,FALSE) -> 0 | S56: =VLOOKUP($H56,TS3L4_ALL,12,FALSE) -> L7N14
F58: =IF($J$23="TS3L4-VSAN","vSAN HCL","") ->  | H58: =ConfigurationTS3L4!A89 -> 1.92TB SSD SAS ISE RI 12Gbps | J58: =VLOOKUP($H58,TS3L4_HDD,13,FALSE) -> TS4L7-SSD-RI1,6TB | M58: =Q58 -> 0 | Q58: =IF(K58>2,(VLOOKUP($H58,TS3L4_HDD,10,FALSE)*(K58-2)),0) -> 0 | R58: =VLOOKUP($H58,TS3L4_HDD,11,FALSE) -> 0 | S58: =VLOOKUP($H58,TS3L4_ALL,12,FALSE) -> L7N16
F60: =IF($J$23="TS3L4-VSAN","vSAN HCL","") ->  | H60: =ConfigurationTS3L4!A90 -> 1.6TB SSD SAS ISE MU 12Gbp | J60: =VLOOKUP($H60,TS3L4_HDD,13,FALSE) -> TS4L7-SSD-MU1,6TB | M60: =Q60 -> 0 | Q60: =VLOOKUP($H60,TS3L4_HDD,10,FALSE)*K60 -> 0 | R60: =VLOOKUP($H60,TS3L4_HDD,11,FALSE) -> 0 | S60: =VLOOKUP($H60,TS3L4_ALL,12,FALSE) -> L7N17
F62: =IF($J$23="TS3L4-VSAN","vSAN HCL","") ->  | H62: =ConfigurationTS3L4!A91 -> 960GB SSD SAS ISE RI 12Gbps | J62: =VLOOKUP($H62,TS3L4_HDD,13,FALSE) -> TS4L7-SSD-RI800GB | K62: 2 | M62: =Q62 -> 0 | Q62: =IF(K62>2,(VLOOKUP($H62,TS3L4_HDD,10,FALSE)*(K62-2)),0) -> 0 | R62: =VLOOKUP($H62,TS3L4_HDD,11,FALSE)*K62 -> 0 | S62: =VLOOKUP($H62,TS3L4_ALL,12,FALSE) -> L7N18
F64: =IF($J$23="TS3L4-VSAN","vSAN HCL","") ->  | H64: =ConfigurationTS3L4!A92 -> 800GB SSD SAS ISE Mix Use 12Gbps | J64: =VLOOKUP($H64,TS3L4_HDD,13,FALSE) -> TS4L7-SSD-MU800GB | M64: =Q64 -> 0 | Q64: =VLOOKUP($H64,TS3L4_HDD,10,FALSE)*K64 -> 0 | R64: =VLOOKUP($H64,TS3L4_HDD,11,FALSE)*K64 -> 0 | S64: =VLOOKUP($H64,TS3L4_ALL,12,FALSE) -> L7N19
H66: BOSS controller card
H67: No Boss card | J67: =IF(R67>0,VLOOKUP($H67,TS3L4_ISDM,13,FALSE),"") ->  | K67: =VLOOKUP($H67,TS3L4_ISDM,7,FALSE) ->  | Q67: =VLOOKUP($H67,TS3L4_ISDM,10,FALSE) -> 0 | R67: =VLOOKUP($H67,TS3L4_ISDM,11,FALSE) -> 0 | S67: =VLOOKUP($H67,TS3L4_ALL,12,FALSE) -> 
F70: =IF(M70="","",T71) ->  | H70: Power Supply | I70: =IF(M70="","",T71) -> 
H71: =ConfigurationTS3L4!A101 -> Dual, Hot-Plug, Power Supply 2400W Redundant, D | J71: =VLOOKUP($H71,TS3L4_PSU,13,FALSE) -> TS4L7-PSU2400W | K71: =VLOOKUP($H71,TS3L4_PSU,7,FALSE) -> 1 | Q71: =VLOOKUP($H71,TS3L4_PSU,10,FALSE) -> 0 | R71: =VLOOKUP($H71,TS3L4_PSU,11,FALSE) -> 0 | S71: =VLOOKUP($H71,TS3L4_ALL,12,FALSE) -> L7N49 | T71: ⚠ | U71: =IF(M70="",ConfigurationTS3L4!A565,ConfigurationTS3L4!A566) -> _C14C13
H73: Embedded Systems Management
H74: iDRAC9,Enterprise
T77: =IF($J$23="TS3L4-GPUDW","1",IF($J$23="TS3L4-GPUSW","20",IF($K$32=1,"300","4000"))) -> 300 | U77: =IF($J$23="TS3L4-GPUDW","DW",IF($J$23="TS3L4-GPUSW","SW",IF($J$23="TS3L4-PWRFLEX","PX",IF($K$32=1,"2CPU","1CPU")))) -> 2CPU
H78: PCI Slot 1 Processor 1 x8 PCIe Gen4 for HL/FH | U78: =IF(U77="DW","DW",IF(U77="SW","SW",0)) -> 0 | V78: Selected | W78: 1CPU | X78: 2CPU | Y78: PX | Z78: DW | AA78: SW
J79: =IF($U$20="VxFlex","TS3L4-MCX4DP",VLOOKUP($H79,TS3L4_ALL,13,)) ->  | K79: =IF($U$20="VxFlex",1,VLOOKUP($H79,TS3L4_ALL,7,FALSE)) ->  | M79: =Q79 -> 0 | Q79: =VLOOKUP($H79,TS3L4_ALL,10,FALSE) -> 0 | R79: =IF($U$20="VxFlex",419,VLOOKUP($H79,TS3L4_ALL,11,FALSE)) -> 0 | S79: =IF($U$20="VxFlex","L4N94",VLOOKUP($H79,TS3L4_ALL,12,FALSE)) ->  | U79: =IF(S79="L4N56","DW",IF(S79="L4N57","DW",IF(S79="L4N58","DW",IF(S79="L4N55","SW","CPU")))) -> CPU | V79: =HLOOKUP($N$77,$R$78:$V$101,2,FALSE) -> CPU | W79: TS3L2_PCI_A | X79: TS3L2_PCI_A | Y79: TS3L2_PCI_A | Z79: TS3L2_PCI_A | AA79: TS3L2_PCI_A | AC79: PCI-1 | AD79: =IF($U$77="SW",ConfigurationTS3L4!$A$329:$A$348,IF($U$77="DW",ConfigurationTS3L4!$A$278:$A$301,ConfigurationTS3L4!$A$198:$A$220)) -> 
M80: =IF(S79="L4N33",IF($T$100>1,"ERRORE: SOLO UNA BOSS CARD PUO' ESSERE CONFIGURATA",""),"") ->  | V80: =HLOOKUP($N$77,$R$78:$V$101,3,FALSE) -> 0 | W80: =VLOOKUP(H79,TS3L4_PCI_A,12,FALSE) ->  | X80: =VLOOKUP(H79,TS3L4_PCI_A,12,FALSE) ->  | Y80: =VLOOKUP(H79,TS3L4_PCI_A,12,FALSE) ->  | Z80: =VLOOKUP(H79,TS3L4_PCI_A,12,FALSE) ->  | AA80: =VLOOKUP(H79,TS3L4_PCI_A,12,FALSE) -> 
H81: PCI Slot 2 Processor 1 x16 PCIe Gen4 for DW/FH
H82: AMD MI100,300W PCIe, 32GB Passive, Double Wide, GPU | J82: =IF(H20="PowerEdge R7525 Server (General Purpose)","",VLOOKUP($H82,TS3L4_ALL,13,FALSE)) -> TS4L7-GPU | K82: =IF(H20="PowerEdge R7525 Server (General Purpose)","",VLOOKUP($H82,TS3L4_ALL,7,FALSE)) -> 1 | M82: =Q82 -> 6264.37 | Q82: =IF(H20="PowerEdge R7525 Server (General Purpose)",0,VLOOKUP($H82,TS3L4_ALL,10,FALSE)) -> 6264.37 | R82: =VLOOKUP($H82,TS3L4_ALL,11,FALSE) -> 0 | S82: =VLOOKUP($H82,TS3L4_ALL,12,FALSE) -> L7N15 | T82: =IF(K82="","OK",IF(U82+K82=2,"Errore","OK")) -> OK | U82: =IF(U79="dw",1,0) -> 0 | V82: =HLOOKUP($N$77,$R$78:$V$101,5,FALSE) -> 0 | W82: TS3L2_PCI_A | X82: TS3L2_PCI_A | Y82: TS3L2_PCI_A | Z82: TS3L2_PCI_A | AA82: TS3L2_PCI_A | AC82: PCI-2
V83: =HLOOKUP($N$77,$R$78:$V$101,6,FALSE) -> 0 | W83: =VLOOKUP(H82,TS3L4_PCI_A,12,FALSE) ->  | X83: =VLOOKUP(H82,TS3L4_PCI_A,12,FALSE) ->  | Y83: =VLOOKUP(H82,TS3L4_PCI_A,12,FALSE) ->  | Z83: =VLOOKUP(H82,TS3L4_PCI_A,12,FALSE) ->  | AA83: =VLOOKUP(H82,TS3L4_PCI_A,12,FALSE) -> 
H84: PCI Slot 3 Processor 1 x16 PCIe Gen4 for HL/LP
J85: =VLOOKUP($H85,TS3L4_ALL,13,FALSE) ->  | K85: =VLOOKUP($H85,TS3L4_ALL,7,FALSE) ->  | M85: =Q85 -> 0 | Q85: =IF($U$20="VxFlex",748,VLOOKUP($H85,TS3L4_ALL,11,FALSE)) -> 0 | R85: =VLOOKUP($H85,TS3L4_ALL,11,FALSE) -> 0 | S85: =IF($U$20="VxFlex","L4N33",VLOOKUP($H85,TS3L4_ALL,12,FALSE)) ->  | V85: =HLOOKUP($N$77,$R$78:$V$101,8,FALSE) -> 0 | W85: TS3L2_PCI_A | X85: TS3L2_PCI_A | Y85: TS3L2_PCI_A | Z85: TS3L2_PCI_A | AA85: TS3L2_PCI_A | AC85: PCI-3
V86: =HLOOKUP($N$77,$R$78:$V$101,9,FALSE) -> 0 | W86: =VLOOKUP(H85,TS3L4_PCI_A,12,FALSE) ->  | X86: =VLOOKUP(H85,TS3L4_PCI_A,12,FALSE) ->  | Y86: =VLOOKUP(H85,TS3L4_PCI_A,12,FALSE) ->  | Z86: =VLOOKUP(H85,TS3L4_PCI_A,12,FALSE) ->  | AA86: =VLOOKUP(H85,TS3L4_PCI_A,12,FALSE) -> 
H87: PCI Slot 4 Processor 2 x8 PCIe Gen4 for HL/FH | I87: =IF($U$77="SW","GPU Slot",IF($U$77="DW","GPU Slot","")) -> 
J88: =VLOOKUP($H88,TS3L4_ALL,13,FALSE) ->  | K88: =VLOOKUP($H88,TS3L4_ALL,7,FALSE) ->  | M88: =Q88 -> 0 | Q88: =VLOOKUP($H88,TS3L4_ALL,10,FALSE) -> 0 | R88: =VLOOKUP($H88,TS3L4_ALL,11,FALSE) -> 0 | S88: =VLOOKUP($H88,TS3L4_ALL,12,FALSE) ->  | U88: =IF(S88="L4N56","DW",IF(S88="L4N57","DW",IF(S88="L4N108","DW",IF(S88="L4N55","SW",1)))) -> 1 | V88: =HLOOKUP($N$77,$R$78:$V$101,11,FALSE) -> 1 | W88: - | X88: TS3L2_PCI_B | Y88: TS3L2_PCI_I | Z88: TS3L2_PCI_F | AA88: TS3L2_PCI_H | AC88: PCI-4
M89: =IF(S88="L4N33",IF($T$100>1,"ERRORE: SOLO UNA BOSS CARD PUO' ESSERE CONFIGURATA",""),"") ->  | V89: =HLOOKUP($N$77,$R$78:$V$101,12,FALSE) -> 0 | W89: =VLOOKUP(H88,TS3L4_PCI_A,12,FALSE) ->  | X89: =VLOOKUP(H88,TS3L4_PCI_B,12,FALSE) ->  | Y89: =VLOOKUP(H88,TS3L4_PCI_I,12,FALSE) ->  | Z89: =VLOOKUP(H88,TS3L4_PCI_F,12,FALSE) ->  | AA89: =VLOOKUP(H88,TS3L4_PCI_H,12,FALSE) -> 
H90: PCI Slot 5 Processor 2 x16 PCIe Gen4 for DW/FH
H91: AMD MI100,300W PCIe, 32GB Passive, Double Wide, GPU | J91: =IF(H20="PowerEdge R7525 Server (General Purpose)","",VLOOKUP($H91,TS3L4_ALL,13,FALSE)) -> TS4L7-GPU | K91: =IF(H20="PowerEdge R7525 Server (General Purpose)","",VLOOKUP($H91,TS3L4_ALL,7,FALSE)) -> 1 | M91: =Q91 -> 6264.37 | Q91: =IF(H20="PowerEdge R7525 Server (General Purpose)",0,VLOOKUP($H91,TS3L4_ALL,10,FALSE)) -> 6264.37 | R91: =VLOOKUP($H91,TS3L4_ALL,11,FALSE) -> 0 | S91: =VLOOKUP($H91,TS3L4_ALL,12,FALSE) -> L7N15 | T91: =IF(K91="","OK",IF(U91+K91=2,"Errore","OK")) -> OK | U91: =IF(U88="dw",1,0) -> 0 | V91: =HLOOKUP($N$77,$R$78:$V$101,14,FALSE) -> 0 | W91: - | X91: TS3L2_PCI_A | Y91: TS3L2_PCI_I | Z91: TS3L2_PCI_A | AA91: TS3L2_PCI_L | AC91: PCI-5
V92: =HLOOKUP($N$77,$R$78:$V$101,15,FALSE) -> 0 | W92: =VLOOKUP(H91,TS3L4_PCI_A,12,FALSE) ->  | X92: =VLOOKUP(H91,TS3L4_PCI_A,12,FALSE) ->  | Y92: =VLOOKUP(H91,TS3L4_PCI_I,12,FALSE) ->  | Z92: =VLOOKUP(H91,TS3L4_PCI_A,12,FALSE) ->  | AA92: =VLOOKUP(H91,TS3L4_PCI_L,12,FALSE) -> 
H93: PCI Slot 6 Processor 2 x16 PCIe Gen4 for HL/LP
J94: =VLOOKUP($H94,TS3L4_ALL,13,FALSE) ->  | K94: =IF($U$20="VxFlex",1,VLOOKUP($H94,TS3L4_ALL,7,FALSE)) ->  | M94: =Q94 -> 0 | Q94: =IF($U$20="VxFlex",419,VLOOKUP($H94,TS3L4_ALL,11,FALSE)) -> 0 | S94: =VLOOKUP($H94,TS3L4_ALL,12,FALSE) ->  | V94: =HLOOKUP($N$77,$R$78:$V$101,17,FALSE) -> 0 | W94: TS3L2_PCI_C | X94: TS3L2_PCI_C | Y94: TS3L2_PCI_C | Z94: TS3L2_PCI_C | AA94: TS3L2_PCI_C | AC94: PCI-6
V95: =HLOOKUP($N$77,$R$78:$V$101,18,FALSE) -> 0 | W95: =VLOOKUP(H94,TS3L4_PCI_C,12,FALSE) ->  | X95: =VLOOKUP(H94,TS3L4_PCI_C,12,FALSE) ->  | Y95: =VLOOKUP(H94,TS3L4_PCI_C,12,FALSE) ->  | Z95: =VLOOKUP(H94,TS3L4_PCI_C,12,FALSE) ->  | AA95: =VLOOKUP(H94,TS3L4_PCI_C,12,FALSE) -> 
H96: PCI Slot 7 Processor 2 x16 PCIe Gen4 for DW/FH
J97: =IF(H20="PowerEdge R7525 Server (General Purpose)","",VLOOKUP($H97,TS3L4_ALL,13,FALSE)) ->  | K97: =IF(H20="PowerEdge R7525 Server (General Purpose)","",VLOOKUP($H97,TS3L4_ALL,7,FALSE)) ->  | M97: =Q97 -> 0 | Q97: =IF(H20="PowerEdge R7525 Server (General Purpose)",0,VLOOKUP($H97,TS3L4_ALL,10,FALSE)) -> 0 | R97: =VLOOKUP($H97,TS3L4_ALL,11,FALSE) -> 0 | S97: =VLOOKUP($H97,TS3L4_ALL,12,FALSE) ->  | T97: =IF(K97="","OK",IF(U97+K97=2,"Errore","OK")) -> OK | U97: =IF(U100="dw",1,0) -> 0 | V97: =HLOOKUP($N$77,$R$78:$V$101,20,FALSE) -> 0 | W97: - | X97: TS3L2_PCI_A | Y97: TS3L2_PCI_I | Z97: TS3L2_PCI_A | AA97: TS3L2_PCI_L | AC97: PCI-7
M98: =IF(S97="L4N33",IF($T$100>1,"ERRORE: SOLO UNA BOSS CARD PUO' ESSERE CONFIGURATA",""),"") ->  | V98: =HLOOKUP($N$77,$R$78:$V$101,21,FALSE) -> 0 | W98: =VLOOKUP(H97,TS3L4_PCI_A,12,FALSE) ->  | X98: =VLOOKUP(H97,TS3L4_PCI_A,12,FALSE) ->  | Y98: =VLOOKUP(H97,TS3L4_PCI_I,12,FALSE) ->  | Z98: =VLOOKUP(H97,TS3L4_PCI_A,12,FALSE) ->  | AA98: =VLOOKUP(H97,TS3L4_PCI_L,12,FALSE) -> 
H99: PCI Slot 9 Processor 1 x16 | T99: boss card
J100: =VLOOKUP($H100,TS3L4_ALL,13,FALSE) ->  | K100: =VLOOKUP($H100,TS3L4_ALL,7,FALSE) ->  | M100: =Q100 -> 0 | Q100: =VLOOKUP($H100,TS3L4_ALL,10,FALSE) -> 0 | R100: =VLOOKUP($H100,TS3L4_ALL,11,FALSE) -> 0 | S100: =VLOOKUP($H100,TS3L4_ALL,12,FALSE) ->  | T100: =COUNTIF(S79:S100,"L4N33") -> 0 | U100: =IF(S100="L4N56","DW",IF(S100="L4N57","DW",IF(S100="L4N108","DW",IF(S100="L4N55","SW",1)))) -> 1 | V100: =HLOOKUP($N$77,$R$78:$V$101,23,FALSE) -> 1 | W100: - | X100: TS3L2_PCI_D | Y100: TS3L2_PCI_I | Z100: TS3L2_PCI_E | AA100: TS3L2_PCI_G | AC100: PCI-8
M101: =IF(S100="L4N33",IF($T$100>1,"ERRORE: SOLO UNA BOSS CARD PUO' ESSERE CONFIGURATA",""),"") ->  | V101: =HLOOKUP($N$77,$R$78:$V$101,24,FALSE) -> 0 | W101: =VLOOKUP(H100,TS3L4_PCI_A,12,FALSE) ->  | X101: =VLOOKUP(H100,TS3L4_PCI_D,12,FALSE) ->  | Y101: =VLOOKUP(H100,TS3L4_PCI_I,12,FALSE) ->  | Z101: =VLOOKUP(H100,TS3L4_PCI_E,12,FALSE) ->  | AA101: =VLOOKUP(H100,TS3L4_PCI_G,12,FALSE) -> 
H102: SFP+ Transceivers
H103: Transceiver, SFP+ SR Optic for SFP+ ports (Intel X710) | J103: =IF(R103>0,VLOOKUP($H103,ConfigurationTS3L4!$A$1:$M$4870,13,FALSE),"") ->  | Q103: 0 | R103: =IF(K103>0,VLOOKUP($H103,TS3L4_ALL,11,FALSE)*(K103),0) -> 0 | S103: =IF(K103>0,VLOOKUP($H103,TS3L4_ALL,12,FALSE),0) -> 0
H105: SFP+ Direct Attach Cables (Twinax)
H106: Cable, SFP+ to SFP+, 10GbE, Copper Twinax Direct Attach Cable, 3 Meter | J106: =IF(R106>0,VLOOKUP($H106,ConfigurationTS3L4!$A$1:$M$4870,13,FALSE),"") ->  | Q106: 0 | R106: =IF(K106>0,VLOOKUP($H106,TS3L4_ALL,11,FALSE)*K106,0) -> 0 | S106: =IF(K106>0,VLOOKUP($H106,TS3L4_ALL,12,FALSE),0) -> 0
H108: QSFP28 Transceivers
H109: Dell EMC PowerEdge QSFP28 SR4 100GbE 85C optic | J109: =IF(R109>0,VLOOKUP($H109,ConfigurationTS3L4!$A$1:$M$4870,13,FALSE),"") ->  | Q109: 0 | R109: =IF(K109>0,VLOOKUP($H109,TS3L4_ALL,11,FALSE)*K109,0) -> 0 | S109: =IF(K109>0,VLOOKUP($H109,TS3L4_ALL,12,FALSE),0) -> 0
H111: Mellanox LinkX 100Gb/s Passive Copper Cables
H112: Mellanox LinkX 100Gb/s Passive Copper Cables - attacco cavo diretto - 3 m - nero | J112: =IF(R112>0,VLOOKUP($H112,ConfigurationTS3L4!$A$1:$M$4870,13,FALSE),"") ->  | Q112: 0 | R112: =IF(K112>0,VLOOKUP($H112,TS3L4_ALL,11,FALSE)*K112,0) -> 0 | S112: =IF(K112>0,VLOOKUP($H112,TS3L4_ALL,12,FALSE),0) -> 0
H114: Mellanox LinkX 100Gb/s VCSEL-Based Active Optical Cables - cavo InfiniBand - 10 m | J114: =IF(R114>0,VLOOKUP($H114,ConfigurationTS3L4!$A$1:$M$4870,13,FALSE),"") ->  | Q114: 0 | R114: =IF(K114>0,VLOOKUP($H114,TS3L4_ALL,11,FALSE)*K114,0) -> 0 | S114: =IF(K114>0,VLOOKUP($H114,TS3L4_ALL,12,FALSE),0) -> 0
H116: Cavi RJ45
H117: Cavo “patch” di 3 mt RJ45 certificato per gigabit ethernet | J117: =IF(R117>0,VLOOKUP($H117,ConfigurationTS3L4!$A$1:$M$4870,13,FALSE),"") ->  | Q117: 0 | R117: =IF(K117>0,VLOOKUP($H117,TS3L4_ALL,11,FALSE)*(K117),0) -> 0 | S117: =IF(K117>0,VLOOKUP($H117,TS3L4_ALL,12,FALSE),0) -> 0
H119: Cavi LC-LC
H120: Dell Networking Cable, OM4 LC/LC Fiber Cable, 3 Meter | J120: =IF(R120>0,VLOOKUP($H120,ConfigurationTS3L4!$A$1:$M$4870,13,FALSE),"") ->  | Q120: 0 | R120: =IF(K120>0,VLOOKUP($H120,TS3L4_ALL,11,FALSE)*(K120),0) -> 0 | S120: =IF(K120>0,VLOOKUP($H120,TS3L4_ALL,12,FALSE),0) -> 0
H122: Cavi DAC
H123: Dell Networking, Cable, SFP+ to SFP+, 10GbE, Copper Twinax Direct Attach Cable, 3 Meter | J123: =IF(R123>0,VLOOKUP($H123,ConfigurationTS3L4!$A$1:$M$4870,13,FALSE),"") ->  | Q123: 0 | R123: =IF(K123>0,VLOOKUP($H123,TS3L4_ALL,11,FALSE)*(K123),0) -> 0 | S123: =IF(K123>0,VLOOKUP($H123,TS3L4_ALL,12,FALSE),0) -> 0
H124: Mellanox LinkX 100Gb/s Passive Copper DAC 3m per scheda TS3L4-CONX6DP | J124: =IF(R124>0,VLOOKUP($H124,ConfigurationTS3L4!$A$1:$M$4870,13,FALSE),"") ->  | Q124: 0 | R124: =IF(K124>0,VLOOKUP($H124,TS3L4_ALL,11,FALSE)*(K124),0) -> 0 | S124: =IF(K124>0,VLOOKUP($H124,TS3L4_ALL,12,FALSE),0) -> 0
H125: Dell Cable SFP28 to SFP28 25GbE Passive Copper Twinax Direct Attach Cable 3 Meter | J125: =IF(R125>0,VLOOKUP($H125,ConfigurationTS3L4!$A$1:$M$4870,13,FALSE),"") ->  | Q125: 0 | R125: =IF(K125>0,VLOOKUP($H125,TS3L4_ALL,11,FALSE)*(K125),0) -> 0 | S125: =IF(K125>0,VLOOKUP($H125,TS3L4_ALL,12,FALSE),0) -> 0
V126: =IF($U$20="VxFlex",ConfigurationTS3L4!$A$275,IF($U$100="DW",ConfigurationTS3L4!$A$372,IF($U$77="1CPU",ConfigurationTS3L4!$A$105:$A$106,ConfigurationTS3L4!$A$198:$A$220))) -> 
H127: Cable Management Arm
H128: No | J128: =IF($U$20="VxFlex","TS3L4-BZLSTD",VLOOKUP($H128,TS3L4_ALL,13,)) ->  | K128: =IF($U$20="VxFlex",1,VLOOKUP($H128,TS3L4_ALL,7,FALSE)) ->  | Q128: =VLOOKUP($H128,TS3L4_ALL,10,FALSE) -> 0 | R128: =IF($U$20="VxFlex",42,VLOOKUP($H128,TS3L4_ALL,11,FALSE)) -> 0 | S128: =IF($U$20="VxFlex","L4N69",VLOOKUP($H128,TS3L4_ALL,12,FALSE)) -> 
H130: Bezel
H131: No Bezel | J131: =IF($U$20="VxFlex","TS3L4-BZLSTD",VLOOKUP($H131,TS3L4_ALL,13,)) ->  | K131: =IF($U$20="VxFlex",1,VLOOKUP($H131,TS3L4_ALL,7,FALSE)) ->  | Q131: =VLOOKUP($H131,TS3L4_ALL,10,FALSE) -> 0 | R131: =IF($U$20="VxFlex",42,VLOOKUP($H131,TS3L4_ALL,11,FALSE)) -> 0 | S131: =IF($U$20="VxFlex","L4N69",VLOOKUP($H131,TS3L4_ALL,12,FALSE)) -> 
H133: Garanzia
H134: Estensione della manutenzione in garanzia per ulteriori 24 mesi | J134: =VLOOKUP($H134,TS3L4_WARRANTY,13,FALSE) -> TS4L7-OpzEst24 | K134: =VLOOKUP($H134,TS3L4_ALL,7,FALSE) -> 1 | M134: =Q134 -> 183.01 | Q134: =VLOOKUP($H134,TS3L4_WARRANTY,10,FALSE) -> 183.01 | R134: =VLOOKUP($H134,TS3L4_WARRANTY,11,FALSE) -> 0 | S134: =VLOOKUP($H134,TS3L4_ALL,12,FALSE) -> L7N29
H136: Garanzia GPU | K136: =IF(AND(H137="Estensione della manutenzione GPU in garanzia per ulteriori 24 mesi",K134=""),"Selezionare estensione garanzia 60 Mesi","") -> 
H137: Estensione della manutenzione GPU in garanzia per ulteriori 24 mesi | J137: =IF(K134="","",VLOOKUP($H137,TS4L7_GPUWAR,13,FALSE)) -> TS4L7-OpzEst24GPU | K137: =IF(K134="",0,IF(S137="",0,U137)) -> 2 | M137: =Q137 -> 231.08 | Q137: =IF(H20="PowerEdge R7525 Server (General Purpose)",0,IF(K134="",0,VLOOKUP($H137,TS4L7_GPUWAR,10,FALSE)))*K137 -> 231.08 | R137: =VLOOKUP($H137,TS4L7_GPUWAR,11,FALSE) -> 0 | S137: =IF(H20="PowerEdge R7525 Server (General Purpose)","",VLOOKUP($H137,TS4L7_GPUWAR,12,FALSE)) -> L7N31 | T137: L7N15 | U137: =COUNTIF(TS4L7_1,T137) -> 2
H139: Hard Disk Retention | K139: =IF(AND(H140="Hard Disk Retention 60 mesi",K134=""),"Selezionare Estensione Garanzia 60 Mesi","") -> 
H140: Hard Disk Retention 60 mesi | J140: =IFERROR(U140,VLOOKUP(H140,TS3L4_ALL,13,FALSE)) -> TS4L7-HDRTN60 | K140: =IF(H140="","",1) -> 1 | M140: =Q140 -> 41.81 | Q140: =IFERROR(V140,VLOOKUP(H140,TS3L4_ALL,10,FALSE)) -> 41.81 | R140: =IFERROR(W140,VLOOKUP(H140,TS3L4_ALL,11,FALSE)) -> 0 | S140: =IFERROR(X140,VLOOKUP(H140,TS3L4_ALL,12,FALSE)) -> L7N28b | U140: =IF(K134+K140=2,VLOOKUP("Hard Disk Retention 60 mesi",TS3L4_ALL,13,FALSE),VLOOKUP(H140,TS3L4_ALL,13,FALSE)) -> TS4L7-HDRTN60 | V140: =IF(K134+K140=2,VLOOKUP("Hard Disk Retention 60 mesi",TS3L4_ALL,10,FALSE),VLOOKUP(H140,TS3L4_ALL,10,FALSE)) -> 41.81 | W140: =IF(K134+K140=2,VLOOKUP("Hard Disk Retention (60 mesi)",TS3L4_ALL,11,FALSE),VLOOKUP(H140,TS3L4_ALL,11,FALSE)) ->  | X140: =IF(K134+K140=2,VLOOKUP("Hard Disk Retention 60 mesi",TS3L4_ALL,12,FALSE),VLOOKUP(H140,TS3L4_ALL,12,FALSE)) -> L7N28b
H143: UPS
H144: IO SONO UN UPS | J144: =VLOOKUP($H144,TS3L4_UPS,13,FALSE) ->  | K144: =VLOOKUP($H144,TS3L4_UPS,7,FALSE) ->  | Q144: =VLOOKUP($H144,TS3L4_UPS,10,FALSE) ->  | R144: =VLOOKUP($H144,TS3L4_UPS,11,FALSE) ->  | S144: =VLOOKUP($H144,TS3L4_ALL,12,FALSE) -> 
H146: Kit Graphical User Interface
J147: =VLOOKUP($H147,TS3L4_GUI,13,FALSE) ->  | K147: =VLOOKUP($H147,TS3L4_GUI,7,FALSE) ->  | Q147: =VLOOKUP($H147,TS3L4_GUI,10,FALSE) ->  | R147: =VLOOKUP($H147,TS3L4_GUI,11,FALSE) ->  | S147: =VLOOKUP($H147,TS3L4_ALL,12,FALSE) -> 
J150: Configurazione | K150: =SUM(Q20:Q140)*K6 -> 0
J151: 0.2 | K151: =SUM(R20:R140)*K6 -> 0 | M151: Quota massima 20 %
J152: Totale | K152: =SUM(K150:K151) -> 0 | M152: =Riepilogo_Ordine!G59 -> 0
H154: NOTE

Sheet Lotto7_R7525_2
H2: Convenzione Tecnologie Server 4 - Lotto 7 | J2: =IF(T100>1,"ERRORE NELLA CONFIGURAZIONE","") -> 
M3: Quota massima 20 %
J4: Guida alla Convenzione | K4: Totale Singola Configurazione | M4: =Riepilogo_Ordine!G59 -> 0
H5: =IF($J$23="TS4L7-VSAN","vSAN Server Ready",IF($J$23="TS4L7-GPUDW","GPU Double-Wide Server Ready",IF($J$23="TS4L7-GPUSW","GPU Single-Wide Server Ready",IF(N20="VxFlex","PowerFlex Server","")))) ->  | K5: =K152 -> 0 | M5: Totale Ordine Iva Esclusa
H6: DELL POWEREDGE R7525 GPU Ready | J6: Quantità Server | K6: 0 | M6: =Riepilogo_Ordine!J60 -> 0
H9: N° Ordine Consip | I9: Amministrazione | L9: Data
H12: Nom. Referente Consegna | I12: Email Consegna | L12: Tel.
H15: Nom. Referente Installazione | I15: Email Installazione | J15: Tel. | L15: Tel.
H19: Base | U19: PowerEdge R7525 Server (General Purpose)
H20: PowerEdge R7525 Server (GPU Double-Wide Ready) | J20: =IF($K$6>0,"TS4L7-SRV","") ->  | K20: =IF($K$6>0,1,"") ->  | M20: =Q20 -> 4047.7 | Q20: =IF($U$20="nVME",VLOOKUP($H$20,TS3L4_ALL,10,FALSE)*1.04,VLOOKUP($H$20,TS3L4_ALL,10,FALSE)) -> 4047.7 | S20: =VLOOKUP($H20,TS3L4_ALL,12,FALSE) -> L7N01 | U20: =IF(H20=ConfigurationTS3L4!A4,"GPU","") -> GPU | V20: =IF(H20=ConfigurationTS3L4!A11,"Vsan","") ->  | W20: =IF(J23="TS3L4-GPUSW",1,IF(J23="TS3L4-GPUDW",1,"")) -> 
H22: Chassis Configuration
H23: =IF(K32=1,VLOOKUP($H$20,TS3L4_Chassis,3,FALSE),VLOOKUP($H$20,TS3L4_Chassis,2,FALSE)) -> Chassis with Up to 16 x 2.5 Hard Drives for 2CPU, GPU Double-Wide Configuration | J23: =IF($K$32=1,VLOOKUP($H$20,TS3L4_Chassis,8,FALSE),VLOOKUP($H$20,TS3L4_Chassis,9,FALSE)) -> Kit upgrade chassies for Server GPU Double-Wide Ready | K23: =IF(H20=U19,VLOOKUP($H$20,TS3L4_Chassis,6,FALSE),VLOOKUP($H$20,TS3L4_Chassis,7,FALSE)) -> 1 | M23: =IF(J23="TS3L4-VSAN","ATTENZIONE SELEZIONARE UNA COMPONENTE PER IL BOOT A SCELTA TRA ''ISDM Module'' oppure ''BOSS Controller Card''","") ->  | Q23: =VLOOKUP($H20,TS3L4_Chassis,11,FALSE) -> 0 | S23: =VLOOKUP($H20,TS3L4_Chassis,12,FALSE) -> L7N37 | U23: Chassis with Up to 24 x 2.5'' Hard Drives for 2CPU Configuration | V23: 1
H25: Trusted Platform Module (TPM)
H26: Trusted Platform Module 2.0 V3
H28: Processor
H29: AMD EPYC 7313 3.0GHz, 16C/32T, 128M Cache (155W) DDR4-3200 | J29: =IF(K23=1,VLOOKUP($H$29,TS3L4_CPU8core,13,FALSE),VLOOKUP($H$29,TS3L4_CPU8core,13,FALSE)) ->  | K29: =IF(K23=1,VLOOKUP($H$29,TS3L4_CPU8core,7,FALSE),VLOOKUP($H$29,TS3L4_CPU8core,7,FALSE)) -> 0 | Q29: =IF(K23=1,VLOOKUP($H$29,TS3L4_CPU8core,10,FALSE),VLOOKUP($H$29,TS3L4_CPU8core,10,FALSE)) -> 0 | R29: =IF(K23=1,VLOOKUP($H$29,TS3L4_CPU8core,11,FALSE),VLOOKUP($H$29,TS3L4_CPU8core,11,FALSE)) -> 0 | S29: =IF(R29=0,0,VLOOKUP($H29,TS3L4_CPU8core,12,FALSE)) -> 0
H31: Additional Processor
H32: AMD EPYC 7313 3.0GHz, 16C/32T, 128M Cache (155W) DDR4-3200 | J32: =IF(K23=1,VLOOKUP($H$29,TS3L4_CPU,13,FALSE),VLOOKUP($H$32,TS3L4_CPU,13,FALSE)) -> TS4L7-CPU | K32: =IF(K23=1,VLOOKUP($H$29,TS3L4_CPU,7,FALSE),VLOOKUP($H$32,TS3L4_CPU,7,FALSE)) -> 1 | M32: =Q32 -> 680.84 | Q32: =IF(K23=1,VLOOKUP($H$29,TS3L4_CPU,10,FALSE),VLOOKUP($H$32,TS3L4_CPU,10,FALSE)) -> 680.84 | R32: =IF(K23=1,VLOOKUP($H$29,TS3L4_CPU,11,FALSE),VLOOKUP($H$32,TS3L4_CPU,11,FALSE)) -> 0 | S32: =IF(K23=1,VLOOKUP(H29,TS3L4_ALL,12,FALSE),VLOOKUP($H32,TS3L4_CPU,12,FALSE)) -> L7N02 | U32: =IF(K23=1,"AMD EPYC 7313 3.0GHz, 16C/32T, 128M Cache (155W) DDR4-3200",H32) -> AMD EPYC 7313 3.0GHz, 16C/32T, 128M Cache (155W) DDR4-3200
S33: =IF(J33="TS3L4-CPU","L4N02",0) -> 0 | U33: =VLOOKUP($S$32,Tabella_prezzi!$A$1:$L$382,4,FALSE) -> 680.84 | V33: =VLOOKUP($S$32,Tabella_prezzi!$A$1:$L$382,7,FALSE) -> 1
H34: Memory Capacity (GB) | K34: =IF(AND(K32=0,H35>512),"Selezionare Quantità RAM Corretta","") -> 
H35: 256 | J35: =IFERROR(U35,"TS3L4-RAM64") -> TS4L7-WINSRVSTD | K35: =IFERROR(V35,IF($U$20="VxFlex",5,1)) -> 0 | M35: =Q35 -> 0 | Q35: =IFERROR(W35,444) -> 0 | S35: =IFERROR(X35,"L4N04") -> L7N03 | U35: =IF($K$32=1,VLOOKUP($H$35,ConfigurationTS3L4!A45:M65,13,FALSE),VLOOKUP($H$35,TS3L4_RAM1CPU,13,FALSE)) -> TS4L7-WINSRVSTD | V35: =IF($K$32=1,VLOOKUP($H$35,ConfigurationTS3L4!A45:M65,7,FALSE),VLOOKUP($H$35,TS3L4_RAM1CPU,7,FALSE)) -> 0 | W35: =IF($K$32=1,VLOOKUP($H$35,ConfigurationTS3L4!A45:M65,10,FALSE),VLOOKUP($H$35,TS3L4_RAM1CPU,10,FALSE)) -> 0 | X35: =IF($K$32=1,VLOOKUP($H$35,ConfigurationTS3L4!A45:M65,12,FALSE),VLOOKUP($H$35,TS3L4_RAM1CPU,12,FALSE)) -> L7N03 | Z35: 384GB | AA35: =IF(U20="VxFlex",0,1) -> 1 | AB35: =IF(U20="VxFlex",VLOOKUP(H35,ConfigurationTS3L4!A69:A72,1,FALSE),"192GB") -> 192GB | AC35: =IFERROR(AB35,1) -> 192GB | AD35: =IF(H35="256",1,0) -> 0 | AE35: =AD35*K23 -> 0
H37: Operating System STANDARD | K37: =IF(AND(K32=0,K38>3),"Selezionare Numero Corretto di Licenze",IF(AND(H38="Ubuntu Server 22.04 LTS 64 Bit",K38>1),"Selezionare Numero Corretto di Licenze","")) -> 
H38: No Operating System | J38: =VLOOKUP($H$38,TS3L4_OS,13,FALSE) ->  | M38: =Q38 -> 0 | Q38: =VLOOKUP($H$38,TS3L4_OS,10,FALSE)*K38 -> 0 | R38: =VLOOKUP($H$38,TS3L4_OS,11,FALSE) -> 0 | S38: =VLOOKUP($H38,TS3L4_ALL,12,FALSE) -> 
H39: Windows Server 2022 Standard Edition, Add License,2CORE | J39: =VLOOKUP($H$39,TS3L4_OS,13,FALSE) -> TS4L7-WINSRV2C | M39: =Q39 -> 0 | Q39: =VLOOKUP($H$39,TS3L4_OS,10,FALSE)*K39 -> 0 | R39: =VLOOKUP($H$38,TS3L4_OS,11,FALSE) -> 0 | S39: =VLOOKUP($H39,TS3L4_ALL,12,FALSE) -> L7N26
H42: Operating System Device CAL / User CAL
H43: 1-pack of Windows Server 2022/2019 Device CALs (STD or DC) | J43: =VLOOKUP($H$43,ConfigurationTS3L4!A79:W80,13,FALSE) -> TS4L7-WINDEVCAL | M43: =Q43 -> 0 | Q43: =VLOOKUP($H$43,ConfigurationTS3L4!A79:N80,10,FALSE)*K43 -> 0 | R43: =VLOOKUP($H$38,TS3L4_OS,11,FALSE) -> 0 | S43: =VLOOKUP($H43,TS3L4_ALL,12,FALSE) -> L7N24
H44: 1-pack of Windows Server 2022/2019 User CALs (STD or DC) | J44: =VLOOKUP($H$44,ConfigurationTS3L4!A80:W81,13,FALSE) -> TS4L7-WINUSRCAL | M44: =Q44 -> 0 | Q44: =VLOOKUP($H$44,ConfigurationTS3L4!A80:N81,10,FALSE)*K44 -> 0 | R44: =VLOOKUP($H$38,TS3L4_OS,11,FALSE) -> 0 | S44: =VLOOKUP($H44,TS3L4_ALL,12,FALSE) -> L7N25
H46: Disk Controller
F47: =IF($J$23="TS3L4-VSAN","vSAN HCL","") ->  | H47: PERC H745 Controller | J47: =IF(H23="Chassis with Up to 24 x 2.5'' Hard Drives for 2CPU Configuration","TS3L4-HBA335i-L",IF(U20="VxFlex","TS3L4-HBA355i-L",VLOOKUP($H47,TS3L4_CRTL,13,FALSE))) -> 0 | K47: =IF(H23="Chassis with Up to 24 x 2.5'' Hard Drives for 2CPU Configuration","1",IF(U20="VxFlex","1",VLOOKUP($H47,TS3L4_CRTL,7,FALSE))) ->  | Q47: =IF(H47=ConfigurationTS3L4!A48,0,VLOOKUP($H47,TS3L4_CRTL,10,FALSE)) -> 0 | R47: =IF(H23="Chassis with Up to 24 x 2.5'' Hard Drives for 2CPU Configuration",180,IF(U20="VxFlex",180,IF(M5="",0,VLOOKUP($H47,TS3L4_CRTL,11,FALSE)))) -> 0 | S47: =IF(H23="Chassis with Up to 24 x 2.5'' Hard Drives for 2CPU Configuration","L4N34",IF(U20="VxFlex","L4N34",IF(M5="","",VLOOKUP($H47,TS3L4_ALL,12,FALSE)))) -> L7N44 | U47: =IF(J47="TS3L4-HBA330-L",1,0) -> 0 | V47: =IF(H47="PERC H740P RAID Controller, 8GB NV Cache",1,0) -> 0 | W47: =IF(X47=1,X47*U47,V47*U47) -> 0 | X47: =IF(M5="",1,0) -> 0
H49: Hard Drivers Bays n° 16 - 2 bay occupate dai dischi 960GB SSD di base | J49: Usati | K49: Disponibili | T49: =IF(H23="Chassis with Up to 24 x 2.5'' Hard Drives for 2CPU Configuration",ConfigurationTS3L4!$A$126,IF($M$5="",ConfigurationTS3L4!$A$125,ConfigurationTS3L4!$A$125:$A$126)) -> 
J50: =K52+K54+K56+K62+K64+K58+K60 -> 2 | K50: =16-J50 -> 14
F52: =IF($J$23="TS3L4-VSAN","vSAN HCL","") ->  | H52: =ConfigurationTS3L4!A86 -> 2.4TB 10k SAS ISE 12Gbps | J52: =VLOOKUP($H52,TS3L4_HDD,13,FALSE) -> TS4L7-HDD2TB | M52: =Q52 -> 0 | Q52: =VLOOKUP($H52,TS3L4_HDD,10,FALSE)*K52 -> 0 | R52: =VLOOKUP($H52,TS3L4_HDD,11,FALSE) -> 0 | S52: =VLOOKUP($H52,TS3L4_ALL,12,FALSE) -> L7N12
F54: =IF($J$23="TS3L4-VSAN","vSAN HCL","") ->  | H54: =ConfigurationTS3L4!A87 -> 1.2TB 10K RPM SAS ISE 12Gbps | J54: =VLOOKUP($H54,TS3L4_HDD,13,FALSE) -> TS4L7-HDD1TB | M54: =Q54 -> 0 | Q54: =VLOOKUP($H54,TS3L4_HDD,10,FALSE)*K54 -> 0 | R54: =VLOOKUP($H54,TS3L4_HDD,11,FALSE) -> 0 | S54: =VLOOKUP($H54,TS3L4_ALL,12,FALSE) -> L7N13
F56: =IF($J$23="TS3L4-VSAN","vSAN HCL","") ->  | H56: =ConfigurationTS3L4!A88 -> 3.84TB SSD SAS ISE RI 12Gbps | J56: =VLOOKUP($H56,TS3L4_HDD,13,FALSE) -> TS4L7-SSD-RI3,8TB | M56: =Q56 -> 0 | Q56: =VLOOKUP($H56,TS3L4_HDD,10,FALSE)*K56 -> 0 | R56: =VLOOKUP($H56,TS3L4_HDD,11,FALSE) -> 0 | S56: =VLOOKUP($H56,TS3L4_ALL,12,FALSE) -> L7N14
F58: =IF($J$23="TS3L4-VSAN","vSAN HCL","") ->  | H58: =ConfigurationTS3L4!A89 -> 1.92TB SSD SAS ISE RI 12Gbps | J58: =VLOOKUP($H58,TS3L4_HDD,13,FALSE) -> TS4L7-SSD-RI1,6TB | M58: =Q58 -> 0 | Q58: =IF(K58>2,(VLOOKUP($H58,TS3L4_HDD,10,FALSE)*(K58-2)),0) -> 0 | R58: =VLOOKUP($H58,TS3L4_HDD,11,FALSE) -> 0 | S58: =VLOOKUP($H58,TS3L4_ALL,12,FALSE) -> L7N16
F60: =IF($J$23="TS3L4-VSAN","vSAN HCL","") ->  | H60: =ConfigurationTS3L4!A90 -> 1.6TB SSD SAS ISE MU 12Gbp | J60: =VLOOKUP($H60,TS3L4_HDD,13,FALSE) -> TS4L7-SSD-MU1,6TB | M60: =Q60 -> 0 | Q60: =VLOOKUP($H60,TS3L4_HDD,10,FALSE)*K60 -> 0 | R60: =VLOOKUP($H60,TS3L4_HDD,11,FALSE) -> 0 | S60: =VLOOKUP($H60,TS3L4_ALL,12,FALSE) -> L7N17
F62: =IF($J$23="TS3L4-VSAN","vSAN HCL","") ->  | H62: =ConfigurationTS3L4!A91 -> 960GB SSD SAS ISE RI 12Gbps | J62: =VLOOKUP($H62,TS3L4_HDD,13,FALSE) -> TS4L7-SSD-RI800GB | K62: 2 | M62: =Q62 -> 0 | Q62: =IF(K62>2,(VLOOKUP($H62,TS3L4_HDD,10,FALSE)*(K62-2)),0) -> 0 | R62: =VLOOKUP($H62,TS3L4_HDD,11,FALSE)*K62 -> 0 | S62: =VLOOKUP($H62,TS3L4_ALL,12,FALSE) -> L7N18
F64: =IF($J$23="TS3L4-VSAN","vSAN HCL","") ->  | H64: =ConfigurationTS3L4!A92 -> 800GB SSD SAS ISE Mix Use 12Gbps | J64: =VLOOKUP($H64,TS3L4_HDD,13,FALSE) -> TS4L7-SSD-MU800GB | M64: =Q64 -> 0 | Q64: =VLOOKUP($H64,TS3L4_HDD,10,FALSE)*K64 -> 0 | R64: =VLOOKUP($H64,TS3L4_HDD,11,FALSE)*K64 -> 0 | S64: =VLOOKUP($H64,TS3L4_ALL,12,FALSE) -> L7N19
H66: BOSS controller card
H67: No Boss card | J67: =IF(R67>0,VLOOKUP($H67,TS3L4_ISDM,13,FALSE),"") ->  | K67: =VLOOKUP($H67,TS3L4_ISDM,7,FALSE) ->  | Q67: =VLOOKUP($H67,TS3L4_ISDM,10,FALSE) -> 0 | R67: =VLOOKUP($H67,TS3L4_ISDM,11,FALSE) -> 0 | S67: =VLOOKUP($H67,TS3L4_ALL,12,FALSE) -> 
F70: =IF(M70="","",T71) ->  | H70: Power Supply | I70: =IF(M70="","",T71) -> 
H71: =ConfigurationTS3L4!A101 -> Dual, Hot-Plug, Power Supply 2400W Redundant, D | J71: =VLOOKUP($H71,TS3L4_PSU,13,FALSE) -> TS4L7-PSU2400W | K71: =VLOOKUP($H71,TS3L4_PSU,7,FALSE) -> 1 | Q71: =VLOOKUP($H71,TS3L4_PSU,10,FALSE) -> 0 | R71: =VLOOKUP($H71,TS3L4_PSU,11,FALSE) -> 0 | S71: =VLOOKUP($H71,TS3L4_ALL,12,FALSE) -> L7N49 | T71: ⚠ | U71: =IF(M70="",ConfigurationTS3L4!A565,ConfigurationTS3L4!A566) -> _C14C13
H73: Embedded Systems Management
H74: iDRAC9,Enterprise
T77: =IF($J$23="TS3L4-GPUDW","1",IF($J$23="TS3L4-GPUSW","20",IF($K$32=1,"300","4000"))) -> 300 | U77: =IF($J$23="TS3L4-GPUDW","DW",IF($J$23="TS3L4-GPUSW","SW",IF($J$23="TS3L4-PWRFLEX","PX",IF($K$32=1,"2CPU","1CPU")))) -> 2CPU
H78: PCI Slot 1 Processor 1 x8 PCIe Gen4 for HL/FH | U78: =IF(U77="DW","DW",IF(U77="SW","SW",0)) -> 0 | V78: Selected | W78: 1CPU | X78: 2CPU | Y78: PX | Z78: DW | AA78: SW
J79: =IF($U$20="VxFlex","TS3L4-MCX4DP",VLOOKUP($H79,TS3L4_ALL,13,)) ->  | K79: =IF($U$20="VxFlex",1,VLOOKUP($H79,TS3L4_ALL,7,FALSE)) ->  | M79: =Q79 -> 0 | Q79: =VLOOKUP($H79,TS3L4_ALL,10,FALSE) -> 0 | R79: =IF($U$20="VxFlex",419,VLOOKUP($H79,TS3L4_ALL,11,FALSE)) -> 0 | S79: =IF($U$20="VxFlex","L4N94",VLOOKUP($H79,TS3L4_ALL,12,FALSE)) ->  | U79: =IF(S79="L4N56","DW",IF(S79="L4N57","DW",IF(S79="L4N58","DW",IF(S79="L4N55","SW","CPU")))) -> CPU | V79: =HLOOKUP($N$77,$R$78:$V$101,2,FALSE) -> CPU | W79: TS3L2_PCI_A | X79: TS3L2_PCI_A | Y79: TS3L2_PCI_A | Z79: TS3L2_PCI_A | AA79: TS3L2_PCI_A | AC79: PCI-1 | AD79: =IF($U$77="SW",ConfigurationTS3L4!$A$329:$A$348,IF($U$77="DW",ConfigurationTS3L4!$A$278:$A$301,ConfigurationTS3L4!$A$198:$A$220)) -> 
M80: =IF(S79="L4N33",IF($T$100>1,"ERRORE: SOLO UNA BOSS CARD PUO' ESSERE CONFIGURATA",""),"") ->  | V80: =HLOOKUP($N$77,$R$78:$V$101,3,FALSE) -> 0 | W80: =VLOOKUP(H79,TS3L4_PCI_A,12,FALSE) ->  | X80: =VLOOKUP(H79,TS3L4_PCI_A,12,FALSE) ->  | Y80: =VLOOKUP(H79,TS3L4_PCI_A,12,FALSE) ->  | Z80: =VLOOKUP(H79,TS3L4_PCI_A,12,FALSE) ->  | AA80: =VLOOKUP(H79,TS3L4_PCI_A,12,FALSE) -> 
H81: PCI Slot 2 Processor 1 x16 PCIe Gen4 for DW/FH
H82: AMD MI100,300W PCIe, 32GB Passive, Double Wide, GPU | J82: =VLOOKUP($H82,TS3L4_ALL,13,FALSE) -> TS4L7-GPU | K82: =IF(H20="PowerEdge R7525 Server (General Purpose)","",VLOOKUP($H82,TS3L4_ALL,7,FALSE)) -> 1 | M82: =Q82 -> 6264.37 | Q82: =VLOOKUP($H82,TS3L4_ALL,10,FALSE) -> 6264.37 | R82: =VLOOKUP($H82,TS3L4_ALL,11,FALSE) -> 0 | S82: =VLOOKUP($H82,TS3L4_ALL,12,FALSE) -> L7N15 | T82: =IF(K82="","OK",IF(U82+K82=2,"Errore","OK")) -> OK | U82: =IF(U79="dw",1,0) -> 0 | V82: =HLOOKUP($N$77,$R$78:$V$101,5,FALSE) -> 0 | W82: TS3L2_PCI_A | X82: TS3L2_PCI_A | Y82: TS3L2_PCI_A | Z82: TS3L2_PCI_A | AA82: TS3L2_PCI_A | AC82: PCI-2
V83: =HLOOKUP($N$77,$R$78:$V$101,6,FALSE) -> 0 | W83: =VLOOKUP(H82,TS3L4_PCI_A,12,FALSE) ->  | X83: =VLOOKUP(H82,TS3L4_PCI_A,12,FALSE) ->  | Y83: =VLOOKUP(H82,TS3L4_PCI_A,12,FALSE) ->  | Z83: =VLOOKUP(H82,TS3L4_PCI_A,12,FALSE) ->  | AA83: =VLOOKUP(H82,TS3L4_PCI_A,12,FALSE) -> 
H84: PCI Slot 3 Processor 1 x16 PCIe Gen4 for HL/LP
J85: =VLOOKUP($H85,TS3L4_ALL,13,FALSE) ->  | K85: =VLOOKUP($H85,TS3L4_ALL,7,FALSE) ->  | M85: =Q85 -> 0 | Q85: =IF($U$20="VxFlex",748,VLOOKUP($H85,TS3L4_ALL,11,FALSE)) -> 0 | R85: =VLOOKUP($H85,TS3L4_ALL,11,FALSE) -> 0 | S85: =IF($U$20="VxFlex","L4N33",VLOOKUP($H85,TS3L4_ALL,12,FALSE)) ->  | V85: =HLOOKUP($N$77,$R$78:$V$101,8,FALSE) -> 0 | W85: TS3L2_PCI_A | X85: TS3L2_PCI_A | Y85: TS3L2_PCI_A | Z85: TS3L2_PCI_A | AA85: TS3L2_PCI_A | AC85: PCI-3
V86: =HLOOKUP($N$77,$R$78:$V$101,9,FALSE) -> 0 | W86: =VLOOKUP(H85,TS3L4_PCI_A,12,FALSE) ->  | X86: =VLOOKUP(H85,TS3L4_PCI_A,12,FALSE) ->  | Y86: =VLOOKUP(H85,TS3L4_PCI_A,12,FALSE) ->  | Z86: =VLOOKUP(H85,TS3L4_PCI_A,12,FALSE) ->  | AA86: =VLOOKUP(H85,TS3L4_PCI_A,12,FALSE) -> 
H87: PCI Slot 4 Processor 2 x8 PCIe Gen4 for HL/FH | I87: =IF($U$77="SW","GPU Slot",IF($U$77="DW","GPU Slot","")) -> 
J88: =VLOOKUP($H88,TS3L4_ALL,13,FALSE) ->  | K88: =VLOOKUP($H88,TS3L4_ALL,7,FALSE) ->  | M88: =Q88 -> 0 | Q88: =VLOOKUP($H88,TS3L4_ALL,10,FALSE) -> 0 | R88: =VLOOKUP($H88,TS3L4_ALL,11,FALSE) -> 0 | S88: =VLOOKUP($H88,TS3L4_ALL,12,FALSE) ->  | U88: =IF(S88="L4N56","DW",IF(S88="L4N57","DW",IF(S88="L4N108","DW",IF(S88="L4N55","SW",1)))) -> 1 | V88: =HLOOKUP($N$77,$R$78:$V$101,11,FALSE) -> 1 | W88: - | X88: TS3L2_PCI_B | Y88: TS3L2_PCI_I | Z88: TS3L2_PCI_F | AA88: TS3L2_PCI_H | AC88: PCI-4
M89: =IF(S88="L4N33",IF($T$100>1,"ERRORE: SOLO UNA BOSS CARD PUO' ESSERE CONFIGURATA",""),"") ->  | V89: =HLOOKUP($N$77,$R$78:$V$101,12,FALSE) -> 0 | W89: =VLOOKUP(H88,TS3L4_PCI_A,12,FALSE) ->  | X89: =VLOOKUP(H88,TS3L4_PCI_B,12,FALSE) ->  | Y89: =VLOOKUP(H88,TS3L4_PCI_I,12,FALSE) ->  | Z89: =VLOOKUP(H88,TS3L4_PCI_F,12,FALSE) ->  | AA89: =VLOOKUP(H88,TS3L4_PCI_H,12,FALSE) -> 
H90: PCI Slot 5 Processor 2 x16 PCIe Gen4 for DW/FH
H91: AMD MI100,300W PCIe, 32GB Passive, Double Wide, GPU | J91: =VLOOKUP($H91,TS3L4_ALL,13,FALSE) -> TS4L7-GPU | K91: =IF(H20="PowerEdge R7525 Server (General Purpose)","",VLOOKUP($H91,TS3L4_ALL,7,FALSE)) -> 1 | M91: =Q91 -> 6264.37 | Q91: =VLOOKUP($H91,TS3L4_ALL,10,FALSE) -> 6264.37 | R91: =VLOOKUP($H91,TS3L4_ALL,11,FALSE) -> 0 | S91: =VLOOKUP($H91,TS3L4_ALL,12,FALSE) -> L7N15 | T91: =IF(K91="","OK",IF(U91+K91=2,"Errore","OK")) -> OK | U91: =IF(U88="dw",1,0) -> 0 | V91: =HLOOKUP($N$77,$R$78:$V$101,14,FALSE) -> 0 | W91: - | X91: TS3L2_PCI_A | Y91: TS3L2_PCI_I | Z91: TS3L2_PCI_A | AA91: TS3L2_PCI_L | AC91: PCI-5
V92: =HLOOKUP($N$77,$R$78:$V$101,15,FALSE) -> 0 | W92: =VLOOKUP(H91,TS3L4_PCI_A,12,FALSE) ->  | X92: =VLOOKUP(H91,TS3L4_PCI_A,12,FALSE) ->  | Y92: =VLOOKUP(H91,TS3L4_PCI_I,12,FALSE) ->  | Z92: =VLOOKUP(H91,TS3L4_PCI_A,12,FALSE) ->  | AA92: =VLOOKUP(H91,TS3L4_PCI_L,12,FALSE) -> 
H93: PCI Slot 6 Processor 2 x16 PCIe Gen4 for HL/LP
J94: =VLOOKUP($H94,TS3L4_ALL,13,FALSE) ->  | K94: =IF($U$20="VxFlex",1,VLOOKUP($H94,TS3L4_ALL,7,FALSE)) ->  | M94: =Q94 -> 0 | Q94: =IF($U$20="VxFlex",419,VLOOKUP($H94,TS3L4_ALL,11,FALSE)) -> 0 | S94: =VLOOKUP($H94,TS3L4_ALL,12,FALSE) ->  | V94: =HLOOKUP($N$77,$R$78:$V$101,17,FALSE) -> 0 | W94: TS3L2_PCI_C | X94: TS3L2_PCI_C | Y94: TS3L2_PCI_C | Z94: TS3L2_PCI_C | AA94: TS3L2_PCI_C | AC94: PCI-6
V95: =HLOOKUP($N$77,$R$78:$V$101,18,FALSE) -> 0 | W95: =VLOOKUP(H94,TS3L4_PCI_C,12,FALSE) ->  | X95: =VLOOKUP(H94,TS3L4_PCI_C,12,FALSE) ->  | Y95: =VLOOKUP(H94,TS3L4_PCI_C,12,FALSE) ->  | Z95: =VLOOKUP(H94,TS3L4_PCI_C,12,FALSE) ->  | AA95: =VLOOKUP(H94,TS3L4_PCI_C,12,FALSE) -> 
H96: PCI Slot 7 Processor 2 x16 PCIe Gen4 for DW/FH
J97: =VLOOKUP($H97,TS3L4_ALL,13,FALSE) ->  | K97: =IF(H20="PowerEdge R7525 Server (General Purpose)","",VLOOKUP($H97,TS3L4_ALL,7,FALSE)) ->  | M97: =Q97 -> 0 | Q97: =VLOOKUP($H97,TS3L4_ALL,10,FALSE) -> 0 | R97: =VLOOKUP($H97,TS3L4_ALL,11,FALSE) -> 0 | S97: =VLOOKUP($H97,TS3L4_ALL,12,FALSE) ->  | T97: =IF(K97="","OK",IF(U97+K97=2,"Errore","OK")) -> OK | U97: =IF(U100="dw",1,0) -> 0 | V97: =HLOOKUP($N$77,$R$78:$V$101,20,FALSE) -> 0 | W97: - | X97: TS3L2_PCI_A | Y97: TS3L2_PCI_I | Z97: TS3L2_PCI_A | AA97: TS3L2_PCI_L | AC97: PCI-7
M98: =IF(S97="L4N33",IF($T$100>1,"ERRORE: SOLO UNA BOSS CARD PUO' ESSERE CONFIGURATA",""),"") ->  | V98: =HLOOKUP($N$77,$R$78:$V$101,21,FALSE) -> 0 | W98: =VLOOKUP(H97,TS3L4_PCI_A,12,FALSE) ->  | X98: =VLOOKUP(H97,TS3L4_PCI_A,12,FALSE) ->  | Y98: =VLOOKUP(H97,TS3L4_PCI_I,12,FALSE) ->  | Z98: =VLOOKUP(H97,TS3L4_PCI_A,12,FALSE) ->  | AA98: =VLOOKUP(H97,TS3L4_PCI_L,12,FALSE) -> 
H99: PCI Slot 9 Processor 1 x16 | T99: boss card
J100: =VLOOKUP($H100,TS3L4_ALL,13,FALSE) ->  | K100: =VLOOKUP($H100,TS3L4_ALL,7,FALSE) ->  | M100: =Q100 -> 0 | Q100: =VLOOKUP($H100,TS3L4_ALL,10,FALSE) -> 0 | R100: =VLOOKUP($H100,TS3L4_ALL,11,FALSE) -> 0 | S100: =VLOOKUP($H100,TS3L4_ALL,12,FALSE) ->  | T100: =COUNTIF(S79:S100,"L4N33") -> 0 | U100: =IF(S100="L4N56","DW",IF(S100="L4N57","DW",IF(S100="L4N108","DW",IF(S100="L4N55","SW",1)))) -> 1 | V100: =HLOOKUP($N$77,$R$78:$V$101,23,FALSE) -> 1 | W100: - | X100: TS3L2_PCI_D | Y100: TS3L2_PCI_I | Z100: TS3L2_PCI_E | AA100: TS3L2_PCI_G | AC100: PCI-8
M101: =IF(S100="L4N33",IF($T$100>1,"ERRORE: SOLO UNA BOSS CARD PUO' ESSERE CONFIGURATA",""),"") ->  | V101: =HLOOKUP($N$77,$R$78:$V$101,24,FALSE) -> 0 | W101: =VLOOKUP(H100,TS3L4_PCI_A,12,FALSE) ->  | X101: =VLOOKUP(H100,TS3L4_PCI_D,12,FALSE) ->  | Y101: =VLOOKUP(H100,TS3L4_PCI_I,12,FALSE) ->  | Z101: =VLOOKUP(H100,TS3L4_PCI_E,12,FALSE) ->  | AA101: =VLOOKUP(H100,TS3L4_PCI_G,12,FALSE) -> 
H102: SFP+ Transceivers
H103: Transceiver, SFP+ SR Optic for SFP+ ports (Intel X710) | J103: =IF(R103>0,VLOOKUP($H103,ConfigurationTS3L4!$A$1:$M$4870,13,FALSE),"") ->  | Q103: 0 | R103: =IF(K103>0,VLOOKUP($H103,TS3L4_ALL,11,FALSE)*(K103),0) -> 0 | S103: =IF(K103>0,VLOOKUP($H103,TS3L4_ALL,12,FALSE),0) -> 0
H105: SFP+ Direct Attach Cables (Twinax)
H106: Cable, SFP+ to SFP+, 10GbE, Copper Twinax Direct Attach Cable, 3 Meter | J106: =IF(R106>0,VLOOKUP($H106,ConfigurationTS3L4!$A$1:$M$4870,13,FALSE),"") ->  | Q106: 0 | R106: =IF(K106>0,VLOOKUP($H106,TS3L4_ALL,11,FALSE)*K106,0) -> 0 | S106: =IF(K106>0,VLOOKUP($H106,TS3L4_ALL,12,FALSE),0) -> 0
H108: QSFP28 Transceivers
H109: Dell EMC PowerEdge QSFP28 SR4 100GbE 85C optic | J109: =IF(R109>0,VLOOKUP($H109,ConfigurationTS3L4!$A$1:$M$4870,13,FALSE),"") ->  | Q109: 0 | R109: =IF(K109>0,VLOOKUP($H109,TS3L4_ALL,11,FALSE)*K109,0) -> 0 | S109: =IF(K109>0,VLOOKUP($H109,TS3L4_ALL,12,FALSE),0) -> 0
H111: Mellanox LinkX 100Gb/s Passive Copper Cables
H112: Mellanox LinkX 100Gb/s Passive Copper Cables - attacco cavo diretto - 3 m - nero | J112: =IF(R112>0,VLOOKUP($H112,ConfigurationTS3L4!$A$1:$M$4870,13,FALSE),"") ->  | Q112: 0 | R112: =IF(K112>0,VLOOKUP($H112,TS3L4_ALL,11,FALSE)*K112,0) -> 0 | S112: =IF(K112>0,VLOOKUP($H112,TS3L4_ALL,12,FALSE),0) -> 0
H114: Mellanox LinkX 100Gb/s VCSEL-Based Active Optical Cables - cavo InfiniBand - 10 m | J114: =IF(R114>0,VLOOKUP($H114,ConfigurationTS3L4!$A$1:$M$4870,13,FALSE),"") ->  | Q114: 0 | R114: =IF(K114>0,VLOOKUP($H114,TS3L4_ALL,11,FALSE)*K114,0) -> 0 | S114: =IF(K114>0,VLOOKUP($H114,TS3L4_ALL,12,FALSE),0) -> 0
H116: Cavi RJ45
H117: Cavo “patch” di 3 mt RJ45 certificato per gigabit ethernet | J117: =IF(R117>0,VLOOKUP($H117,ConfigurationTS3L4!$A$1:$M$4870,13,FALSE),"") ->  | Q117: 0 | R117: =IF(K117>0,VLOOKUP($H117,TS3L4_ALL,11,FALSE)*(K117),0) -> 0 | S117: =IF(K117>0,VLOOKUP($H117,TS3L4_ALL,12,FALSE),0) -> 0
H119: Cavi LC-LC
H120: Dell Networking Cable, OM4 LC/LC Fiber Cable, 3 Meter | J120: =IF(R120>0,VLOOKUP($H120,ConfigurationTS3L4!$A$1:$M$4870,13,FALSE),"") ->  | Q120: 0 | R120: =IF(K120>0,VLOOKUP($H120,TS3L4_ALL,11,FALSE)*(K120),0) -> 0 | S120: =IF(K120>0,VLOOKUP($H120,TS3L4_ALL,12,FALSE),0) -> 0
H122: Cavi DAC
H123: Dell Networking, Cable, SFP+ to SFP+, 10GbE, Copper Twinax Direct Attach Cable, 3 Meter | J123: =IF(R123>0,VLOOKUP($H123,ConfigurationTS3L4!$A$1:$M$4870,13,FALSE),"") ->  | Q123: 0 | R123: =IF(K123>0,VLOOKUP($H123,TS3L4_ALL,11,FALSE)*(K123),0) -> 0 | S123: =IF(K123>0,VLOOKUP($H123,TS3L4_ALL,12,FALSE),0) -> 0
H124: Mellanox LinkX 100Gb/s Passive Copper DAC 3m per scheda TS3L4-CONX6DP | J124: =IF(R124>0,VLOOKUP($H124,ConfigurationTS3L4!$A$1:$M$4870,13,FALSE),"") ->  | Q124: 0 | R124: =IF(K124>0,VLOOKUP($H124,TS3L4_ALL,11,FALSE)*(K124),0) -> 0 | S124: =IF(K124>0,VLOOKUP($H124,TS3L4_ALL,12,FALSE),0) -> 0
H125: Dell Cable SFP28 to SFP28 25GbE Passive Copper Twinax Direct Attach Cable 3 Meter | J125: =IF(R125>0,VLOOKUP($H125,ConfigurationTS3L4!$A$1:$M$4870,13,FALSE),"") ->  | Q125: 0 | R125: =IF(K125>0,VLOOKUP($H125,TS3L4_ALL,11,FALSE)*(K125),0) -> 0 | S125: =IF(K125>0,VLOOKUP($H125,TS3L4_ALL,12,FALSE),0) -> 0
V126: =IF($U$20="VxFlex",ConfigurationTS3L4!$A$275,IF($U$100="DW",ConfigurationTS3L4!$A$372,IF($U$77="1CPU",ConfigurationTS3L4!$A$105:$A$106,ConfigurationTS3L4!$A$198:$A$220))) -> 
H127: Cable Management Arm
H128: No | J128: =IF($U$20="VxFlex","TS3L4-BZLSTD",VLOOKUP($H128,TS3L4_ALL,13,)) ->  | K128: =IF($U$20="VxFlex",1,VLOOKUP($H128,TS3L4_ALL,7,FALSE)) ->  | Q128: =VLOOKUP($H128,TS3L4_ALL,10,FALSE) -> 0 | R128: =IF($U$20="VxFlex",42,VLOOKUP($H128,TS3L4_ALL,11,FALSE)) -> 0 | S128: =IF($U$20="VxFlex","L4N69",VLOOKUP($H128,TS3L4_ALL,12,FALSE)) -> 
H130: Bezel
H131: No Bezel | J131: =IF($U$20="VxFlex","TS3L4-BZLSTD",VLOOKUP($H131,TS3L4_ALL,13,)) ->  | K131: =IF($U$20="VxFlex",1,VLOOKUP($H131,TS3L4_ALL,7,FALSE)) ->  | Q131: =VLOOKUP($H131,TS3L4_ALL,10,FALSE) -> 0 | R131: =IF($U$20="VxFlex",42,VLOOKUP($H131,TS3L4_ALL,11,FALSE)) -> 0 | S131: =IF($U$20="VxFlex","L4N69",VLOOKUP($H131,TS3L4_ALL,12,FALSE)) -> 
H133: Garanzia
H134: Estensione della manutenzione in garanzia per ulteriori 24 mesi | J134: =VLOOKUP($H134,TS3L4_WARRANTY,13,FALSE) -> TS4L7-OpzEst24 | K134: =VLOOKUP($H134,TS3L4_ALL,7,FALSE) -> 1 | M134: =Q134 -> 183.01 | Q134: =VLOOKUP($H134,TS3L4_WARRANTY,10,FALSE) -> 183.01 | R134: =VLOOKUP($H134,TS3L4_WARRANTY,11,FALSE) -> 0 | S134: =VLOOKUP($H134,TS3L4_ALL,12,FALSE) -> L7N29
H136: Garanzia GPU | K136: =IF(AND(H137="Estensione della manutenzione GPU in garanzia per ulteriori 24 mesi",K134=""),"Selezionare estensione garanzia 60 Mesi","") -> 
H137: Estensione della manutenzione GPU in garanzia per ulteriori 24 mesi | J137: =VLOOKUP($H137,TS4L7_GPUWAR,13,FALSE) -> TS4L7-OpzEst24GPU | K137: =IF(K134="",0,IF(S137="",0,U137)) -> 2 | M137: =Q137 -> 231.08 | Q137: =IF(H20="PowerEdge R7525 Server (General Purpose)",0,IF(K134="",0,VLOOKUP($H137,TS4L7_GPUWAR,10,FALSE)))*K137 -> 231.08 | R137: =VLOOKUP($H137,TS4L7_GPUWAR,11,FALSE) -> 0 | S137: =VLOOKUP($H137,TS4L7_GPUWAR,12,FALSE) -> L7N31 | T137: L7N15 | U137: =COUNTIF(TS4L7_2,T137) -> 2
H139: Hard Disk Retention | K139: =IF(AND(H140="Hard Disk Retention 60 mesi",K134=""),"Selezionare Estensione Garanzia 60 Mesi","") -> 
H140: Hard Disk Retention 60 mesi | J140: =IFERROR(U140,VLOOKUP(H140,TS3L4_ALL,13,FALSE)) -> TS4L7-HDRTN60 | K140: =IF(H140="","",1) -> 1 | M140: =Q140 -> 41.81 | Q140: =IFERROR(V140,VLOOKUP(H140,TS3L4_ALL,10,FALSE)) -> 41.81 | R140: =IFERROR(W140,VLOOKUP(H140,TS3L4_ALL,11,FALSE)) -> 0 | S140: =IFERROR(X140,VLOOKUP(H140,TS3L4_ALL,12,FALSE)) -> L7N28b | U140: =IF(K134+K140=2,VLOOKUP("Hard Disk Retention 60 mesi",TS3L4_ALL,13,FALSE),VLOOKUP(H140,TS3L4_ALL,13,FALSE)) -> TS4L7-HDRTN60 | V140: =IF(K134+K140=2,VLOOKUP("Hard Disk Retention 60 mesi",TS3L4_ALL,10,FALSE),VLOOKUP(H140,TS3L4_ALL,10,FALSE)) -> 41.81 | W140: =IF(K134+K140=2,VLOOKUP("Hard Disk Retention (60 mesi)",TS3L4_ALL,11,FALSE),VLOOKUP(H140,TS3L4_ALL,11,FALSE)) ->  | X140: =IF(K134+K140=2,VLOOKUP("Hard Disk Retention 60 mesi",TS3L4_ALL,12,FALSE),VLOOKUP(H140,TS3L4_ALL,12,FALSE)) -> L7N28b
H143: UPS
H144: IO SONO UN UPS | J144: =VLOOKUP($H144,TS3L4_UPS,13,FALSE) ->  | K144: =VLOOKUP($H144,TS3L4_UPS,7,FALSE) ->  | Q144: =VLOOKUP($H144,TS3L4_UPS,10,FALSE) ->  | R144: =VLOOKUP($H144,TS3L4_UPS,11,FALSE) ->  | S144: =VLOOKUP($H144,TS3L4_ALL,12,FALSE) -> 
H146: Kit Graphical User Interface
J147: =VLOOKUP($H147,TS3L4_GUI,13,FALSE) ->  | K147: =VLOOKUP($H147,TS3L4_GUI,7,FALSE) ->  | Q147: =VLOOKUP($H147,TS3L4_GUI,10,FALSE) ->  | R147: =VLOOKUP($H147,TS3L4_GUI,11,FALSE) ->  | S147: =VLOOKUP($H147,TS3L4_ALL,12,FALSE) -> 
J150: Configurazione | K150: =SUM(Q20:Q140)*K6 -> 0
J151: 0.2 | K151: =SUM(R20:R140)*K6 -> 0 | M151: Quota massima 20 %
J152: Totale | K152: =SUM(K150:K151) -> 0 | M152: =K150*20%-K151 -> 0
H154: NOTE

Sheet Lotto7_R7525_3
H2: Convenzione Tecnologie Server 4 - Lotto 7 | J2: =IF(T100>1,"ERRORE NELLA CONFIGURAZIONE","") -> 
M3: Quota massima 20 %
J4: Guida alla Convenzione | K4: Totale Singola Configurazione | M4: =Riepilogo_Ordine!G59 -> 0
H5: =IF($J$23="TS4L7-VSAN","vSAN Server Ready",IF($J$23="TS4L7-GPUDW","GPU Double-Wide Server Ready",IF($J$23="TS4L7-GPUSW","GPU Single-Wide Server Ready",IF(N20="VxFlex","PowerFlex Server","")))) ->  | K5: =K152 -> 0 | M5: Totale Ordine Iva Esclusa
H6: DELL POWEREDGE R7525 GPU Ready | J6: Quantità Server | K6: 0 | M6: =Riepilogo_Ordine!J60 -> 0
H9: N° Ordine Consip | I9: Amministrazione | L9: Data
H12: Nom. Referente Consegna | I12: Email Consegna | L12: Tel.
H15: Nom. Referente Installazione | I15: Email Installazione | J15: Tel. | L15: Tel.
H19: Base | U19: PowerEdge R7525 Server (General Purpose)
H20: PowerEdge R7525 Server (GPU Double-Wide Ready) | J20: =IF($K$6>0,"TS4L7-SRV-U","") ->  | K20: =IF($K$6>0,1,"") ->  | M20: =Q20 -> 4047.7 | Q20: =IF($U$20="nVME",VLOOKUP($H$20,TS3L4_ALL,10,FALSE)*1.04,VLOOKUP($H$20,TS3L4_ALL,10,FALSE)) -> 4047.7 | S20: =VLOOKUP($H20,TS3L4_ALL,12,FALSE) -> L7N01 | U20: =IF(H20=ConfigurationTS3L4!A4,"GPU","") -> GPU | V20: =IF(H20=ConfigurationTS3L4!A11,"Vsan","") ->  | W20: =IF(J23="TS3L4-GPUSW",1,IF(J23="TS3L4-GPUDW",1,"")) -> 
H22: Chassis Configuration
H23: =IF(K32=1,VLOOKUP($H$20,TS3L4_Chassis,3,FALSE),VLOOKUP($H$20,TS3L4_Chassis,2,FALSE)) -> Chassis with Up to 16 x 2.5 Hard Drives for 2CPU, GPU Double-Wide Configuration | J23: =IF($K$32=1,VLOOKUP($H$20,TS3L4_Chassis,8,FALSE),VLOOKUP($H$20,TS3L4_Chassis,9,FALSE)) -> Kit upgrade chassies for Server GPU Double-Wide Ready | K23: =IF(H20=U19,VLOOKUP($H$20,TS3L4_Chassis,6,FALSE),VLOOKUP($H$20,TS3L4_Chassis,7,FALSE)) -> 1 | M23: =IF(J23="TS3L4-VSAN","ATTENZIONE SELEZIONARE UNA COMPONENTE PER IL BOOT A SCELTA TRA ''ISDM Module'' oppure ''BOSS Controller Card''","") ->  | Q23: =VLOOKUP($H20,TS3L4_Chassis,11,FALSE) -> 0 | S23: =VLOOKUP($H20,TS3L4_Chassis,12,FALSE) -> L7N37 | U23: Chassis with Up to 24 x 2.5'' Hard Drives for 2CPU Configuration | V23: 1
H25: Trusted Platform Module (TPM)
H26: Trusted Platform Module 2.0 V3
H28: Processor
H29: AMD EPYC 7313 3.0GHz, 16C/32T, 128M Cache (155W) DDR4-3200 | J29: =IF(K23=1,VLOOKUP($H$29,TS3L4_CPU8core,13,FALSE),VLOOKUP($H$29,TS3L4_CPU8core,13,FALSE)) ->  | K29: =IF(K23=1,VLOOKUP($H$29,TS3L4_CPU8core,7,FALSE),VLOOKUP($H$29,TS3L4_CPU8core,7,FALSE)) -> 0 | Q29: =IF(K23=1,VLOOKUP($H$29,TS3L4_CPU8core,10,FALSE),VLOOKUP($H$29,TS3L4_CPU8core,10,FALSE)) -> 0 | R29: =IF(K23=1,VLOOKUP($H$29,TS3L4_CPU8core,11,FALSE),VLOOKUP($H$29,TS3L4_CPU8core,11,FALSE)) -> 0 | S29: =IF(R29=0,0,VLOOKUP($H29,TS3L4_CPU8core,12,FALSE)) -> 0
H31: Additional Processor
H32: AMD EPYC 7313 3.0GHz, 16C/32T, 128M Cache (155W) DDR4-3200 | J32: =IF(K23=1,VLOOKUP($H$29,TS3L4_CPU,13,FALSE),VLOOKUP($H$32,TS3L4_CPU,13,FALSE)) -> TS4L7-CPU | K32: =IF(K23=1,VLOOKUP($H$29,TS3L4_CPU,7,FALSE),VLOOKUP($H$32,TS3L4_CPU,7,FALSE)) -> 1 | M32: =Q32 -> 680.84 | Q32: =IF(K23=1,VLOOKUP($H$29,TS3L4_CPU,10,FALSE),VLOOKUP($H$32,TS3L4_CPU,10,FALSE)) -> 680.84 | R32: =IF(K23=1,VLOOKUP($H$29,TS3L4_CPU,11,FALSE),VLOOKUP($H$32,TS3L4_CPU,11,FALSE)) -> 0 | S32: =IF(K23=1,VLOOKUP(H29,TS3L4_ALL,12,FALSE),VLOOKUP($H32,TS3L4_CPU,12,FALSE)) -> L7N02 | U32: =IF(K23=1,"AMD EPYC 7313 3.0GHz, 16C/32T, 128M Cache (155W) DDR4-3200",H32) -> AMD EPYC 7313 3.0GHz, 16C/32T, 128M Cache (155W) DDR4-3200
S33: =IF(J33="TS3L4-CPU","L4N02",0) -> 0 | U33: =VLOOKUP($S$32,Tabella_prezzi!$A$1:$L$382,4,FALSE) -> 680.84 | V33: =VLOOKUP($S$32,Tabella_prezzi!$A$1:$L$382,7,FALSE) -> 1
H34: Memory Capacity (GB) | K34: =IF(AND(K32=0,H35>512),"Selezionare Quantità RAM Corretta","") -> 
H35: 256 | J35: =IFERROR(U35,"TS3L4-RAM64") -> TS4L7-WINSRVSTD | K35: =IFERROR(V35,IF($U$20="VxFlex",5,1)) -> 0 | M35: =Q35 -> 0 | Q35: =IFERROR(W35,444) -> 0 | S35: =IFERROR(X35,"L4N04") -> L7N03 | U35: =IF($K$32=1,VLOOKUP($H$35,ConfigurationTS3L4!A45:M65,13,FALSE),VLOOKUP($H$35,TS3L4_RAM1CPU,13,FALSE)) -> TS4L7-WINSRVSTD | V35: =IF($K$32=1,VLOOKUP($H$35,ConfigurationTS3L4!A45:M65,7,FALSE),VLOOKUP($H$35,TS3L4_RAM1CPU,7,FALSE)) -> 0 | W35: =IF($K$32=1,VLOOKUP($H$35,ConfigurationTS3L4!A45:M65,10,FALSE),VLOOKUP($H$35,TS3L4_RAM1CPU,10,FALSE)) -> 0 | X35: =IF($K$32=1,VLOOKUP($H$35,ConfigurationTS3L4!A45:M65,12,FALSE),VLOOKUP($H$35,TS3L4_RAM1CPU,12,FALSE)) -> L7N03 | Z35: 384GB | AA35: =IF(U20="VxFlex",0,1) -> 1 | AB35: =IF(U20="VxFlex",VLOOKUP(H35,ConfigurationTS3L4!A69:A72,1,FALSE),"192GB") -> 192GB | AC35: =IFERROR(AB35,1) -> 192GB | AD35: =IF(H35="256",1,0) -> 0 | AE35: =AD35*K23 -> 0
H37: Operating System STANDARD | K37: =IF(AND(K32=0,K38>3),"Selezionare Numero Corretto di Licenze",IF(AND(H38="Ubuntu Server 22.04 LTS 64 Bit",K38>1),"Selezionare Numero Corretto di Licenze","")) -> 
H38: No Operating System | J38: =VLOOKUP($H$38,TS3L4_OS,13,FALSE) ->  | M38: =Q38 -> 0 | Q38: =VLOOKUP($H$38,TS3L4_OS,10,FALSE)*K38 -> 0 | R38: =VLOOKUP($H$38,TS3L4_OS,11,FALSE) -> 0 | S38: =VLOOKUP($H38,TS3L4_ALL,12,FALSE) -> 
H39: Windows Server 2022 Standard Edition, Add License,2CORE | J39: =VLOOKUP($H$39,TS3L4_OS,13,FALSE) -> TS4L7-WINSRV2C | M39: =Q39 -> 0 | Q39: =VLOOKUP($H$39,TS3L4_OS,10,FALSE)*K39 -> 0 | R39: =VLOOKUP($H$38,TS3L4_OS,11,FALSE) -> 0 | S39: =VLOOKUP($H39,TS3L4_ALL,12,FALSE) -> L7N26
H42: Operating System Device CAL / User CAL
H43: 1-pack of Windows Server 2022/2019 Device CALs (STD or DC) | J43: =VLOOKUP($H$43,ConfigurationTS3L4!A79:W80,13,FALSE) -> TS4L7-WINDEVCAL | M43: =Q43 -> 0 | Q43: =VLOOKUP($H$43,ConfigurationTS3L4!A79:N80,10,FALSE)*K43 -> 0 | R43: =VLOOKUP($H$38,TS3L4_OS,11,FALSE) -> 0 | S43: =VLOOKUP($H43,TS3L4_ALL,12,FALSE) -> L7N24
H44: 1-pack of Windows Server 2022/2019 User CALs (STD or DC) | J44: =VLOOKUP($H$44,ConfigurationTS3L4!A80:W81,13,FALSE) -> TS4L7-WINUSRCAL | M44: =Q44 -> 0 | Q44: =VLOOKUP($H$44,ConfigurationTS3L4!A80:N81,10,FALSE)*K44 -> 0 | R44: =VLOOKUP($H$38,TS3L4_OS,11,FALSE) -> 0 | S44: =VLOOKUP($H44,TS3L4_ALL,12,FALSE) -> L7N25
H46: Disk Controller
F47: =IF($J$23="TS3L4-VSAN","vSAN HCL","") ->  | H47: PERC H745 Controller | J47: =IF(H23="Chassis with Up to 24 x 2.5'' Hard Drives for 2CPU Configuration","TS3L4-HBA335i-L",IF(U20="VxFlex","TS3L4-HBA355i-L",VLOOKUP($H47,TS3L4_CRTL,13,FALSE))) -> 0 | K47: =IF(H23="Chassis with Up to 24 x 2.5'' Hard Drives for 2CPU Configuration","1",IF(U20="VxFlex","1",VLOOKUP($H47,TS3L4_CRTL,7,FALSE))) ->  | Q47: =IF(H47=ConfigurationTS3L4!A48,0,VLOOKUP($H47,TS3L4_CRTL,10,FALSE)) -> 0 | R47: =IF(H23="Chassis with Up to 24 x 2.5'' Hard Drives for 2CPU Configuration",180,IF(U20="VxFlex",180,IF(M5="",0,VLOOKUP($H47,TS3L4_CRTL,11,FALSE)))) -> 0 | S47: =IF(H23="Chassis with Up to 24 x 2.5'' Hard Drives for 2CPU Configuration","L4N34",IF(U20="VxFlex","L4N34",IF(M5="","",VLOOKUP($H47,TS3L4_ALL,12,FALSE)))) -> L7N44 | U47: =IF(J47="TS3L4-HBA330-L",1,0) -> 0 | V47: =IF(H47="PERC H740P RAID Controller, 8GB NV Cache",1,0) -> 0 | W47: =IF(X47=1,X47*U47,V47*U47) -> 0 | X47: =IF(M5="",1,0) -> 0
H49: Hard Drivers Bays n° 16 - 2 bay occupate dai dischi 960GB SSD di base | J49: Usati | K49: Disponibili | T49: =IF(H23="Chassis with Up to 24 x 2.5'' Hard Drives for 2CPU Configuration",ConfigurationTS3L4!$A$126,IF($M$5="",ConfigurationTS3L4!$A$125,ConfigurationTS3L4!$A$125:$A$126)) -> 
J50: =K52+K54+K56+K62+K64+K58+K60 -> 2 | K50: =16-J50 -> 14
F52: =IF($J$23="TS3L4-VSAN","vSAN HCL","") ->  | H52: =ConfigurationTS3L4!A86 -> 2.4TB 10k SAS ISE 12Gbps | J52: =VLOOKUP($H52,TS3L4_HDD,13,FALSE) -> TS4L7-HDD2TB | M52: =Q52 -> 0 | Q52: =VLOOKUP($H52,TS3L4_HDD,10,FALSE)*K52 -> 0 | R52: =VLOOKUP($H52,TS3L4_HDD,11,FALSE) -> 0 | S52: =VLOOKUP($H52,TS3L4_ALL,12,FALSE) -> L7N12
F54: =IF($J$23="TS3L4-VSAN","vSAN HCL","") ->  | H54: =ConfigurationTS3L4!A87 -> 1.2TB 10K RPM SAS ISE 12Gbps | J54: =VLOOKUP($H54,TS3L4_HDD,13,FALSE) -> TS4L7-HDD1TB | M54: =Q54 -> 0 | Q54: =VLOOKUP($H54,TS3L4_HDD,10,FALSE)*K54 -> 0 | R54: =VLOOKUP($H54,TS3L4_HDD,11,FALSE) -> 0 | S54: =VLOOKUP($H54,TS3L4_ALL,12,FALSE) -> L7N13
F56: =IF($J$23="TS3L4-VSAN","vSAN HCL","") ->  | H56: =ConfigurationTS3L4!A88 -> 3.84TB SSD SAS ISE RI 12Gbps | J56: =VLOOKUP($H56,TS3L4_HDD,13,FALSE) -> TS4L7-SSD-RI3,8TB | M56: =Q56 -> 0 | Q56: =VLOOKUP($H56,TS3L4_HDD,10,FALSE)*K56 -> 0 | R56: =VLOOKUP($H56,TS3L4_HDD,11,FALSE) -> 0 | S56: =VLOOKUP($H56,TS3L4_ALL,12,FALSE) -> L7N14
F58: =IF($J$23="TS3L4-VSAN","vSAN HCL","") ->  | H58: =ConfigurationTS3L4!A89 -> 1.92TB SSD SAS ISE RI 12Gbps | J58: =VLOOKUP($H58,TS3L4_HDD,13,FALSE) -> TS4L7-SSD-RI1,6TB | M58: =Q58 -> 0 | Q58: =IF(K58>2,(VLOOKUP($H58,TS3L4_HDD,10,FALSE)*(K58-2)),0) -> 0 | R58: =VLOOKUP($H58,TS3L4_HDD,11,FALSE) -> 0 | S58: =VLOOKUP($H58,TS3L4_ALL,12,FALSE) -> L7N16
F60: =IF($J$23="TS3L4-VSAN","vSAN HCL","") ->  | H60: =ConfigurationTS3L4!A90 -> 1.6TB SSD SAS ISE MU 12Gbp | J60: =VLOOKUP($H60,TS3L4_HDD,13,FALSE) -> TS4L7-SSD-MU1,6TB | M60: =Q60 -> 0 | Q60: =VLOOKUP($H60,TS3L4_HDD,10,FALSE)*K60 -> 0 | R60: =VLOOKUP($H60,TS3L4_HDD,11,FALSE) -> 0 | S60: =VLOOKUP($H60,TS3L4_ALL,12,FALSE) -> L7N17
F62: =IF($J$23="TS3L4-VSAN","vSAN HCL","") ->  | H62: =ConfigurationTS3L4!A91 -> 960GB SSD SAS ISE RI 12Gbps | J62: =VLOOKUP($H62,TS3L4_HDD,13,FALSE) -> TS4L7-SSD-RI800GB | K62: 2 | M62: =Q62 -> 0 | Q62: =IF(K62>2,(VLOOKUP($H62,TS3L4_HDD,10,FALSE)*(K62-2)),0) -> 0 | R62: =VLOOKUP($H62,TS3L4_HDD,11,FALSE)*K62 -> 0 | S62: =VLOOKUP($H62,TS3L4_ALL,12,FALSE) -> L7N18
F64: =IF($J$23="TS3L4-VSAN","vSAN HCL","") ->  | H64: =ConfigurationTS3L4!A92 -> 800GB SSD SAS ISE Mix Use 12Gbps | J64: =VLOOKUP($H64,TS3L4_HDD,13,FALSE) -> TS4L7-SSD-MU800GB | M64: =Q64 -> 0 | Q64: =VLOOKUP($H64,TS3L4_HDD,10,FALSE)*K64 -> 0 | R64: =VLOOKUP($H64,TS3L4_HDD,11,FALSE)*K64 -> 0 | S64: =VLOOKUP($H64,TS3L4_ALL,12,FALSE) -> L7N19
H66: BOSS controller card
H67: No Boss card | J67: =IF(R67>0,VLOOKUP($H67,TS3L4_ISDM,13,FALSE),"") ->  | K67: =VLOOKUP($H67,TS3L4_ISDM,7,FALSE) ->  | Q67: =VLOOKUP($H67,TS3L4_ISDM,10,FALSE) -> 0 | R67: =VLOOKUP($H67,TS3L4_ISDM,11,FALSE) -> 0 | S67: =VLOOKUP($H67,TS3L4_ALL,12,FALSE) -> 
F70: =IF(M70="","",T71) ->  | H70: Power Supply | I70: =IF(M70="","",T71) -> 
H71: =ConfigurationTS3L4!A101 -> Dual, Hot-Plug, Power Supply 2400W Redundant, D | J71: =VLOOKUP($H71,TS3L4_PSU,13,FALSE) -> TS4L7-PSU2400W | K71: =VLOOKUP($H71,TS3L4_PSU,7,FALSE) -> 1 | Q71: =VLOOKUP($H71,TS3L4_PSU,10,FALSE) -> 0 | R71: =VLOOKUP($H71,TS3L4_PSU,11,FALSE) -> 0 | S71: =VLOOKUP($H71,TS3L4_ALL,12,FALSE) -> L7N49 | T71: ⚠ | U71: =IF(M70="",ConfigurationTS3L4!A565,ConfigurationTS3L4!A566) -> _C14C13
H73: Embedded Systems Management
H74: iDRAC9,Enterprise
T77: =IF($J$23="TS3L4-GPUDW","1",IF($J$23="TS3L4-GPUSW","20",IF($K$32=1,"300","4000"))) -> 300 | U77: =IF($J$23="TS3L4-GPUDW","DW",IF($J$23="TS3L4-GPUSW","SW",IF($J$23="TS3L4-PWRFLEX","PX",IF($K$32=1,"2CPU","1CPU")))) -> 2CPU
H78: PCI Slot 1 Processor 1 x8 PCIe Gen4 for HL/FH | U78: =IF(U77="DW","DW",IF(U77="SW","SW",0)) -> 0 | V78: Selected | W78: 1CPU | X78: 2CPU | Y78: PX | Z78: DW | AA78: SW
J79: =IF($U$20="VxFlex","TS3L4-MCX4DP",VLOOKUP($H79,TS3L4_ALL,13,)) ->  | K79: =IF($U$20="VxFlex",1,VLOOKUP($H79,TS3L4_ALL,7,FALSE)) ->  | M79: =Q79 -> 0 | Q79: =VLOOKUP($H79,TS3L4_ALL,10,FALSE) -> 0 | R79: =IF($U$20="VxFlex",419,VLOOKUP($H79,TS3L4_ALL,11,FALSE)) -> 0 | S79: =IF($U$20="VxFlex","L4N94",VLOOKUP($H79,TS3L4_ALL,12,FALSE)) ->  | U79: =IF(S79="L4N56","DW",IF(S79="L4N57","DW",IF(S79="L4N58","DW",IF(S79="L4N55","SW","CPU")))) -> CPU | V79: =HLOOKUP($N$77,$R$78:$V$101,2,FALSE) -> CPU | W79: TS3L2_PCI_A | X79: TS3L2_PCI_A | Y79: TS3L2_PCI_A | Z79: TS3L2_PCI_A | AA79: TS3L2_PCI_A | AC79: PCI-1 | AD79: =IF($U$77="SW",ConfigurationTS3L4!$A$329:$A$348,IF($U$77="DW",ConfigurationTS3L4!$A$278:$A$301,ConfigurationTS3L4!$A$198:$A$220)) -> 
M80: =IF(S79="L4N33",IF($T$100>1,"ERRORE: SOLO UNA BOSS CARD PUO' ESSERE CONFIGURATA",""),"") ->  | V80: =HLOOKUP($N$77,$R$78:$V$101,3,FALSE) -> 0 | W80: =VLOOKUP(H79,TS3L4_PCI_A,12,FALSE) ->  | X80: =VLOOKUP(H79,TS3L4_PCI_A,12,FALSE) ->  | Y80: =VLOOKUP(H79,TS3L4_PCI_A,12,FALSE) ->  | Z80: =VLOOKUP(H79,TS3L4_PCI_A,12,FALSE) ->  | AA80: =VLOOKUP(H79,TS3L4_PCI_A,12,FALSE) -> 
H81: PCI Slot 2 Processor 1 x16 PCIe Gen4 for DW/FH
H82: AMD MI100,300W PCIe, 32GB Passive, Double Wide, GPU | J82: =VLOOKUP($H82,TS3L4_ALL,13,FALSE) -> TS4L7-GPU | K82: =VLOOKUP($H82,TS3L4_ALL,7,FALSE) -> 1 | M82: =Q82 -> 6264.37 | Q82: =VLOOKUP($H82,TS3L4_ALL,10,FALSE) -> 6264.37 | R82: =VLOOKUP($H82,TS3L4_ALL,11,FALSE) -> 0 | S82: =VLOOKUP($H82,TS3L4_ALL,12,FALSE) -> L7N15 | T82: =IF(K82="","OK",IF(U82+K82=2,"Errore","OK")) -> OK | U82: =IF(U79="dw",1,0) -> 0 | V82: =HLOOKUP($N$77,$R$78:$V$101,5,FALSE) -> 0 | W82: TS3L2_PCI_A | X82: TS3L2_PCI_A | Y82: TS3L2_PCI_A | Z82: TS3L2_PCI_A | AA82: TS3L2_PCI_A | AC82: PCI-2
V83: =HLOOKUP($N$77,$R$78:$V$101,6,FALSE) -> 0 | W83: =VLOOKUP(H82,TS3L4_PCI_A,12,FALSE) ->  | X83: =VLOOKUP(H82,TS3L4_PCI_A,12,FALSE) ->  | Y83: =VLOOKUP(H82,TS3L4_PCI_A,12,FALSE) ->  | Z83: =VLOOKUP(H82,TS3L4_PCI_A,12,FALSE) ->  | AA83: =VLOOKUP(H82,TS3L4_PCI_A,12,FALSE) -> 
H84: PCI Slot 3 Processor 1 x16 PCIe Gen4 for HL/LP
J85: =VLOOKUP($H85,TS3L4_ALL,13,FALSE) ->  | K85: =VLOOKUP($H85,TS3L4_ALL,7,FALSE) ->  | M85: =Q85 -> 0 | Q85: =IF($U$20="VxFlex",748,VLOOKUP($H85,TS3L4_ALL,11,FALSE)) -> 0 | R85: =VLOOKUP($H85,TS3L4_ALL,11,FALSE) -> 0 | S85: =IF($U$20="VxFlex","L4N33",VLOOKUP($H85,TS3L4_ALL,12,FALSE)) ->  | V85: =HLOOKUP($N$77,$R$78:$V$101,8,FALSE) -> 0 | W85: TS3L2_PCI_A | X85: TS3L2_PCI_A | Y85: TS3L2_PCI_A | Z85: TS3L2_PCI_A | AA85: TS3L2_PCI_A | AC85: PCI-3
V86: =HLOOKUP($N$77,$R$78:$V$101,9,FALSE) -> 0 | W86: =VLOOKUP(H85,TS3L4_PCI_A,12,FALSE) ->  | X86: =VLOOKUP(H85,TS3L4_PCI_A,12,FALSE) ->  | Y86: =VLOOKUP(H85,TS3L4_PCI_A,12,FALSE) ->  | Z86: =VLOOKUP(H85,TS3L4_PCI_A,12,FALSE) ->  | AA86: =VLOOKUP(H85,TS3L4_PCI_A,12,FALSE) -> 
H87: PCI Slot 4 Processor 2 x8 PCIe Gen4 for HL/FH | I87: =IF($U$77="SW","GPU Slot",IF($U$77="DW","GPU Slot","")) -> 
J88: =VLOOKUP($H88,TS3L4_ALL,13,FALSE) ->  | K88: =VLOOKUP($H88,TS3L4_ALL,7,FALSE) ->  | M88: =Q88 -> 0 | Q88: =VLOOKUP($H88,TS3L4_ALL,10,FALSE) -> 0 | R88: =VLOOKUP($H88,TS3L4_ALL,11,FALSE) -> 0 | S88: =VLOOKUP($H88,TS3L4_ALL,12,FALSE) ->  | U88: =IF(S88="L4N56","DW",IF(S88="L4N57","DW",IF(S88="L4N108","DW",IF(S88="L4N55","SW",1)))) -> 1 | V88: =HLOOKUP($N$77,$R$78:$V$101,11,FALSE) -> 1 | W88: - | X88: TS3L2_PCI_B | Y88: TS3L2_PCI_I | Z88: TS3L2_PCI_F | AA88: TS3L2_PCI_H | AC88: PCI-4
M89: =IF(S88="L4N33",IF($T$100>1,"ERRORE: SOLO UNA BOSS CARD PUO' ESSERE CONFIGURATA",""),"") ->  | V89: =HLOOKUP($N$77,$R$78:$V$101,12,FALSE) -> 0 | W89: =VLOOKUP(H88,TS3L4_PCI_A,12,FALSE) ->  | X89: =VLOOKUP(H88,TS3L4_PCI_B,12,FALSE) ->  | Y89: =VLOOKUP(H88,TS3L4_PCI_I,12,FALSE) ->  | Z89: =VLOOKUP(H88,TS3L4_PCI_F,12,FALSE) ->  | AA89: =VLOOKUP(H88,TS3L4_PCI_H,12,FALSE) -> 
H90: PCI Slot 5 Processor 2 x16 PCIe Gen4 for DW/FH
H91: AMD MI100,300W PCIe, 32GB Passive, Double Wide, GPU | J91: =VLOOKUP($H91,TS3L4_ALL,13,FALSE) -> TS4L7-GPU | K91: =VLOOKUP($H91,TS3L4_ALL,7,FALSE) -> 1 | M91: =Q91 -> 6264.37 | Q91: =VLOOKUP($H91,TS3L4_ALL,10,FALSE) -> 6264.37 | R91: =VLOOKUP($H91,TS3L4_ALL,11,FALSE) -> 0 | S91: =VLOOKUP($H91,TS3L4_ALL,12,FALSE) -> L7N15 | T91: =IF(K91="","OK",IF(U91+K91=2,"Errore","OK")) -> OK | U91: =IF(U88="dw",1,0) -> 0 | V91: =HLOOKUP($N$77,$R$78:$V$101,14,FALSE) -> 0 | W91: - | X91: TS3L2_PCI_A | Y91: TS3L2_PCI_I | Z91: TS3L2_PCI_A | AA91: TS3L2_PCI_L | AC91: PCI-5
V92: =HLOOKUP($N$77,$R$78:$V$101,15,FALSE) -> 0 | W92: =VLOOKUP(H91,TS3L4_PCI_A,12,FALSE) ->  | X92: =VLOOKUP(H91,TS3L4_PCI_A,12,FALSE) ->  | Y92: =VLOOKUP(H91,TS3L4_PCI_I,12,FALSE) ->  | Z92: =VLOOKUP(H91,TS3L4_PCI_A,12,FALSE) ->  | AA92: =VLOOKUP(H91,TS3L4_PCI_L,12,FALSE) -> 
H93: PCI Slot 6 Processor 2 x16 PCIe Gen4 for HL/LP
J94: =VLOOKUP($H94,TS3L4_ALL,13,FALSE) ->  | K94: =IF($U$20="VxFlex",1,VLOOKUP($H94,TS3L4_ALL,7,FALSE)) ->  | M94: =Q94 -> 0 | Q94: =IF($U$20="VxFlex",419,VLOOKUP($H94,TS3L4_ALL,11,FALSE)) -> 0 | S94: =VLOOKUP($H94,TS3L4_ALL,12,FALSE) ->  | V94: =HLOOKUP($N$77,$R$78:$V$101,17,FALSE) -> 0 | W94: TS3L2_PCI_C | X94: TS3L2_PCI_C | Y94: TS3L2_PCI_C | Z94: TS3L2_PCI_C | AA94: TS3L2_PCI_C | AC94: PCI-6
V95: =HLOOKUP($N$77,$R$78:$V$101,18,FALSE) -> 0 | W95: =VLOOKUP(H94,TS3L4_PCI_C,12,FALSE) ->  | X95: =VLOOKUP(H94,TS3L4_PCI_C,12,FALSE) ->  | Y95: =VLOOKUP(H94,TS3L4_PCI_C,12,FALSE) ->  | Z95: =VLOOKUP(H94,TS3L4_PCI_C,12,FALSE) ->  | AA95: =VLOOKUP(H94,TS3L4_PCI_C,12,FALSE) -> 
H96: PCI Slot 7 Processor 2 x16 PCIe Gen4 for DW/FH
H97: AMD MI100,300W PCIe, 32GB Passive, Double Wide, GPU | J97: =VLOOKUP($H97,TS3L4_ALL,13,FALSE) -> TS4L7-GPU | K97: =VLOOKUP($H97,TS3L4_ALL,7,FALSE) -> 1 | M97: =Q97 -> 6264.37 | Q97: =VLOOKUP($H97,TS3L4_ALL,10,FALSE) -> 6264.37 | R97: =VLOOKUP($H97,TS3L4_ALL,11,FALSE) -> 0 | S97: =VLOOKUP($H97,TS3L4_ALL,12,FALSE) -> L7N15 | T97: =IF(K97="","OK",IF(U97+K97=2,"Errore","OK")) -> OK | U97: =IF(U100="dw",1,0) -> 0 | V97: =HLOOKUP($N$77,$R$78:$V$101,20,FALSE) -> 0 | W97: - | X97: TS3L2_PCI_A | Y97: TS3L2_PCI_I | Z97: TS3L2_PCI_A | AA97: TS3L2_PCI_L | AC97: PCI-7
V98: =HLOOKUP($N$77,$R$78:$V$101,21,FALSE) -> 0 | W98: =VLOOKUP(H97,TS3L4_PCI_A,12,FALSE) ->  | X98: =VLOOKUP(H97,TS3L4_PCI_A,12,FALSE) ->  | Y98: =VLOOKUP(H97,TS3L4_PCI_I,12,FALSE) ->  | Z98: =VLOOKUP(H97,TS3L4_PCI_A,12,FALSE) ->  | AA98: =VLOOKUP(H97,TS3L4_PCI_L,12,FALSE) -> 
H99: PCI Slot 9 Processor 1 x16 | T99: boss card
J100: =VLOOKUP($H100,TS3L4_ALL,13,FALSE) ->  | K100: =VLOOKUP($H100,TS3L4_ALL,7,FALSE) ->  | M100: =Q100 -> 0 | Q100: =VLOOKUP($H100,TS3L4_ALL,10,FALSE) -> 0 | R100: =VLOOKUP($H100,TS3L4_ALL,11,FALSE) -> 0 | S100: =VLOOKUP($H100,TS3L4_ALL,12,FALSE) ->  | T100: =COUNTIF(S79:S100,"L4N33") -> 0 | U100: =IF(S100="L4N56","DW",IF(S100="L4N57","DW",IF(S100="L4N108","DW",IF(S100="L4N55","SW",1)))) -> 1 | V100: =HLOOKUP($N$77,$R$78:$V$101,23,FALSE) -> 1 | W100: - | X100: TS3L2_PCI_D | Y100: TS3L2_PCI_I | Z100: TS3L2_PCI_E | AA100: TS3L2_PCI_G | AC100: PCI-8
M101: =IF(S100="L4N33",IF($T$100>1,"ERRORE: SOLO UNA BOSS CARD PUO' ESSERE CONFIGURATA",""),"") ->  | V101: =HLOOKUP($N$77,$R$78:$V$101,24,FALSE) -> 0 | W101: =VLOOKUP(H100,TS3L4_PCI_A,12,FALSE) ->  | X101: =VLOOKUP(H100,TS3L4_PCI_D,12,FALSE) ->  | Y101: =VLOOKUP(H100,TS3L4_PCI_I,12,FALSE) ->  | Z101: =VLOOKUP(H100,TS3L4_PCI_E,12,FALSE) ->  | AA101: =VLOOKUP(H100,TS3L4_PCI_G,12,FALSE) -> 
H102: SFP+ Transceivers
H103: Transceiver, SFP+ SR Optic for SFP+ ports (Intel X710) | J103: =IF(R103>0,VLOOKUP($H103,ConfigurationTS3L4!$A$1:$M$4870,13,FALSE),"") ->  | Q103: 0 | R103: =IF(K103>0,VLOOKUP($H103,TS3L4_ALL,11,FALSE)*(K103),0) -> 0 | S103: =IF(K103>0,VLOOKUP($H103,TS3L4_ALL,12,FALSE),0) -> 0
H105: SFP+ Direct Attach Cables (Twinax)
H106: Cable, SFP+ to SFP+, 10GbE, Copper Twinax Direct Attach Cable, 3 Meter | J106: =IF(R106>0,VLOOKUP($H106,ConfigurationTS3L4!$A$1:$M$4870,13,FALSE),"") ->  | Q106: 0 | R106: =IF(K106>0,VLOOKUP($H106,TS3L4_ALL,11,FALSE)*K106,0) -> 0 | S106: =IF(K106>0,VLOOKUP($H106,TS3L4_ALL,12,FALSE),0) -> 0
H108: QSFP28 Transceivers
H109: Dell EMC PowerEdge QSFP28 SR4 100GbE 85C optic | J109: =IF(R109>0,VLOOKUP($H109,ConfigurationTS3L4!$A$1:$M$4870,13,FALSE),"") ->  | Q109: 0 | R109: =IF(K109>0,VLOOKUP($H109,TS3L4_ALL,11,FALSE)*K109,0) -> 0 | S109: =IF(K109>0,VLOOKUP($H109,TS3L4_ALL,12,FALSE),0) -> 0
H111: Mellanox LinkX 100Gb/s Passive Copper Cables
H112: Mellanox LinkX 100Gb/s Passive Copper Cables - attacco cavo diretto - 3 m - nero | J112: =IF(R112>0,VLOOKUP($H112,ConfigurationTS3L4!$A$1:$M$4870,13,FALSE),"") ->  | Q112: 0 | R112: =IF(K112>0,VLOOKUP($H112,TS3L4_ALL,11,FALSE)*K112,0) -> 0 | S112: =IF(K112>0,VLOOKUP($H112,TS3L4_ALL,12,FALSE),0) -> 0
H114: Mellanox LinkX 100Gb/s VCSEL-Based Active Optical Cables - cavo InfiniBand - 10 m | J114: =IF(R114>0,VLOOKUP($H114,ConfigurationTS3L4!$A$1:$M$4870,13,FALSE),"") ->  | Q114: 0 | R114: =IF(K114>0,VLOOKUP($H114,TS3L4_ALL,11,FALSE)*K114,0) -> 0 | S114: =IF(K114>0,VLOOKUP($H114,TS3L4_ALL,12,FALSE),0) -> 0
H116: Cavi RJ45
H117: Cavo “patch” di 3 mt RJ45 certificato per gigabit ethernet | J117: =IF(R117>0,VLOOKUP($H117,ConfigurationTS3L4!$A$1:$M$4870,13,FALSE),"") ->  | Q117: 0 | R117: =IF(K117>0,VLOOKUP($H117,TS3L4_ALL,11,FALSE)*(K117),0) -> 0 | S117: =IF(K117>0,VLOOKUP($H117,TS3L4_ALL,12,FALSE),0) -> 0
H119: Cavi LC-LC
H120: Dell Networking Cable, OM4 LC/LC Fiber Cable, 3 Meter | J120: =IF(R120>0,VLOOKUP($H120,ConfigurationTS3L4!$A$1:$M$4870,13,FALSE),"") ->  | Q120: 0 | R120: =IF(K120>0,VLOOKUP($H120,TS3L4_ALL,11,FALSE)*(K120),0) -> 0 | S120: =IF(K120>0,VLOOKUP($H120,TS3L4_ALL,12,FALSE),0) -> 0
H122: Cavi DAC
H123: Dell Networking, Cable, SFP+ to SFP+, 10GbE, Copper Twinax Direct Attach Cable, 3 Meter | J123: =IF(R123>0,VLOOKUP($H123,ConfigurationTS3L4!$A$1:$M$4870,13,FALSE),"") ->  | Q123: 0 | R123: =IF(K123>0,VLOOKUP($H123,TS3L4_ALL,11,FALSE)*(K123),0) -> 0 | S123: =IF(K123>0,VLOOKUP($H123,TS3L4_ALL,12,FALSE),0) -> 0
H124: Mellanox LinkX 100Gb/s Passive Copper DAC 3m per scheda TS3L4-CONX6DP | J124: =IF(R124>0,VLOOKUP($H124,ConfigurationTS3L4!$A$1:$M$4870,13,FALSE),"") ->  | Q124: 0 | R124: =IF(K124>0,VLOOKUP($H124,TS3L4_ALL,11,FALSE)*(K124),0) -> 0 | S124: =IF(K124>0,VLOOKUP($H124,TS3L4_ALL,12,FALSE),0) -> 0
H125: Dell Cable SFP28 to SFP28 25GbE Passive Copper Twinax Direct Attach Cable 3 Meter | J125: =IF(R125>0,VLOOKUP($H125,ConfigurationTS3L4!$A$1:$M$4870,13,FALSE),"") ->  | Q125: 0 | R125: =IF(K125>0,VLOOKUP($H125,TS3L4_ALL,11,FALSE)*(K125),0) -> 0 | S125: =IF(K125>0,VLOOKUP($H125,TS3L4_ALL,12,FALSE),0) -> 0
V126: =IF($U$20="VxFlex",ConfigurationTS3L4!$A$275,IF($U$100="DW",ConfigurationTS3L4!$A$372,IF($U$77="1CPU",ConfigurationTS3L4!$A$105:$A$106,ConfigurationTS3L4!$A$198:$A$220))) -> 
H127: Cable Management Arm
H128: No | J128: =IF($U$20="VxFlex","TS3L4-BZLSTD",VLOOKUP($H128,TS3L4_ALL,13,)) ->  | K128: =IF($U$20="VxFlex",1,VLOOKUP($H128,TS3L4_ALL,7,FALSE)) ->  | Q128: =VLOOKUP($H128,TS3L4_ALL,10,FALSE) -> 0 | R128: =IF($U$20="VxFlex",42,VLOOKUP($H128,TS3L4_ALL,11,FALSE)) -> 0 | S128: =IF($U$20="VxFlex","L4N69",VLOOKUP($H128,TS3L4_ALL,12,FALSE)) -> 
H130: Bezel
H131: No Bezel | J131: =IF($U$20="VxFlex","TS3L4-BZLSTD",VLOOKUP($H131,TS3L4_ALL,13,)) ->  | K131: =IF($U$20="VxFlex",1,VLOOKUP($H131,TS3L4_ALL,7,FALSE)) ->  | Q131: =VLOOKUP($H131,TS3L4_ALL,10,FALSE) -> 0 | R131: =IF($U$20="VxFlex",42,VLOOKUP($H131,TS3L4_ALL,11,FALSE)) -> 0 | S131: =IF($U$20="VxFlex","L4N69",VLOOKUP($H131,TS3L4_ALL,12,FALSE)) -> 
H133: Garanzia
H134: Estensione della manutenzione in garanzia per ulteriori 24 mesi | J134: =VLOOKUP($H134,TS3L4_WARRANTY,13,FALSE) -> TS4L7-OpzEst24 | K134: =VLOOKUP($H134,TS3L4_ALL,7,FALSE) -> 1 | M134: =Q134 -> 183.01 | Q134: =VLOOKUP($H134,TS3L4_WARRANTY,10,FALSE) -> 183.01 | R134: =VLOOKUP($H134,TS3L4_WARRANTY,11,FALSE) -> 0 | S134: =VLOOKUP($H134,TS3L4_ALL,12,FALSE) -> L7N29
H136: Garanzia GPU | K136: =IF(AND(K137>0,K134=""),"Selezionare Estensione Garanzia 60 Mesi","") -> 
H137: Estensione della manutenzione GPU in garanzia per ulteriori 24 mesi | J137: =VLOOKUP($H137,TS4L7_GPUWAR,13,FALSE) -> TS4L7-OpzEst24GPU | K137: =IF(S137="",0,U137) -> 3 | M137: =Q137 -> 346.62 | Q137: =VLOOKUP($H137,TS4L7_GPUWAR,10,FALSE)*K137 -> 346.62 | R137: =VLOOKUP($H137,TS4L7_GPUWAR,11,FALSE) -> 0 | S137: =VLOOKUP($H137,TS4L7_GPUWAR,12,FALSE) -> L7N31 | T137: L7N15 | U137: =COUNTIF(TS4L7_3,T137) -> 3
H139: Hard Disk Retention | K139: =IF(AND(H140="Hard Disk Retention 60 mesi",K134=""),"Selezionare Estensione Garanzia 60 Mesi","") -> 
H140: Hard Disk Retention 60 mesi | J140: =IFERROR(U140,VLOOKUP(H140,TS3L4_ALL,13,FALSE)) -> TS4L7-HDRTN60 | K140: =IF(H140="","",1) -> 1 | M140: =Q140 -> 41.81 | Q140: =IFERROR(V140,VLOOKUP(H140,TS3L4_ALL,10,FALSE)) -> 41.81 | R140: =IFERROR(W140,VLOOKUP(H140,TS3L4_ALL,11,FALSE)) -> 0 | S140: =IFERROR(X140,VLOOKUP(H140,TS3L4_ALL,12,FALSE)) -> L7N28b | U140: =IF(K134+K140=2,VLOOKUP("Hard Disk Retention 60 mesi",TS3L4_ALL,13,FALSE),VLOOKUP(H140,TS3L4_ALL,13,FALSE)) -> TS4L7-HDRTN60 | V140: =IF(K134+K140=2,VLOOKUP("Hard Disk Retention 60 mesi",TS3L4_ALL,10,FALSE),VLOOKUP(H140,TS3L4_ALL,10,FALSE)) -> 41.81 | W140: =IF(K134+K140=2,VLOOKUP("Hard Disk Retention (60 mesi)",TS3L4_ALL,11,FALSE),VLOOKUP(H140,TS3L4_ALL,11,FALSE)) ->  | X140: =IF(K134+K140=2,VLOOKUP("Hard Disk Retention 60 mesi",TS3L4_ALL,12,FALSE),VLOOKUP(H140,TS3L4_ALL,12,FALSE)) -> L7N28b
H143: UPS
H144: IO SONO UN UPS | J144: =VLOOKUP($H144,TS3L4_UPS,13,FALSE) ->  | K144: =VLOOKUP($H144,TS3L4_UPS,7,FALSE) ->  | Q144: =VLOOKUP($H144,TS3L4_UPS,10,FALSE) ->  | R144: =VLOOKUP($H144,TS3L4_UPS,11,FALSE) ->  | S144: =VLOOKUP($H144,TS3L4_ALL,12,FALSE) -> 
H146: Kit Graphical User Interface
J147: =VLOOKUP($H147,TS3L4_GUI,13,FALSE) ->  | K147: =VLOOKUP($H147,TS3L4_GUI,7,FALSE) ->  | Q147: =VLOOKUP($H147,TS3L4_GUI,10,FALSE) ->  | R147: =VLOOKUP($H147,TS3L4_GUI,11,FALSE) ->  | S147: =VLOOKUP($H147,TS3L4_ALL,12,FALSE) -> 
J150: Configurazione | K150: =SUM(Q20:Q140)*K6 -> 0
J151: 0.2 | K151: =SUM(R20:R140)*K6 -> 0 | M151: Quota massima 20 %
J152: Totale | K152: =SUM(K150:K151) -> 0 | M152: =K150*20%-K151 -> 0
H154: NOTE

Sheet Altre_Opzioni
E2: Opzioni | H2: Totale altre opzioni
E5: Opzione Rack APC con PDU Monofase
E6: Armadio Rack 42U 600x1200, 2 x PDU Monofase 2G, ZeroU, 32A, 230V, (36) C13 & (6) C19 | G6: =VLOOKUP($E6,TS4L4_ALL,13,FALSE) ->  | L6: =VLOOKUP($E6,TS4L4_ALL,10,FALSE)*H6 ->  | M6: =VLOOKUP($E6,TS4L4_ALL,11,FALSE)*H6 ->  | N6: =VLOOKUP($E6,TS4L4_ALL,12,FALSE) -> 
E8: Opzione Rack APC con PDU Trifase
E9: Armadio Rack 42U 600x1200, 2 x PDU Trifase 2G, ZeroU, 22.0kW(32A) 17.3kW(24A), 230V, (30) C13 & (12) C19 | G9: =VLOOKUP($E9,TS4L4_ALL,13,FALSE) ->  | L9: =VLOOKUP($E9,TS4L4_ALL,10,FALSE)*H9 ->  | M9: =VLOOKUP($E9,TS4L4_ALL,11,FALSE)*H9 ->  | N9: =VLOOKUP($E9,TS4L4_ALL,12,FALSE) -> 
H10: =SUM(L13:L25) -> 0
E12: OpzRack
E13: =Tabella_prezzi!H38 -> Dispositivo UPS di tipo On-line doppia conversione, strutturato per il montaggio a rack da 19” | G13: =VLOOKUP($E13,TS4L7_UPS,13,FALSE) -> TS4L7-UPS | H13: 0 | J13: =L13 -> 0 | L13: =VLOOKUP($E13,TS4L7_UPS,10,FALSE)*H13 -> 0 | M13: =VLOOKUP($E13,TS4L7_UPS,11,FALSE) -> 0 | N13: =VLOOKUP($E13,TS4L7_UPS,12,FALSE) -> L7N20
E16: OpzUps (3000VA)
E17: =ConfigurationTS3L4!A169 -> Armadio Rack 42U | G17: =VLOOKUP($E17,TS4L7_RACK,13,FALSE) -> TS4L7-RACK | H17: 0 | J17: =L17 -> 0 | L17: =VLOOKUP($E17,TS4L7_RACK,10,FALSE)*H17 -> 0 | M17: =VLOOKUP($E17,TS4L7_RACK,11,FALSE) -> 0 | N17: =VLOOKUP($E17,TS4L7_RACK,12,FALSE) -> L7N30
E20: OpzGUI
E21: =ConfigurationTS3L4!A173 -> Unità KVM - monitor 17", cavo combi PS/2&USB da 1,8mt, tastiera italiana, touch pad | G21: =VLOOKUP($E21,TS4L7_GUI,13,FALSE) -> TS4L7-GUI | H21: 0 | J21: =L21 -> 0 | L21: =VLOOKUP($E21,TS4L7_GUI,10,FALSE)*H21 -> 0 | M21: =VLOOKUP($E21,TS4L7_GUI,11,FALSE)*H21 -> 0 | N21: =VLOOKUP($E21,TS4L7_GUI,12,FALSE) -> L7N21
E24: OpzKVM
E25: =ConfigurationTS3L4!A177 -> KVM Switch IP per GUI 16P | G25: =VLOOKUP($E25,TS4L4_KVM,13,FALSE) -> TS4L7-KVM | H25: 0 | J25: =L25 -> 0 | L25: =VLOOKUP($E25,TS4L4_KVM,10,FALSE)*H25 -> 0 | M25: =VLOOKUP($E25,TS4L4_KVM,11,FALSE)*H25 -> 0 | N25: =VLOOKUP($E25,TS4L4_KVM,12,FALSE) -> L7N22

Sheet Riepilogo_Ordine
F2: Convenzione Tecnologie Server 4 - Lotto 7 | H2: Salva in PDF --> | X2: SI
X3: SI
X4: SI
G5: =IF($L$23="TS4L7-VSAN","vSAN Server Ready",IF($L$23="TS4L7-GPUDW","GPU Double-Wide Server Ready",IF($L$23="TS4L7-GPUSW","GPU Single-Wide Server Ready",IF(M20="VxFlex","PowerFlex Server","")))) ->  | X5: SI
F6: Riepilogo Ordine | X6: SI
X7: SI
F8: Articoli in convenzione | Q8: Config 1 | R8: Config 2 | S8: Config 3 | T8: Totale | X8: SI
F9: Codice Produttore | G9: Codice Convenzione | H9: Qtà | I9: Costo unitario | J9: Costo Totale | O9: N° | P9: Codice Convenzione | Q9: =Lotto7_R7525_1!K6 -> 0 | R9: =Lotto7_R7525_2!K6 -> 0 | S9: =Lotto7_R7525_3!K6 -> 0 | X9: SI
F10: =IF(H10="","",VLOOKUP(O10,TABELLA_PREZZI,10,FALSE)) ->  | G10: =IF(H10="","",VLOOKUP(O10,TABELLA_PREZZI,6,FALSE)) ->  | H10: =IF(T10>0,T10,"") ->  | I10: =IF(H10="","",VLOOKUP(O10,TABELLA_PREZZI,4,FALSE)) ->  | J10: =IF(F10="","",I10*H10) ->  | O10: L7N01 | P10: =VLOOKUP(O10,TABELLA_PREZZI,6,FALSE) -> TS4L7-SRV | Q10: =COUNTIF(TS4L7_1,O10)*$Q$9 -> 0 | R10: =COUNTIF(TS4L7_2,O10)*$R$9 -> 0 | S10: =COUNTIF(TS4L7_3,O10)*$S$9 -> 0 | T10: =SUM(Q10:S10) -> 0 | X10: =IF(H10<>"","SI","NO") -> NO
H11: =IF(T11>0,T11,"") ->  | J11: =IF(F11="","",I11*H11) ->  | O11: L7N02 | P11: TS4L7-CPU | Q11: =COUNTIF(TS4L7_1,O11)*$Q$9 -> 0 | R11: =COUNTIF(TS4L7_2,O11)*$R$9 -> 0 | S11: =COUNTIF(TS4L7_3,O11)*$S$9 -> 0 | T11: 0 | X11: =IF(H11<>"","SI","NO") -> NO
O12: L7N03 | P12: TS4L7-RAM32 | Q12: =COUNTIF(TS4L7_1,O12)*Lotto7_R7525_1!K35*$Q$9 -> 0 | R12: =COUNTIF(TS4L7_2,O12)*Lotto7_R7525_2!K35*R9 -> 0 | S12: =COUNTIF(TS4L7_3,O12)*Lotto7_R7525_3!K35*S9 -> 0 | T12: 0 | X12: =IF(H12<>"","SI","NO") -> NO
O13: L7N04 | P13: TS4L7-RAM64 | Q13: =COUNTIF(TS4L7_1,O13)*Lotto7_R7525_1!K35*$Q$9 -> 0 | R13: =COUNTIF(TS4L7_2,O13)*Lotto7_R7525_2!K35*$R$9 -> 0 | S13: =COUNTIF(TS4L7_3,O13)*Lotto7_R7525_3!K35*$S$9 -> 0 | T13: 0 | X13: NO
O14: L7N05 | P14: TS4L7-LAN1 | Q14: =COUNTIF(TS4L7_1,O14)*$Q$9 -> 0 | R14: =COUNTIF(TS4L7_2,O14)*$R$9 -> 0 | S14: =COUNTIF(TS4L7_3,O14)*$S$9 -> 0 | T14: 0 | X14: NO
O15: L7N75 | P15: TS4L7-LAN1-OCP | Q15: =COUNTIF(TS4L7_1,O15)*$Q$9 -> 0 | R15: =COUNTIF(TS4L7_2,O15)*$R$9 -> 0 | S15: =COUNTIF(TS4L7_3,O15)*$S$9 -> 0 | T15: 0 | X15: NO
O16: L7N06 | P16: TS4L7-LAN10 | Q16: =COUNTIF(TS4L7_1,O16)*$Q$9 -> 0 | R16: =COUNTIF(TS4L7_2,O16)*$R$9 -> 0 | S16: =COUNTIF(TS4L7_3,O16)*$S$9 -> 0 | T16: 0 | X16: NO
O17: L7N76 | P17: TS4L7-LAN10-OCP | Q17: =COUNTIF(TS4L7_1,O17)*$Q$9 -> 0 | R17: =COUNTIF(TS4L7_2,O17)*$R$9 -> 0 | S17: =COUNTIF(TS4L7_3,O17)*$S$9 -> 0 | T17: 0 | X17: NO
O18: L7N07 | P18: TS4L7-LAN25 | Q18: =COUNTIF(TS4L7_1,O18)*$Q$9 -> 0 | R18: =COUNTIF(TS4L7_2,O18)*$R$9 -> 0 | S18: =COUNTIF(TS4L7_3,O18)*$S$9 -> 0 | T18: 0 | X18: NO
O19: L7N77 | P19: TS4L7-LAN25-L | Q19: =COUNTIF(TS4L7_1,O19)*$Q$9 -> 0 | R19: =COUNTIF(TS4L7_2,O19)*$R$9 -> 0 | S19: =COUNTIF(TS4L7_3,O19)*$S$9 -> 0 | T19: 0 | X19: NO
O20: L7N08 | P20: TS4L7-CNA10 | Q20: =COUNTIF(TS4L7_1,O20)*$Q$9 -> 0 | R20: =COUNTIF(TS4L7_2,O20)*$R$9 -> 0 | S20: =COUNTIF(TS4L7_3,O20)*$S$9 -> 0 | T20: 0 | X20: NO
O21: L7N78 | P21: TS4L7-CNA10-L | Q21: =COUNTIF(TS4L7_1,O21)*$Q$9 -> 0 | R21: =COUNTIF(TS4L7_2,O21)*$R$9 -> 0 | S21: =COUNTIF(TS4L7_3,O21)*$S$9 -> 0 | T21: 0 | X21: NO
O22: L7N09 | P22: TS4L7-BaseT-LP | Q22: =COUNTIF(TS4L7_1,O22)*$Q$9 -> 0 | R22: =COUNTIF(TS4L7_2,O22)*$R$9 -> 0 | S22: =COUNTIF(TS4L7_3,O22)*$S$9 -> 0 | T22: 0 | X22: NO
O23: L7N79 | P23: TS4L7- BaseT-L | Q23: =COUNTIF(TS4L7_1,O23)*$Q$9 -> 0 | R23: =COUNTIF(TS4L7_2,O23)*$R$9 -> 0 | S23: =COUNTIF(TS4L7_3,O23)*$S$9 -> 0 | T23: 0 | X23: NO
O24: L7N10 | P24: TS4L7- Opz100Gbit | Q24: =COUNTIF(TS4L7_1,O24)*$Q$9 -> 0 | R24: =COUNTIF(TS4L7_2,O24)*$R$9 -> 0 | S24: =COUNTIF(TS4L7_3,O24)*$S$9 -> 0 | T24: 0 | X24: NO
O25: L7N11 | P25: TS4L7- FibreChannel | Q25: =COUNTIF(TS4L7_1,O25)*$Q$9 -> 0 | R25: =COUNTIF(TS4L7_2,O25)*$R$9 -> 0 | S25: =COUNTIF(TS4L7_3,O25)*$S$9 -> 0 | T25: 0 | U25: Quantità 1 | V25: Quantità 2 | W25: Quantità 3 | X25: NO
O26: L7N12 | P26: TS4L7-HDD2TB | Q26: =COUNTIF(TS4L7_1,O26)*U26*$Q$9 -> 0 | R26: =COUNTIF(TS4L7_2,O26)*V26*$R$9 -> 0 | S26: =COUNTIF(TS4L7_3,O26)*W26*$S$9 -> 0 | T26: 0 | U26: =Lotto7_R7525_1!$K$52 -> 0 | V26: =Lotto7_R7525_2!$K52 -> 0 | W26: =Lotto7_R7525_3!K52 -> 0 | X26: NO
O27: L7N13 | P27: TS4L7-HDD1TB | Q27: =COUNTIF(TS4L7_1,O27)*U27*$Q$9 -> 0 | R27: =COUNTIF(TS4L7_2,O27)*V27*$R$9 -> 0 | S27: =COUNTIF(TS4L7_3,O27)*W27*$S$9 -> 0 | T27: 0 | U27: =Lotto7_R7525_1!K54 -> 0 | V27: =Lotto7_R7525_2!K54 -> 0 | W27: =Lotto7_R7525_3!K54 -> 0 | X27: NO
O28: L7N14 | P28: TS4L7-SSD-RI3,8TB | Q28: =COUNTIF(TS4L7_1,O28)*U28*$Q$9 -> 0 | R28: =COUNTIF(TS4L7_2,O28)*V28*$R$9 -> 0 | S28: =COUNTIF(TS4L7_3,O28)*W28*$S$9 -> 0 | T28: 0 | U28: =Lotto7_R7525_1!K56 -> 0 | V28: =Lotto7_R7525_2!K56 -> 0 | W28: =Lotto7_R7525_3!K56 -> 0 | X28: NO
O29: L7N15 | P29: TS4L7-GPU | Q29: =COUNTIF(TS4L7_1,O29)*$Q$9 -> 0 | R29: =COUNTIF(TS4L7_2,O29)*$R$9 -> 0 | S29: =COUNTIF(TS4L7_3,O29)*$S$9 -> 0 | T29: 0 | X29: NO
O30: L7N16 | P30: TS4L7-SSD-RI1,6TB | Q30: =COUNTIF(TS4L7_1,O30)*U30*$Q$9 -> 0 | R30: =COUNTIF(TS4L7_2,O30)*V30*$R$9 -> 0 | S30: =COUNTIF(TS4L7_3,O30)*W30*$S$9 -> 0 | T30: 0 | U30: =Lotto7_R7525_1!K58 -> 0 | V30: =Lotto7_R7525_2!K58 -> 0 | W30: =Lotto7_R7525_3!K58 -> 0 | X30: NO
O31: L7N17 | P31: TS4L7-SSD-MU1,6TB | Q31: =COUNTIF(TS4L7_1,O31)*U31*$Q$9 -> 0 | R31: =COUNTIF(TS4L7_2,O31)*V31*$R$9 -> 0 | S31: =COUNTIF(TS4L7_3,O31)*W31*$S$9 -> 0 | T31: 0 | U31: =Lotto7_R7525_1!K60 -> 0 | V31: =Lotto7_R7525_2!K60 -> 0 | W31: =Lotto7_R7525_3!K60 -> 0 | X31: NO
O32: L7N18 | P32: TS4L7-SSD-RI800GB | Q32: =COUNTIF(TS4L7_1,O32)*U32*$Q$9 -> 0 | R32: =COUNTIF(TS4L7_2,O32)*V32*$R$9 -> 0 | S32: =COUNTIF(TS4L7_3,O32)*W32*$S$9 -> 0 | T32: 0 | U32: =IF(Lotto7_R7525_1!K62<=2,0,Lotto7_R7525_1!K62-2) -> 0 | V32: =IF(Lotto7_R7525_2!L62<=2,0,Lotto7_R7525_2!L62-2) -> 0 | W32: =IF(Lotto7_R7525_3!M62<=2,0,Lotto7_R7525_3!M62-2) -> 0 | X32: NO
O33: L7N19 | P33: TS4L7-SSD-MU800GB | Q33: =COUNTIF(TS4L7_1,O33)*U33*$Q$9 -> 0 | R33: =COUNTIF(TS4L7_2,O33)*V33*$R$9 -> 0 | S33: =COUNTIF(TS4L7_3,O33)*W33*$S$9 -> 0 | T33: 0 | U33: =Lotto7_R7525_1!K64 -> 0 | V33: =Lotto7_R7525_2!K64 -> 0 | W33: =Lotto7_R7525_3!K64 -> 0 | X33: NO
O34: L7N20 | P34: TS4L7-UPS | T34: =Altre_Opzioni!H13 -> 0 | X34: NO
O35: L7N21 | P35: TS4L7-GUI | T35: =Altre_Opzioni!H21 -> 0 | X35: NO
O36: L7N22 | P36: TS4L7-KVM | T36: =Altre_Opzioni!H25 -> 0 | X36: NO
O37: L7N23 | P37: TS4L7-WINSRVSTD | Q37: =COUNTIF(TS4L7_1,O37)*U37*$Q$9 -> 0 | R37: =COUNTIF(TS4L7_2,O37)*V37*$R$9 -> 0 | S37: =COUNTIF(TS4L7_3,O37)*W37*$S$9 -> 0 | T37: 0 | U37: =Lotto7_R7525_1!K38 -> 0 | V37: =Lotto7_R7525_2!K38 -> 0 | W37: =Lotto7_R7525_3!K38 -> 0 | X37: NO
O38: L7N24 | P38: TS4L7-WINDEVCAL | Q38: =COUNTIF(TS4L7_1,O38)*U38*$Q$9 -> 0 | R38: =COUNTIF(TS4L7_2,O38)*V38*$R$9 -> 0 | S38: =COUNTIF(TS4L7_3,O38)*W38*$S$9 -> 0 | T38: 0 | U38: =Lotto7_R7525_1!K43 -> 0 | V38: =Lotto7_R7525_2!K43 -> 0 | W38: =Lotto7_R7525_3!K43 -> 0 | X38: NO
O39: L7N25 | P39: TS4L7-WINUSRCAL | Q39: =COUNTIF(TS4L7_1,O39)*U39*$Q$9 -> 0 | R39: =COUNTIF(TS4L7_2,O39)*V39*$R$9 -> 0 | S39: =COUNTIF(TS4L7_3,O39)*W39*$S$9 -> 0 | T39: 0 | U39: =Lotto7_R7525_1!K44 -> 0 | V39: =Lotto7_R7525_2!K44 -> 0 | W39: =Lotto7_R7525_3!K44 -> 0 | X39: NO
O40: L7N26 | P40: TS4L7-WINSRV2C | Q40: =COUNTIF(TS4L7_1,O40)*U40*$Q$9 -> 0 | R40: =COUNTIF(TS4L7_2,O40)*V40*$R$9 -> 0 | S40: =COUNTIF(TS4L7_3,O40)*W40*$S$9 -> 0 | T40: 0 | U40: =Lotto7_R7525_1!K39 -> 0 | V40: =Lotto7_R7525_2!K39 -> 0 | W40: =Lotto7_R7525_3!K39 -> 0 | X40: NO
O41: L7N27 | P41: TS4L7-LINUX | Q41: =COUNTIF(TS4L7_1,O41)*$Q$9 -> 0 | R41: =COUNTIF(TS4L7_2,O41)*$R$9 -> 0 | S41: =COUNTIF(TS4L7_3,O41)*$S$9 -> 0 | T41: 0 | X41: NO
O42: L7N28 | P42: TS4L7-HDRTN36 | Q42: =COUNTIF(TS4L7_1,O42)*$Q$9 -> 0 | R42: =COUNTIF(TS4L7_2,O42)*$R$9 -> 0 | S42: =COUNTIF(TS4L7_3,O42)*$S$9 -> 0 | T42: 0 | X42: NO
O43: L7N29 | P43: TS4L7-OpzEst24 | Q43: =COUNTIF(TS4L7_1,O43)*$Q$9 -> 0 | R43: =COUNTIF(TS4L7_2,O43)*$R$9 -> 0 | S43: =COUNTIF(TS4L7_3,O43)*$S$9 -> 0 | T43: 0 | X43: NO
O44: L7N30 | P44: TS4L7-RACK | T44: =Altre_Opzioni!H17 -> 0 | X44: NO
O45: L7N31 | P45: TS4L7-OpzEst24GPU | Q45: =COUNTIF(TS4L7_1,O45)*U45*$Q$9 -> 0 | R45: =COUNTIF(TS4L7_2,O45)*V45*$R$9 -> 0 | S45: =COUNTIF(TS4L7_3,O45)*W45*$S$9 -> 0 | T45: 0 | U45: =Lotto7_R7525_1!K137 -> 2 | V45: =Lotto7_R7525_2!K137 -> 2 | W45: =Lotto7_R7525_3!K137 -> 3 | X45: NO
X46: SI
X47: SI
F48: Opzioni 20 % | Q48: Config 1 | R48: Config 2 | S48: Config 3 | T48: Totale | X48: =IF(J59>0,"SI","NO") -> NO
F49: Codice Produttore | G49: Codice Convenzione | H49: Qtà | I49: Costo unitario | J49: Costo Totale | O49: N° | P49: Codice Convenzione | Q49: =Lotto7_R7525_1!K6 -> 0 | R49: =Lotto7_R7525_2!K6 -> 0 | S49: =Lotto7_R7525_3!K6 -> 0 | T49: =SUM(Q49:S49) -> 0 | U49: Quantità 1 | V49: Quantità 2 | W49: Quantità 3 | X49: =IF(J59>0,"SI","NO") -> NO
F50: =IF(H50="","",VLOOKUP(O50,TABELLA_PREZZI,10,FALSE)) ->  | G50: =IF(H50="","",VLOOKUP(O50,TABELLA_PREZZI,6,FALSE)) ->  | H50: =IF(T50>0,T50,"") ->  | I50: =IF(H50="","",VLOOKUP(O50,TABELLA_PREZZI,4,FALSE)) ->  | J50: =IF(F50="","",I50*H50) ->  | O50: L7N32 | P50: TS4L7-OpzSSD7,68 | Q50: =COUNTIF(TS4L7_1,O50)*$U$50*$Q$9 -> 0 | R50: =COUNTIF(TS4L7_2,O50)*$V$50*$R$9 -> 0 | S50: =COUNTIF(TS4L7_3,O50)*$W$50*$S$9 -> 0 | T50: =SUM(Q50:S50) -> 0 | X50: =IF($H50<>"","SI","NO") -> NO
F51: =IF(H51="","",VLOOKUP(O51,TABELLA_PREZZI,10,FALSE)) ->  | G51: =IF(H51="","",VLOOKUP(O51,TABELLA_PREZZI,6,FALSE)) ->  | H51: =IF(T51>0,T51,"") ->  | I51: =IF(H51="","",VLOOKUP(O51,TABELLA_PREZZI,4,FALSE)) ->  | J51: =IF(F51="","",I51*H51) ->  | O51: L7N33 | P51: TS4L7-OpzNVMe3,2 | T51: 0 | X51: =IF($H51<>"","SI","NO") -> NO
F52: =IF(H52="","",VLOOKUP(O52,TABELLA_PREZZI,10,FALSE)) ->  | G52: =IF(H52="","",VLOOKUP(O52,TABELLA_PREZZI,6,FALSE)) ->  | I52: =IF(H52="","",VLOOKUP(O52,TABELLA_PREZZI,4,FALSE)) ->  | O52: L7N34 | P52: TS4L7-OpzNVMe1,92 | T52: 0 | X52: NO
F53: =IF(H53="","",VLOOKUP(O53,TABELLA_PREZZI,10,FALSE)) ->  | G53: =IF(H53="","",VLOOKUP(O53,TABELLA_PREZZI,6,FALSE)) ->  | I53: =IF(H53="","",VLOOKUP(O53,TABELLA_PREZZI,4,FALSE)) ->  | O53: L7N35 | P53: TS4L7-OpzNVMe3,84 | Q53: =COUNTIF(TS4L7_1,O53)*$U$53*$Q$9 -> 0 | R53: =COUNTIF(TS4L7_2,O53)*$V$53*$R$9 -> 0 | S53: =COUNTIF(TS4L7_3,O53)*$W$53*$S$9 -> 0 | T53: 0 | X53: NO
X54: SI
X57: SI
H58: Totale Convenzione | J58: =SUM(J10:J45) -> 0 | X58: SI
F59: Quota Massima 20% | G59: =J61*20% -> 0 | H59: Totale 20% | J59: =SUM(J50:J53) -> 0 | X59: SI
H60: Totale Iva Esclusa | J60: =J58+J59 -> 0 | X60: SI
H61: Totale Ordine | J61: =J60+(J60*22%) -> 0 | X61: SI
X62: SI

Sheet ConfigurationTS3L4 (hidden)
B2: Module Name | C2: Option ID | D2: Option Name | E2: Option List Price | F2: SKUs | G2: Qty | H2: SKU Customer Kit | I2: Attributo | J2: Valore inserito | L2: N° | M2: Codice Convenzione
A3: PowerEdge R7525 Server (General Purpose) | B3: Chassis with Up to 16 x 2.5 Hard Drives for 1CPU Configuration | D3: =VLOOKUP(L3,Tabella_prezzi!$A$1:$L$189,8,FALSE) -> 0 | H3: =VLOOKUP(L3,Tabella_prezzi!$A$1:$L$189,9,FALSE) -> PowerEdge R7525 Server | I3: =VLOOKUP(L3,Tabella_prezzi!$A$1:$L$189,3,FALSE) -> Server rackable bi-processore prest. | J3: =VLOOKUP(L3,Tabella_prezzi!$A$1:$L$189,4,FALSE) -> 4047.7 | L3: L7N01 | M3: =VLOOKUP(L3,Tabella_prezzi!$A$1:$L$189,6,FALSE) -> TS4L7-SRV
A4: PowerEdge R7525 Server (GPU Double-Wide Ready) | B4: Chassis with Up to 16 x 2.5 Hard Drives for 2CPU, GPU Double-Wide Configuration | D4: =VLOOKUP(L4,Tabella_prezzi!$A$1:$L$189,8,FALSE) -> 0 | H4: =VLOOKUP(L4,Tabella_prezzi!$A$1:$L$189,9,FALSE) -> PowerEdge R7525 Server | I4: =VLOOKUP(L4,Tabella_prezzi!$A$1:$L$189,3,FALSE) -> Server rackable bi-processore prest. | J4: =VLOOKUP(L4,Tabella_prezzi!$A$1:$L$189,4,FALSE) -> 4047.7 | L4: L7N01 | M4: =VLOOKUP(L4,Tabella_prezzi!$A$1:$L$189,6,FALSE) -> TS4L7-SRV
A5: PowerEdge R7525 Server (GPU Single-Wide Ready) | B5: Chassis with Up to 16 x 2.5 Hard Drives for 2CPU, GPU Single-Wide Configuration | D5: =VLOOKUP(L5,Tabella_prezzi!$A$1:$L$189,8,FALSE) -> 0 | H5: =VLOOKUP(L5,Tabella_prezzi!$A$1:$L$189,9,FALSE) -> PowerEdge R7525 Server | I5: =VLOOKUP(L5,Tabella_prezzi!$A$1:$L$189,3,FALSE) -> Server rackable bi-processore prest. | J5: =VLOOKUP(L5,Tabella_prezzi!$A$1:$L$189,4,FALSE) -> 4047.7 | L5: L7N01 | M5: =VLOOKUP(L5,Tabella_prezzi!$A$1:$L$189,6,FALSE) -> TS4L7-SRV
A6: PowerEdge R7525 Server (GPU Double-Wide Ready) | B6: Chassis with Up to 16 x 2.5 Hard Drives for 2CPU, GPU Double-Wide Configuration | D6: =VLOOKUP(L6,Tabella_prezzi!$A$1:$L$189,8,FALSE) -> 0 | H6: =VLOOKUP(L6,Tabella_prezzi!$A$1:$L$189,9,FALSE) -> PowerEdge R7525 Server | I6: =VLOOKUP(L6,Tabella_prezzi!$A$1:$L$189,3,FALSE) -> Server rackable bi-processore prest. | J6: =VLOOKUP(L6,Tabella_prezzi!$A$1:$L$189,4,FALSE) -> 4047.7 | L6: L7N01 | M6: =VLOOKUP(L6,Tabella_prezzi!$A$1:$L$189,6,FALSE) -> TS4L7-SRV
A8: TS3L7_Chassis
A9: PowerEdge R7525 Server (General Purpose) | B9: Chassis with Up to 16 x 2.5 Hard Drives for 1CPU Configuration | C9: Chassis with Up to 16 x 2.5'' Hard Drives for 2CPU Configuration | F9: 0 | G9: 1 | H9: =VLOOKUP(L9,Tabella_prezzi!$A$1:$L$189,9,FALSE) -> Kit upgrade chassies for 2 CPU | I9: TS4-Opz1CPU | K9: =VLOOKUP(L9,Tabella_prezzi!$A$1:$L$189,4,FALSE) -> 0 | L9: L7N105 | M9: ="" -> 
A10: PowerEdge R7525 Server (nVME) | B10: Chassis with Up to 16X 2.5 SAS/SATA + 8X 2.5 NVME for 2CPU Configuration | C10: Chassis with Up to 16X 2.5 SAS/SATA + 8X 2.5 NVME for 2CPU Configuration | D10: Kit upgrade chassies for Server nVME | G10: 1 | H10: =VLOOKUP(L10,Tabella_prezzi!$A$1:$L$189,9,FALSE) -> Kit upgrade chassies for Server nVME | I10: =VLOOKUP(L10,Tabella_prezzi!$A$1:$L$189,9,FALSE) -> Kit upgrade chassies for Server nVME | K10: =VLOOKUP(L10,Tabella_prezzi!$A$1:$L$189,4,FALSE) -> 0 | L10: L7N97 | M10: =VLOOKUP(L10,Tabella_prezzi!$A$1:$L$189,6,FALSE) -> TS4L7-NVME
A11: PowerEdge R7525 Server (vSAN Ready) | B11: Chassis with Up to 16X 2.5 SAS/SATA + 8X 2.5 NVME for 2CPU Configuration | C11: Chassis with Up to 16X 2.5 SAS/SATA + 8X 2.5 NVME for 2CPU Configuration | D11: =VLOOKUP(L11,Tabella_prezzi!$A$1:$L$189,8,FALSE) -> Kit upgrade chassies for Server vSAN Ready | G11: 1 | H11: =VLOOKUP(L11,Tabella_prezzi!$A$1:$L$189,9,FALSE) -> Kit upgrade chassies for Server vSAN Ready | I11: =VLOOKUP(L11,Tabella_prezzi!$A$1:$L$189,9,FALSE) -> Kit upgrade chassies for Server vSAN Ready | K11: =VLOOKUP(L11,Tabella_prezzi!$A$1:$L$189,4,FALSE) -> 0 | L11: L7N38 | M11: =VLOOKUP(L11,Tabella_prezzi!$A$1:$L$189,6,FALSE) -> TS4L7-VSAN
A12: PowerEdge R7525 Server (GPU Single-Wide Ready) | B12: Chassis with Up to 16 x 2.5 Hard Drives for 2CPU, GPU Single-Wide Configuration | C12: Chassis with Up to 16 x 2.5 Hard Drives for 2CPU, GPU Single-Wide Configuration | D12: =VLOOKUP(L12,Tabella_prezzi!$A$1:$L$189,8,FALSE) -> Kit upgrade chassies for Server GPU Single-Wide Ready | G12: 1 | H12: =VLOOKUP(L12,Tabella_prezzi!$A$1:$L$189,9,FALSE) -> Kit upgrade chassies for Server GPU Single-Wide Ready | I12: =VLOOKUP(L12,Tabella_prezzi!$A$1:$L$189,9,FALSE) -> Kit upgrade chassies for Server GPU Single-Wide Ready | K12: =VLOOKUP(L12,Tabella_prezzi!$A$1:$L$189,4,FALSE) -> 299 | L12: L7N36 | M12: =VLOOKUP(L12,Tabella_prezzi!$A$1:$L$189,6,FALSE) -> TS4L7-GPUSW
A13: PowerEdge R7525 Server (GPU Double-Wide Ready) | B13: Chassis with Up to 16 x 2.5 Hard Drives for 2CPU, GPU Double-Wide Configuration | C13: Chassis with Up to 16 x 2.5 Hard Drives for 2CPU, GPU Double-Wide Configuration | D13: =VLOOKUP(L13,Tabella_prezzi!$A$1:$L$189,8,FALSE) -> Kit upgrade chassies for Server GPU Double-Wide Ready | G13: 1 | H13: =VLOOKUP(L13,Tabella_prezzi!$A$1:$L$189,9,FALSE) -> Kit upgrade chassies for Server GPU Double-Wide Ready | I13: =VLOOKUP(L13,Tabella_prezzi!$A$1:$L$189,9,FALSE) -> Kit upgrade chassies for Server GPU Double-Wide Ready | K13: =VLOOKUP(L13,Tabella_prezzi!$A$1:$L$189,4,FALSE) -> 0 | L13: L7N37 | M13: =VLOOKUP(L13,Tabella_prezzi!$A$1:$L$189,6,FALSE) -> TS4L7-GPUDW
A15: TS3L7_CPU
A16: No Additional Processor | G16: 0 | I16: ="" ->  | L16: ="" ->  | M16: ="" -> 
A17: =D17 -> AMD EPYC 7313 3.0GHz, 16C/32T, 128M Cache (155W) DDR4-3200 | D17: =VLOOKUP(L17,Tabella_prezzi!$A$1:$L$189,8,FALSE) -> AMD EPYC 7313 3.0GHz, 16C/32T, 128M Cache (155W) DDR4-3200 | G17: 1 | H17: =VLOOKUP(L17,Tabella_prezzi!$A$1:$L$189,9,FALSE) -> AMD EPYC 7313 3.0GHz, 16C/32T, 128M Cache (155W) DDR4-3200 | I17: =VLOOKUP(L17,Tabella_prezzi!$A$1:$L$189,3,FALSE) -> Kit n. 1 Processore aggiuntivo | J17: =VLOOKUP(L17,Tabella_prezzi!$A$1:$L$189,4,FALSE) -> 680.84 | L17: L7N02 | M17: =VLOOKUP(L17,Tabella_prezzi!$A$1:$L$189,6,FALSE) -> TS4L7-CPU
A18: AMD7413 2.65GHz,24C/48T,128M,180W,3200CK | D18: =VLOOKUP(L18,Tabella_prezzi!$A$1:$L$189,8,FALSE) -> Upgrade da Processore aggiuntivo a Processore 8 core | G18: 1 | H18: =VLOOKUP(L18,Tabella_prezzi!$A$1:$L$189,9,FALSE) -> Upgrade da Processore aggiuntivo a Processore 8 core | I18: =VLOOKUP(L18,Tabella_prezzi!$A$1:$L$189,3,FALSE) -> Kit n. 1 Processore 8 Core aggiuntivo | K18: =VLOOKUP(L18,Tabella_prezzi!$A$1:$L$189,4,FALSE) -> 99999 | L18: L7N48 | M18: =VLOOKUP(L18,Tabella_prezzi!$A$1:$L$189,6,FALSE) -> TS4L7-CPU8CORE
A20: TS3L7_CPU8core
A21: AMD EPYC 7313 3.0GHz, 16C/32T, 128M Cache (155W) DDR4-3200 | G21: 0 | I21: ="" ->  | L21: ="" ->  | M21: ="" -> 
A22: AMD7413 2.65GHz,24C/48T,128M,180W,3200CK | D22: =VLOOKUP(L22,Tabella_prezzi!$A$1:$L$189,8,FALSE) -> Upgrade da Processore base a Processore 8 core | G22: 1 | H22: =VLOOKUP(L22,Tabella_prezzi!$A$1:$L$189,9,FALSE) -> Upgrade da Processore base a Processore 8 core | I22: =VLOOKUP(L22,Tabella_prezzi!$A$1:$L$189,3,FALSE) -> Kit n. 1 Processore 8 Core base | K22: =VLOOKUP(L22,Tabella_prezzi!$A$1:$L$189,4,FALSE) -> 99999 | L22: L7N47 | M22: =VLOOKUP(L22,Tabella_prezzi!$A$1:$L$189,6,FALSE) -> TS4L7-SRV8CORE
A24: TS3L7_CPU8coreadd
A25: No Additional Processor | G25: 0 | I25: ="" ->  | L25: ="" ->  | M25: ="" -> 
A26: AMD EPYC 7313 3.0GHz, 16C/32T, 128M Cache (155W) DDR4-3200 | D26: =VLOOKUP(L26,Tabella_prezzi!$A$1:$L$189,8,FALSE) -> Upgrade da Processore aggiuntivo a Processore 8 core | G26: 1 | H26: =VLOOKUP(L26,Tabella_prezzi!$A$1:$L$189,9,FALSE) -> Upgrade da Processore aggiuntivo a Processore 8 core | I26: =VLOOKUP(L26,Tabella_prezzi!$A$1:$L$189,3,FALSE) -> Kit n. 1 Processore 8 Core aggiuntivo | K26: =VLOOKUP(L26,Tabella_prezzi!$A$1:$L$189,4,FALSE) -> 99999 | L26: L7N48 | M26: =VLOOKUP(L26,Tabella_prezzi!$A$1:$L$189,6,FALSE) -> TS4L7-CPU8CORE
A29: TS3L7_RAM (1CPU)
A30: 256 | B30: Memory Capacity | D30: =VLOOKUP(L30,Tabella_prezzi!$A$1:$L$189,8,FALSE) -> 32GB - 2Rx4 DDR4 RDIMM 3200MHz | F30: 370-AEVP | G30: 0 | H30: =VLOOKUP(L30,Tabella_prezzi!$A$1:$L$189,9,FALSE) -> 32GB - 2Rx4 DDR4 RDIMM 3200MHz | I30: =VLOOKUP(L30,Tabella_prezzi!$A$1:$L$189,3,FALSE) -> OpzRAM32GB | J30: =VLOOKUP(L30,Tabella_prezzi!$A$1:$L$189,4,FALSE)*G30 -> 0 | L30: L7N03 | M30: =VLOOKUP(L30,Tabella_prezzi!$A$1:$L$189,6,FALSE) -> TS4L7-RAM32
A31: =(32*G31)+256 -> 384 | B31: Memory Capacity | D31: =VLOOKUP(L31,Tabella_prezzi!$A$1:$L$189,8,FALSE) -> 32GB - 2Rx4 DDR4 RDIMM 3200MHz | F31: 370-AEVP | G31: 4 | H31: =VLOOKUP(L31,Tabella_prezzi!$A$1:$L$189,9,FALSE) -> 32GB - 2Rx4 DDR4 RDIMM 3200MHz | I31: =VLOOKUP(L31,Tabella_prezzi!$A$1:$L$189,3,FALSE) -> OpzRAM32GB | J31: =VLOOKUP(L31,Tabella_prezzi!$A$1:$L$189,4,FALSE)*G31 -> 1055.48 | L31: L7N03 | M31: =VLOOKUP(L31,Tabella_prezzi!$A$1:$L$189,6,FALSE) -> TS4L7-RAM32
A32: =(32*G32)+256 -> 448 | B32: Memory Capacity | D32: =VLOOKUP(L32,Tabella_prezzi!$A$1:$L$189,8,FALSE) -> 32GB - 2Rx4 DDR4 RDIMM 3200MHz | F32: 370-AEVP | G32: 6 | H32: =VLOOKUP(L32,Tabella_prezzi!$A$1:$L$189,9,FALSE) -> 32GB - 2Rx4 DDR4 RDIMM 3200MHz | I32: =VLOOKUP(L32,Tabella_prezzi!$A$1:$L$189,3,FALSE) -> OpzRAM32GB | J32: =VLOOKUP(L32,Tabella_prezzi!$A$1:$L$189,4,FALSE)*G32 -> 1583.22 | L32: L7N03 | M32: =VLOOKUP(L32,Tabella_prezzi!$A$1:$L$189,6,FALSE) -> TS4L7-RAM32
A33: 512 | B33: Memory Capacity | D33: =VLOOKUP(L33,Tabella_prezzi!$A$1:$L$189,8,FALSE) -> 32GB - 2Rx4 DDR4 RDIMM 3200MHz | F33: 370-AEVP | G33: 8 | H33: =VLOOKUP(L33,Tabella_prezzi!$A$1:$L$189,9,FALSE) -> 32GB - 2Rx4 DDR4 RDIMM 3200MHz | I33: =VLOOKUP(L33,Tabella_prezzi!$A$1:$L$189,3,FALSE) -> OpzRAM32GB | J33: =VLOOKUP(L33,Tabella_prezzi!$A$1:$L$189,4,FALSE)*G33 -> 2110.96 | L33: L7N03 | M33: =VLOOKUP(L33,Tabella_prezzi!$A$1:$L$189,6,FALSE) -> TS4L7-RAM32
A34: 576 | B34: Memory Capacity | D34: =VLOOKUP(L34,Tabella_prezzi!$A$1:$L$189,8,FALSE) -> 32GB - 2Rx4 DDR4 RDIMM 3200MHz | F34: 370-AEVP | G34: 10 | H34: =VLOOKUP(L34,Tabella_prezzi!$A$1:$L$189,9,FALSE) -> 32GB - 2Rx4 DDR4 RDIMM 3200MHz | I34: =VLOOKUP(L34,Tabella_prezzi!$A$1:$L$189,3,FALSE) -> OpzRAM32GB | J34: =VLOOKUP(L34,Tabella_prezzi!$A$1:$L$189,4,FALSE)*G34 -> 2638.7 | L34: L7N03 | M34: =VLOOKUP(L34,Tabella_prezzi!$A$1:$L$189,6,FALSE) -> TS4L7-RAM32
A35: 640 | B35: Memory Capacity | D35: =VLOOKUP(L35,Tabella_prezzi!$A$1:$L$189,8,FALSE) -> 32GB - 2Rx4 DDR4 RDIMM 3200MHz | F35: 370-AEVP | G35: 12 | H35: =VLOOKUP(L35,Tabella_prezzi!$A$1:$L$189,9,FALSE) -> 32GB - 2Rx4 DDR4 RDIMM 3200MHz | I35: =VLOOKUP(L35,Tabella_prezzi!$A$1:$L$189,3,FALSE) -> OpzRAM32GB | J35: =VLOOKUP(L35,Tabella_prezzi!$A$1:$L$189,4,FALSE)*G35 -> 3166.44 | L35: L7N03 | M35: =VLOOKUP(L35,Tabella_prezzi!$A$1:$L$189,6,FALSE) -> TS4L7-RAM32
A36: 704 | B36: Memory Capacity | D36: =VLOOKUP(L36,Tabella_prezzi!$A$1:$L$189,8,FALSE) -> 32GB - 2Rx4 DDR4 RDIMM 3200MHz | F36: 370-AEVP | G36: 14 | H36: =VLOOKUP(L36,Tabella_prezzi!$A$1:$L$189,9,FALSE) -> 32GB - 2Rx4 DDR4 RDIMM 3200MHz | I36: =VLOOKUP(L36,Tabella_prezzi!$A$1:$L$189,3,FALSE) -> OpzRAM32GB | J36: =VLOOKUP(L36,Tabella_prezzi!$A$1:$L$189,4,FALSE)*G36 -> 3694.18 | L36: L7N03 | M36: =VLOOKUP(L36,Tabella_prezzi!$A$1:$L$189,6,FALSE) -> TS4L7-RAM32
A37: 768 | B37: Memory Capacity | D37: =VLOOKUP(L37,Tabella_prezzi!$A$1:$L$189,8,FALSE) -> 32GB - 2Rx4 DDR4 RDIMM 3200MHz | F37: 370-AEVP | G37: 16 | H37: =VLOOKUP(L37,Tabella_prezzi!$A$1:$L$189,9,FALSE) -> 32GB - 2Rx4 DDR4 RDIMM 3200MHz | I37: =VLOOKUP(L37,Tabella_prezzi!$A$1:$L$189,3,FALSE) -> OpzRAM32GB | J37: =VLOOKUP(L37,Tabella_prezzi!$A$1:$L$189,4,FALSE)*G37 -> 4221.92 | L37: L7N03 | M37: =VLOOKUP(L37,Tabella_prezzi!$A$1:$L$189,6,FALSE) -> TS4L7-RAM32
A38: 832 | B38: Memory Capacity | D38: =VLOOKUP(L38,Tabella_prezzi!$A$1:$L$189,8,FALSE) -> 32GB - 2Rx4 DDR4 RDIMM 3200MHz | F38: 370-AEVP | G38: 18 | H38: =VLOOKUP(L38,Tabella_prezzi!$A$1:$L$189,9,FALSE) -> 32GB - 2Rx4 DDR4 RDIMM 3200MHz | I38: =VLOOKUP(L38,Tabella_prezzi!$A$1:$L$189,3,FALSE) -> OpzRAM32GB | J38: =VLOOKUP(L38,Tabella_prezzi!$A$1:$L$189,4,FALSE)*G38 -> 4749.66 | L38: L7N03 | M38: =VLOOKUP(L38,Tabella_prezzi!$A$1:$L$189,6,FALSE) -> TS4L7-RAM32
A39: 896 | B39: Memory Capacity | D39: =VLOOKUP(L69,Tabella_prezzi!$A$1:$L$189,8,FALSE) -> 64GB - 2RX4 DDR4 RDIMM 3200MHz | F39: 370-AEVP | G39: 20 | H39: =VLOOKUP(L69,Tabella_prezzi!$A$1:$L$189,9,FALSE) -> 64GB - 2RX4 DDR4 RDIMM 3200MHz | I39: =VLOOKUP(L69,Tabella_prezzi!$A$1:$L$189,3,FALSE) -> OpzRAM64GB | J39: =VLOOKUP(L69,Tabella_prezzi!$A$1:$L$189,4,FALSE)*G39 -> 6052 | L39: L7N03 | M39: =VLOOKUP(L69,Tabella_prezzi!$A$1:$L$189,6,FALSE) -> TS4L7-RAM64
A40: 960 | B40: Memory Capacity | D40: =VLOOKUP(L70,Tabella_prezzi!$A$1:$L$189,8,FALSE) -> 64GB - 2RX4 DDR4 RDIMM 3200MHz | F40: 370-AEVP | G40: 22 | H40: =VLOOKUP(L70,Tabella_prezzi!$A$1:$L$189,9,FALSE) -> 64GB - 2RX4 DDR4 RDIMM 3200MHz | I40: =VLOOKUP(L70,Tabella_prezzi!$A$1:$L$189,3,FALSE) -> OpzRAM64GB | J40: =VLOOKUP(L70,Tabella_prezzi!$A$1:$L$189,4,FALSE)*G40 -> 6657.2 | L40: L7N03 | M40: =VLOOKUP(L70,Tabella_prezzi!$A$1:$L$189,6,FALSE) -> TS4L7-RAM64
A41: 1024 | B41: Memory Capacity | D41: =VLOOKUP(L71,Tabella_prezzi!$A$1:$L$189,8,FALSE) -> 64GB - 2RX4 DDR4 RDIMM 3200MHz | F41: 370-AEVP | G41: 24 | H41: =VLOOKUP(L71,Tabella_prezzi!$A$1:$L$189,9,FALSE) -> 64GB - 2RX4 DDR4 RDIMM 3200MHz | I41: =VLOOKUP(L71,Tabella_prezzi!$A$1:$L$189,3,FALSE) -> OpzRAM64GB | J41: =VLOOKUP(L71,Tabella_prezzi!$A$1:$L$189,4,FALSE)*G41 -> 7262.4 | L41: L7N03 | M41: =VLOOKUP(L71,Tabella_prezzi!$A$1:$L$189,6,FALSE) -> TS4L7-RAM64
A42: 1088 | B42: Memory Capacity | D42: =VLOOKUP(L72,Tabella_prezzi!$A$1:$L$189,8,FALSE) -> 64GB - 2RX4 DDR4 RDIMM 3200MHz | F42: 370-AEVP | G42: 26 | H42: =VLOOKUP(L72,Tabella_prezzi!$A$1:$L$189,9,FALSE) -> 64GB - 2RX4 DDR4 RDIMM 3200MHz | I42: =VLOOKUP(L72,Tabella_prezzi!$A$1:$L$189,3,FALSE) -> OpzRAM64GB | J42: =VLOOKUP(L72,Tabella_prezzi!$A$1:$L$189,4,FALSE)*G42 -> 7867.6 | L42: L7N03 | M42: =VLOOKUP(L72,Tabella_prezzi!$A$1:$L$189,6,FALSE) -> TS4L7-RAM64
A43: 1152 | B43: Memory Capacity | D43: =VLOOKUP(L73,Tabella_prezzi!$A$1:$L$189,8,FALSE) ->  | F43: 370-AEVP | G43: 28 | H43: =VLOOKUP(L73,Tabella_prezzi!$A$1:$L$189,9,FALSE) ->  | I43: =VLOOKUP(L73,Tabella_prezzi!$A$1:$L$189,3,FALSE) ->  | J43: =VLOOKUP(L73,Tabella_prezzi!$A$1:$L$189,4,FALSE)*G43 ->  | L43: L7N03 | M43: =VLOOKUP(L73,Tabella_prezzi!$A$1:$L$189,6,FALSE) -> 
A45: TS3L7_RAM (2CPU)
A46: 256 | B46: Memory Capacity | D46: =VLOOKUP(L77,Tabella_prezzi!$A$1:$L$189,8,FALSE) -> Windows Server 2022,Standard,ROK,16CORE | F46: 370-AEVP | G46: 0 | H46: =VLOOKUP(L77,Tabella_prezzi!$A$1:$L$189,9,FALSE) -> Windows Server 2022,Standard,ROK,16CORE | I46: =VLOOKUP(L77,Tabella_prezzi!$A$1:$L$189,3,FALSE) -> OpzWinServSTD | J46: =VLOOKUP(L77,Tabella_prezzi!$A$1:$L$189,4,FALSE)*G46 -> 0 | L46: L7N03 | M46: =VLOOKUP(L77,Tabella_prezzi!$A$1:$L$189,6,FALSE) -> TS4L7-WINSRVSTD
A47: =(32*G47)+256 -> 384 | B47: Memory Capacity | D47: =VLOOKUP(L78,Tabella_prezzi!$A$1:$L$189,8,FALSE) -> Windows Server 2022 Standard Edition, Add License,2CORE | F47: 370-AEVP | G47: 4 | H47: =VLOOKUP(L78,Tabella_prezzi!$A$1:$L$189,9,FALSE) -> Windows Server 2022 Standard Edition, Add License,2CORE | I47: =VLOOKUP(L78,Tabella_prezzi!$A$1:$L$189,3,FALSE) -> OpzWinServSTD2core | J47: =VLOOKUP(L78,Tabella_prezzi!$A$1:$L$189,4,FALSE)*G47 -> 371.76 | L47: L7N03 | M47: =VLOOKUP(L78,Tabella_prezzi!$A$1:$L$189,6,FALSE) -> TS4L7-WINSRV2C
A48: 448 | B48: Memory Capacity | D48: =VLOOKUP(L76,Tabella_prezzi!$A$1:$L$189,8,FALSE) -> Ubuntu Server 22.04 LTS 64 Bit | F48: 370-AEVP | G48: 6 | H48: =VLOOKUP(L76,Tabella_prezzi!$A$1:$L$189,9,FALSE) -> Ubuntu Server 22.04 LTS 64 Bit | I48: =VLOOKUP(L76,Tabella_prezzi!$A$1:$L$189,3,FALSE) -> OpzOpenSource | J48: =VLOOKUP(L76,Tabella_prezzi!$A$1:$L$189,4,FALSE)*G48 -> 222.72 | L48: L7N03 | M48: =VLOOKUP(L76,Tabella_prezzi!$A$1:$L$189,6,FALSE) -> TS4L7-LINUX
A49: 512 | B49: Memory Capacity | D49: =VLOOKUP(L49,Tabella_prezzi!$A$1:$L$189,8,FALSE) -> 32GB - 2Rx4 DDR4 RDIMM 3200MHz | F49: 370-AEVP | G49: 8 | H49: =VLOOKUP(L49,Tabella_prezzi!$A$1:$L$189,9,FALSE) -> 32GB - 2Rx4 DDR4 RDIMM 3200MHz | I49: =VLOOKUP(L49,Tabella_prezzi!$A$1:$L$189,3,FALSE) -> OpzRAM32GB | J49: =VLOOKUP(L49,Tabella_prezzi!$A$1:$L$189,4,FALSE)*G49 -> 2110.96 | L49: L7N03 | M49: =VLOOKUP(L49,Tabella_prezzi!$A$1:$L$189,6,FALSE) -> TS4L7-RAM32
A50: 576 | B50: Memory Capacity | D50: =VLOOKUP(L50,Tabella_prezzi!$A$1:$L$189,8,FALSE) -> 32GB - 2Rx4 DDR4 RDIMM 3200MHz | F50: 370-AEVP | G50: 10 | H50: =VLOOKUP(L50,Tabella_prezzi!$A$1:$L$189,9,FALSE) -> 32GB - 2Rx4 DDR4 RDIMM 3200MHz | I50: =VLOOKUP(L50,Tabella_prezzi!$A$1:$L$189,3,FALSE) -> OpzRAM32GB | J50: =VLOOKUP(L50,Tabella_prezzi!$A$1:$L$189,4,FALSE)*G50 -> 2638.7 | L50: L7N03 | M50: =VLOOKUP(L50,Tabella_prezzi!$A$1:$L$189,6,FALSE) -> TS4L7-RAM32
A51: 640 | B51: Memory Capacity | D51: =VLOOKUP(L51,Tabella_prezzi!$A$1:$L$189,8,FALSE) -> 32GB - 2Rx4 DDR4 RDIMM 3200MHz | F51: 370-AEVP | G51: 12 | H51: =VLOOKUP(L51,Tabella_prezzi!$A$1:$L$189,9,FALSE) -> 32GB - 2Rx4 DDR4 RDIMM 3200MHz | I51: =VLOOKUP(L51,Tabella_prezzi!$A$1:$L$189,3,FALSE) -> OpzRAM32GB | J51: =VLOOKUP(L51,Tabella_prezzi!$A$1:$L$189,4,FALSE)*G51 -> 3166.44 | L51: L7N03 | M51: =VLOOKUP(L51,Tabella_prezzi!$A$1:$L$189,6,FALSE) -> TS4L7-RAM32
A52: 704 | B52: Memory Capacity | D52: =VLOOKUP(L52,Tabella_prezzi!$A$1:$L$189,8,FALSE) -> 32GB - 2Rx4 DDR4 RDIMM 3200MHz | F52: 370-AEVP | G52: 14 | H52: =VLOOKUP(L52,Tabella_prezzi!$A$1:$L$189,9,FALSE) -> 32GB - 2Rx4 DDR4 RDIMM 3200MHz | I52: =VLOOKUP(L52,Tabella_prezzi!$A$1:$L$189,3,FALSE) -> OpzRAM32GB | J52: =VLOOKUP(L52,Tabella_prezzi!$A$1:$L$189,4,FALSE)*G52 -> 3694.18 | L52: L7N03 | M52: =VLOOKUP(L52,Tabella_prezzi!$A$1:$L$189,6,FALSE) -> TS4L7-RAM32
A53: 768 | B53: Memory Capacity | D53: =VLOOKUP(L53,Tabella_prezzi!$A$1:$L$189,8,FALSE) -> 32GB - 2Rx4 DDR4 RDIMM 3200MHz | F53: 370-AEVP | G53: 16 | H53: =VLOOKUP(L53,Tabella_prezzi!$A$1:$L$189,9,FALSE) -> 32GB - 2Rx4 DDR4 RDIMM 3200MHz | I53: =VLOOKUP(L53,Tabella_prezzi!$A$1:$L$189,3,FALSE) -> OpzRAM32GB | J53: =VLOOKUP(L53,Tabella_prezzi!$A$1:$L$189,4,FALSE)*G53 -> 4221.92 | L53: L7N03 | M53: =VLOOKUP(L53,Tabella_prezzi!$A$1:$L$189,6,FALSE) -> TS4L7-RAM32
A54: 832 | B54: Memory Capacity | D54: =VLOOKUP(L54,Tabella_prezzi!$A$1:$L$189,8,FALSE) -> 32GB - 2Rx4 DDR4 RDIMM 3200MHz | F54: 370-AEVP | G54: 18 | H54: =VLOOKUP(L54,Tabella_prezzi!$A$1:$L$189,9,FALSE) -> 32GB - 2Rx4 DDR4 RDIMM 3200MHz | I54: =VLOOKUP(L54,Tabella_prezzi!$A$1:$L$189,3,FALSE) -> OpzRAM32GB | J54: =VLOOKUP(L54,Tabella_prezzi!$A$1:$L$189,4,FALSE)*G54 -> 4749.66 | L54: L7N03 | M54: =VLOOKUP(L54,Tabella_prezzi!$A$1:$L$189,6,FALSE) -> TS4L7-RAM32
A55: 896 | B55: Memory Capacity | D55: =VLOOKUP(L55,Tabella_prezzi!$A$1:$L$189,8,FALSE) -> 32GB - 2Rx4 DDR4 RDIMM 3200MHz | F55: 370-AEVP | G55: 20 | H55: =VLOOKUP(L55,Tabella_prezzi!$A$1:$L$189,9,FALSE) -> 32GB - 2Rx4 DDR4 RDIMM 3200MHz | I55: =VLOOKUP(L55,Tabella_prezzi!$A$1:$L$189,3,FALSE) -> OpzRAM32GB | J55: =VLOOKUP(L55,Tabella_prezzi!$A$1:$L$189,4,FALSE)*G55 -> 5277.4 | L55: L7N03 | M55: =VLOOKUP(L55,Tabella_prezzi!$A$1:$L$189,6,FALSE) -> TS4L7-RAM32
A56: 960 | B56: Memory Capacity | D56: =VLOOKUP(L56,Tabella_prezzi!$A$1:$L$189,8,FALSE) -> 32GB - 2Rx4 DDR4 RDIMM 3200MHz | F56: 370-AEVP | G56: 22 | H56: =VLOOKUP(L56,Tabella_prezzi!$A$1:$L$189,9,FALSE) -> 32GB - 2Rx4 DDR4 RDIMM 3200MHz | I56: =VLOOKUP(L56,Tabella_prezzi!$A$1:$L$189,3,FALSE) -> OpzRAM32GB | J56: =VLOOKUP(L56,Tabella_prezzi!$A$1:$L$189,4,FALSE)*G56 -> 5805.14 | L56: L7N03 | M56: =VLOOKUP(L56,Tabella_prezzi!$A$1:$L$189,6,FALSE) -> TS4L7-RAM32
A57: 1024 | B57: Memory Capacity | D57: =VLOOKUP(L57,Tabella_prezzi!$A$1:$L$189,8,FALSE) -> 32GB - 2Rx4 DDR4 RDIMM 3200MHz | F57: 370-AEVP | G57: 24 | H57: =VLOOKUP(L57,Tabella_prezzi!$A$1:$L$189,9,FALSE) -> 32GB - 2Rx4 DDR4 RDIMM 3200MHz | I57: =VLOOKUP(L57,Tabella_prezzi!$A$1:$L$189,3,FALSE) -> OpzRAM32GB | J57: =VLOOKUP(L57,Tabella_prezzi!$A$1:$L$189,4,FALSE)*G57 -> 6332.88 | L57: L7N03 | M57: =VLOOKUP(L57,Tabella_prezzi!$A$1:$L$189,6,FALSE) -> TS4L7-RAM32
A58: =(G58)*64 -> 1152 | B58: Memory Capacity | D58: =VLOOKUP(L58,Tabella_prezzi!$A$1:$L$189,8,FALSE) -> 64GB - 2RX4 DDR4 RDIMM 3200MHz | F58: 370-AEVP | G58: 18 | H58: =VLOOKUP(L58,Tabella_prezzi!$A$1:$L$189,9,FALSE) -> 64GB - 2RX4 DDR4 RDIMM 3200MHz | I58: =VLOOKUP(L58,Tabella_prezzi!$A$1:$L$189,3,FALSE) -> OpzRAM64GB | J58: =VLOOKUP(L58,Tabella_prezzi!$A$1:$L$189,4,FALSE)*(G58) -> 5446.8 | L58: L7N04 | M58: =VLOOKUP(L58,Tabella_prezzi!$A$1:$L$189,6,FALSE) -> TS4L7-RAM64
A59: =(G59)*64 -> 1280 | B59: Memory Capacity | D59: =VLOOKUP(L59,Tabella_prezzi!$A$1:$L$189,8,FALSE) -> 64GB - 2RX4 DDR4 RDIMM 3200MHz | F59: 370-AEVP | G59: 20 | H59: =VLOOKUP(L59,Tabella_prezzi!$A$1:$L$189,9,FALSE) -> 64GB - 2RX4 DDR4 RDIMM 3200MHz | I59: =VLOOKUP(L59,Tabella_prezzi!$A$1:$L$189,3,FALSE) -> OpzRAM64GB | J59: =VLOOKUP(L59,Tabella_prezzi!$A$1:$L$189,4,FALSE)*(G59) -> 6052 | L59: L7N04 | M59: =VLOOKUP(L59,Tabella_prezzi!$A$1:$L$189,6,FALSE) -> TS4L7-RAM64
A60: 1408 | B60: Memory Capacity | D60: =VLOOKUP(L60,Tabella_prezzi!$A$1:$L$189,8,FALSE) -> 64GB - 2RX4 DDR4 RDIMM 3200MHz | F60: 370-AEVP | G60: 22 | H60: =VLOOKUP(L60,Tabella_prezzi!$A$1:$L$189,9,FALSE) -> 64GB - 2RX4 DDR4 RDIMM 3200MHz | I60: =VLOOKUP(L60,Tabella_prezzi!$A$1:$L$189,3,FALSE) -> OpzRAM64GB | J60: =VLOOKUP(L60,Tabella_prezzi!$A$1:$L$189,4,FALSE)*(G60) -> 6657.2 | L60: L7N04 | M60: =VLOOKUP(L60,Tabella_prezzi!$A$1:$L$189,6,FALSE) -> TS4L7-RAM64
A61: 1536 | B61: Memory Capacity | D61: =VLOOKUP(L61,Tabella_prezzi!$A$1:$L$189,8,FALSE) -> 64GB - 2RX4 DDR4 RDIMM 3200MHz | F61: 370-AEVP | G61: 24 | H61: =VLOOKUP(L61,Tabella_prezzi!$A$1:$L$189,9,FALSE) -> 64GB - 2RX4 DDR4 RDIMM 3200MHz | I61: =VLOOKUP(L61,Tabella_prezzi!$A$1:$L$189,3,FALSE) -> OpzRAM64GB | J61: =VLOOKUP(L61,Tabella_prezzi!$A$1:$L$189,4,FALSE)*(G61) -> 7262.4 | L61: L7N04 | M61: =VLOOKUP(L61,Tabella_prezzi!$A$1:$L$189,6,FALSE) -> TS4L7-RAM64
A62: 1664 | B62: Memory Capacity | D62: =VLOOKUP(L62,Tabella_prezzi!$A$1:$L$189,8,FALSE) -> 64GB - 2RX4 DDR4 RDIMM 3200MHz | F62: 370-AEVP | G62: 26 | H62: =VLOOKUP(L62,Tabella_prezzi!$A$1:$L$189,9,FALSE) -> 64GB - 2RX4 DDR4 RDIMM 3200MHz | I62: =VLOOKUP(L62,Tabella_prezzi!$A$1:$L$189,3,FALSE) -> OpzRAM64GB | J62: =VLOOKUP(L62,Tabella_prezzi!$A$1:$L$189,4,FALSE)*G62 -> 7867.6 | L62: L7N04 | M62: =VLOOKUP(L62,Tabella_prezzi!$A$1:$L$189,6,FALSE) -> TS4L7-RAM64
A63: 1792 | B63: Memory Capacity | D63: =VLOOKUP(L63,Tabella_prezzi!$A$1:$L$189,8,FALSE) -> 64GB - 2RX4 DDR4 RDIMM 3200MHz | F63: 370-AEVP | G63: 28 | H63: =VLOOKUP(L63,Tabella_prezzi!$A$1:$L$189,9,FALSE) -> 64GB - 2RX4 DDR4 RDIMM 3200MHz | I63: =VLOOKUP(L63,Tabella_prezzi!$A$1:$L$189,3,FALSE) -> OpzRAM64GB | J63: =VLOOKUP(L63,Tabella_prezzi!$A$1:$L$189,4,FALSE)*(G63) -> 8472.8 | L63: L7N04 | M63: =VLOOKUP(L63,Tabella_prezzi!$A$1:$L$189,6,FALSE) -> TS4L7-RAM64
A64: 1920 | B64: Memory Capacity | D64: =VLOOKUP(L64,Tabella_prezzi!$A$1:$L$189,8,FALSE) -> 64GB - 2RX4 DDR4 RDIMM 3200MHz | F64: 370-AEVP | G64: 30 | H64: =VLOOKUP(L64,Tabella_prezzi!$A$1:$L$189,9,FALSE) -> 64GB - 2RX4 DDR4 RDIMM 3200MHz | I64: =VLOOKUP(L64,Tabella_prezzi!$A$1:$L$189,3,FALSE) -> OpzRAM64GB | J64: =VLOOKUP(L64,Tabella_prezzi!$A$1:$L$189,4,FALSE)*(G64) -> 9078 | L64: L7N04 | M64: =VLOOKUP(L64,Tabella_prezzi!$A$1:$L$189,6,FALSE) -> TS4L7-RAM64
A65: 2048 | B65: Memory Capacity | D65: =VLOOKUP(L65,Tabella_prezzi!$A$1:$L$189,8,FALSE) -> 64GB - 2RX4 DDR4 RDIMM 3200MHz | F65: 370-AEVP | G65: 32 | H65: =VLOOKUP(L65,Tabella_prezzi!$A$1:$L$189,9,FALSE) -> 64GB - 2RX4 DDR4 RDIMM 3200MHz | I65: =VLOOKUP(L65,Tabella_prezzi!$A$1:$L$189,3,FALSE) -> OpzRAM64GB | J65: =VLOOKUP(L65,Tabella_prezzi!$A$1:$L$189,4,FALSE)*(G65) -> 9683.2 | L65: L7N04 | M65: =VLOOKUP(L65,Tabella_prezzi!$A$1:$L$189,6,FALSE) -> TS4L7-RAM64
A66: 1 | B66: 2 | C66: 3 | D66: 4 | E66: 5 | F66: 6 | G66: 7 | H66: 8 | I66: 9 | J66: 10 | K66: 11 | L66: 12 | M66: 13 | N66: 14 | O66: 15 | P66: 16 | Q66: 17 | R66: 18 | S66: 19 | T66: 20 | U66: 21 | V66: 22 | W66: 23
A68: TS3L7_RAM (2CPU)vxfelx
A69: 192GB | B69: Memory Capacity | D69: =VLOOKUP(L69,Tabella_prezzi!$A$1:$L$189,8,FALSE) -> 64GB - 2RX4 DDR4 RDIMM 3200MHz | F69: 370-AEVP | G69: 2 | H69: =VLOOKUP(L69,Tabella_prezzi!$A$1:$L$189,9,FALSE) -> 64GB - 2RX4 DDR4 RDIMM 3200MHz | I69: =VLOOKUP(L69,Tabella_prezzi!$A$1:$L$189,3,FALSE) -> OpzRAM64GB | J69: =VLOOKUP(L69,Tabella_prezzi!$A$1:$L$189,4,FALSE)*G69 -> 605.2 | L69: L7N04 | M69: =VLOOKUP(L69,Tabella_prezzi!$A$1:$L$189,6,FALSE) -> TS4L7-RAM64
A70: 384GB | B70: Memory Capacity | D70: =VLOOKUP(L70,Tabella_prezzi!$A$1:$L$189,8,FALSE) -> 64GB - 2RX4 DDR4 RDIMM 3200MHz | F70: 370-AEVP | G70: 5 | H70: =VLOOKUP(L70,Tabella_prezzi!$A$1:$L$189,9,FALSE) -> 64GB - 2RX4 DDR4 RDIMM 3200MHz | I70: =VLOOKUP(L70,Tabella_prezzi!$A$1:$L$189,3,FALSE) -> OpzRAM64GB | J70: =VLOOKUP(L70,Tabella_prezzi!$A$1:$L$189,4,FALSE)*G70 -> 1513 | L70: L7N04 | M70: =VLOOKUP(L70,Tabella_prezzi!$A$1:$L$189,6,FALSE) -> TS4L7-RAM64
A71: 768GB | B71: Memory Capacity | D71: =VLOOKUP(L71,Tabella_prezzi!$A$1:$L$189,8,FALSE) -> 64GB - 2RX4 DDR4 RDIMM 3200MHz | F71: 370-AEVP | G71: 11 | H71: =VLOOKUP(L71,Tabella_prezzi!$A$1:$L$189,9,FALSE) -> 64GB - 2RX4 DDR4 RDIMM 3200MHz | I71: =VLOOKUP(L71,Tabella_prezzi!$A$1:$L$189,3,FALSE) -> OpzRAM64GB | J71: =VLOOKUP(L71,Tabella_prezzi!$A$1:$L$189,4,FALSE)*G71 -> 3328.6 | L71: L7N04 | M71: =VLOOKUP(L71,Tabella_prezzi!$A$1:$L$189,6,FALSE) -> TS4L7-RAM64
A72: 1536GB | B72: Memory Capacity | D72: =VLOOKUP(L72,Tabella_prezzi!$A$1:$L$189,8,FALSE) -> 64GB - 2RX4 DDR4 RDIMM 3200MHz | F72: 370-AEVP | G72: 23 | H72: =VLOOKUP(L72,Tabella_prezzi!$A$1:$L$189,9,FALSE) -> 64GB - 2RX4 DDR4 RDIMM 3200MHz | I72: =VLOOKUP(L72,Tabella_prezzi!$A$1:$L$189,3,FALSE) -> OpzRAM64GB | J72: =VLOOKUP(L72,Tabella_prezzi!$A$1:$L$189,4,FALSE)*G72 -> 6959.8 | L72: L7N04 | M72: =VLOOKUP(L72,Tabella_prezzi!$A$1:$L$189,6,FALSE) -> TS4L7-RAM64
A74: TS3L7_OS
A75: No Operating System | B75: Operating System | G75: 0 | I75: ="" ->  | L75: ="" ->  | M75: ="" ->  | N75: 0 | P75: ="" ->  | Q75: ="" ->  | S75: 0 | T75: 0 | W75: ="" -> 
A76: =D76 -> Ubuntu Server 22.04 LTS 64 Bit | B76: Operating System | D76: =VLOOKUP(L76,Tabella_prezzi!$A$1:$L$189,9,FALSE) -> Ubuntu Server 22.04 LTS 64 Bit | G76: 1 | H76: =VLOOKUP(L76,Tabella_prezzi!$A$1:$L$189,9,FALSE) -> Ubuntu Server 22.04 LTS 64 Bit | I76: =VLOOKUP(L76,Tabella_prezzi!$A$1:$L$189,3,FALSE) -> OpzOpenSource | J76: =VLOOKUP(L76,Tabella_prezzi!$A$1:$L$189,4,FALSE) -> 37.12 | L76: L7N27 | M76: =VLOOKUP(L76,Tabella_prezzi!$A$1:$L$189,6,FALSE) -> TS4L7-LINUX | N76: 20 | O76: =VLOOKUP(T76,Tabella_prezzi!$A$1:$L$189,9,FALSE) -> 1-pack of Windows Server 2022/2019 Device CALs (STD or DC) | P76: =VLOOKUP(T76,Tabella_prezzi!$A$1:$L$189,3,FALSE) -> OpzDeviceCal | Q76: =VLOOKUP(T76,Tabella_prezzi!$A$1:$L$189,4,FALSE)*N76 -> 544.6 | S76: 6 | T76: L7N24 | V76: =VLOOKUP(T76,Tabella_prezzi!$A$1:$L$189,4,FALSE)*S76 -> 163.38 | W76: =VLOOKUP(T76,Tabella_prezzi!$A$1:$L$189,6,FALSE) -> TS4L7-WINDEVCAL
A77: Windows Server 2022,Standard,ROK,16CORE | B77: Operating System | D77: =VLOOKUP(L77,Tabella_prezzi!$A$1:$L$189,9,FALSE) -> Windows Server 2022,Standard,ROK,16CORE | G77: 1 | H77: =VLOOKUP(L77,Tabella_prezzi!$A$1:$L$189,9,FALSE) -> Windows Server 2022,Standard,ROK,16CORE | I77: =VLOOKUP(L77,Tabella_prezzi!$A$1:$L$189,3,FALSE) -> OpzWinServSTD | J77: =VLOOKUP(L77,Tabella_prezzi!$A$1:$L$189,4,FALSE) -> 816.77 | L77: L7N23 | M77: =VLOOKUP(L77,Tabella_prezzi!$A$1:$L$189,6,FALSE) -> TS4L7-WINSRVSTD | N77: 16 | O77: =VLOOKUP(T77,Tabella_prezzi!$A$1:$L$189,9,FALSE) -> Windows Server 2022,Standard,ROK,16CORE | P77: =VLOOKUP(T77,Tabella_prezzi!$A$1:$L$189,3,FALSE) -> OpzWinServSTD | Q77: =VLOOKUP(T77,Tabella_prezzi!$A$1:$L$189,4,FALSE)*N77 -> 13068.32 | S77: 6 | T77: L7N23 | U77: =VLOOKUP(T77,Tabella_prezzi!$A$1:$L$189,4,FALSE)*S77 -> 4900.62 | W77: =VLOOKUP(T77,Tabella_prezzi!$A$1:$L$189,6,FALSE) -> TS4L7-WINSRVSTD
A78: Windows Server 2022 Standard Edition, Add License,2CORE | B78: Operating System | D78: =VLOOKUP(L78,Tabella_prezzi!$A$1:$L$189,9,FALSE) -> Windows Server 2022 Standard Edition, Add License,2CORE | G78: 1 | H78: =VLOOKUP(L78,Tabella_prezzi!$A$1:$L$189,9,FALSE) -> Windows Server 2022 Standard Edition, Add License,2CORE | I78: =VLOOKUP(L78,Tabella_prezzi!$A$1:$L$189,3,FALSE) -> OpzWinServSTD2core | J78: =VLOOKUP(L78,Tabella_prezzi!$A$1:$L$189,4,FALSE) -> 92.94 | L78: L7N26 | M78: =VLOOKUP(L78,Tabella_prezzi!$A$1:$L$189,6,FALSE) -> TS4L7-WINSRV2C | N78: 16 | O78: =VLOOKUP(T78,Tabella_prezzi!$A$1:$L$189,9,FALSE) -> Windows Server 2022,Standard,ROK,16CORE | P78: =VLOOKUP(T78,Tabella_prezzi!$A$1:$L$189,3,FALSE) -> OpzWinServSTD | Q78: =VLOOKUP(T78,Tabella_prezzi!$A$1:$L$189,4,FALSE)*N78 -> 13068.32 | S78: 6 | T78: L7N23 | U78: =VLOOKUP(T78,Tabella_prezzi!$A$1:$L$189,4,FALSE)*S78 -> 4900.62 | W78: =VLOOKUP(T78,Tabella_prezzi!$A$1:$L$189,6,FALSE) -> TS4L7-WINSRVSTD
A79: Windows Server 2022,Standard,ROK,16CORE | B79: Operating System | D79: =VLOOKUP(L79,Tabella_prezzi!$A$1:$L$189,9,FALSE) -> Windows Server 2022,Standard,ROK,16CORE | G79: 1 | H79: =VLOOKUP(L79,Tabella_prezzi!$A$1:$L$189,9,FALSE) -> Windows Server 2022,Standard,ROK,16CORE | I79: =VLOOKUP(L79,Tabella_prezzi!$A$1:$L$189,3,FALSE) -> OpzWinServSTD | J79: =VLOOKUP(L79,Tabella_prezzi!$A$1:$L$189,4,FALSE) -> 816.77 | L79: L7N23 | M79: =VLOOKUP(L79,Tabella_prezzi!$A$1:$L$189,6,FALSE) -> TS4L7-WINSRVSTD | N79: 20 | O79: =VLOOKUP(T79,Tabella_prezzi!$A$1:$L$189,9,FALSE) -> 1-pack of Windows Server 2022/2019 Device CALs (STD or DC) | P79: =VLOOKUP(T79,Tabella_prezzi!$A$1:$L$189,3,FALSE) -> OpzDeviceCal | Q79: =VLOOKUP(T79,Tabella_prezzi!$A$1:$L$189,4,FALSE)*N79 -> 544.6 | S79: 6 | T79: L7N24 | V79: =VLOOKUP(T79,Tabella_prezzi!$A$1:$L$189,4,FALSE)*S79 -> 163.38 | W79: =VLOOKUP(T79,Tabella_prezzi!$A$1:$L$189,6,FALSE) -> TS4L7-WINDEVCAL
A80: 1-pack of Windows Server 2022/2019 Device CALs (STD or DC) | B80: Operating System | D80: =VLOOKUP(L80,Tabella_prezzi!$A$1:$L$189,9,FALSE) -> 1-pack of Windows Server 2022/2019 Device CALs (STD or DC) | G80: 1 | H80: =VLOOKUP(L80,Tabella_prezzi!$A$1:$L$189,9,FALSE) -> 1-pack of Windows Server 2022/2019 Device CALs (STD or DC) | I80: =VLOOKUP(L80,Tabella_prezzi!$A$1:$L$189,3,FALSE) -> OpzDeviceCal | J80: =VLOOKUP(L80,Tabella_prezzi!$A$1:$L$189,4,FALSE) -> 27.23 | L80: L7N24 | M80: =VLOOKUP(L80,Tabella_prezzi!$A$1:$L$189,6,FALSE) -> TS4L7-WINDEVCAL | N80: 0 | P80: ="" ->  | Q80: ="" ->  | S80: 0 | T80: 0 | W80: ="" -> 
A81: 1-pack of Windows Server 2022/2019 User CALs (STD or DC) | B81: Operating System | D81: =VLOOKUP(L81,Tabella_prezzi!$A$1:$L$189,9,FALSE) -> 1-pack of Windows Server 2022/2019 User CALs (STD or DC) | G81: 1 | H81: =VLOOKUP(L81,Tabella_prezzi!$A$1:$L$189,9,FALSE) -> 1-pack of Windows Server 2022/2019 User CALs (STD or DC) | I81: =VLOOKUP(L81,Tabella_prezzi!$A$1:$L$189,3,FALSE) -> OpzUserCal | J81: =VLOOKUP(L81,Tabella_prezzi!$A$1:$L$189,4,FALSE) -> 37.45 | L81: L7N25 | M81: =VLOOKUP(L81,Tabella_prezzi!$A$1:$L$189,6,FALSE) -> TS4L7-WINUSRCAL | N81: 0 | P81: ="" ->  | Q81: ="" ->  | S81: 0 | T81: 0 | W81: ="" -> 
A82: Ubuntu Server 22.04 LTS 64 Bit | B82: Operating System | D82: =VLOOKUP(L82,Tabella_prezzi!$A$1:$L$189,9,FALSE) -> Ubuntu Server 22.04 LTS 64 Bit | G82: 1 | H82: =VLOOKUP(L82,Tabella_prezzi!$A$1:$L$189,9,FALSE) -> Ubuntu Server 22.04 LTS 64 Bit | I82: =VLOOKUP(L82,Tabella_prezzi!$A$1:$L$189,3,FALSE) -> OpzOpenSource | J82: =VLOOKUP(L82,Tabella_prezzi!$A$1:$L$189,4,FALSE) -> 37.12 | L82: L7N27 | M82: =VLOOKUP(L82,Tabella_prezzi!$A$1:$L$189,6,FALSE) -> TS4L7-LINUX | N82: 16 | O82: =VLOOKUP(T82,Tabella_prezzi!$A$1:$L$189,9,FALSE) -> Windows Server 2022,Standard,ROK,16CORE | P82: =VLOOKUP(T82,Tabella_prezzi!$A$1:$L$189,3,FALSE) -> OpzWinServSTD | Q82: =VLOOKUP(T82,Tabella_prezzi!$A$1:$L$189,4,FALSE)*N82 -> 13068.32 | S82: 6 | T82: L7N23 | U82: =VLOOKUP(T82,Tabella_prezzi!$A$1:$L$189,4,FALSE)*S82 -> 4900.62 | W82: =VLOOKUP(T82,Tabella_prezzi!$A$1:$L$189,6,FALSE) -> TS4L7-WINSRVSTD
A84: TS3L7_HDD
A85: ="" ->  | G85: ="" ->  | I85: ="" ->  | L85: ="" ->  | M85: ="" -> 
A86: =VLOOKUP(L86,Tabella_prezzi!$A$1:$L$189,8,FALSE) -> 2.4TB 10k SAS ISE 12Gbps | B86: Hard Drives | D86: =VLOOKUP(L86,Tabella_prezzi!$A$1:$L$189,8,FALSE) -> 2.4TB 10k SAS ISE 12Gbps | G86: 1 | H86: =VLOOKUP(L86,Tabella_prezzi!$A$1:$L$189,9,FALSE) -> 2.4TB 10K RPM SAS ISE 12Gbps 512e 2.5in Hot-plug Hard Drive | I86: =VLOOKUP(L86,Tabella_prezzi!$A$1:$L$189,3,FALSE) -> OpzHDD2TB | J86: =VLOOKUP(L86,Tabella_prezzi!$A$1:$L$189,4,FALSE) -> 205.39 | L86: L7N12 | M86: =VLOOKUP(L86,Tabella_prezzi!$A$1:$L$189,6,FALSE) -> TS4L7-HDD2TB
A87: =VLOOKUP(L87,Tabella_prezzi!$A$1:$L$189,8,FALSE) -> 1.2TB 10K RPM SAS ISE 12Gbps | B87: Hard Drives | D87: =VLOOKUP(L87,Tabella_prezzi!$A$1:$L$189,8,FALSE) -> 1.2TB 10K RPM SAS ISE 12Gbps | G87: 1 | H87: =VLOOKUP(L87,Tabella_prezzi!$A$1:$L$189,9,FALSE) -> 1.2TB 10K RPM SAS ISE 12Gbps 512n 2.5in Hot-plug Hard Drive | I87: =VLOOKUP(L87,Tabella_prezzi!$A$1:$L$189,3,FALSE) -> OpzHDD1TB | J87: =VLOOKUP(L87,Tabella_prezzi!$A$1:$L$189,4,FALSE) -> 89.16 | L87: L7N13 | M87: =VLOOKUP(L87,Tabella_prezzi!$A$1:$L$189,6,FALSE) -> TS4L7-HDD1TB
A88: =VLOOKUP(L88,Tabella_prezzi!$A$1:$L$189,8,FALSE) -> 3.84TB SSD SAS ISE RI 12Gbps | B88: Hard Drives | D88: =VLOOKUP(L88,Tabella_prezzi!$A$1:$L$189,8,FALSE) -> 3.84TB SSD SAS ISE RI 12Gbps | G88: 1 | H88: =VLOOKUP(L88,Tabella_prezzi!$A$1:$L$189,9,FALSE) -> 3.84TB SSD SAS ISE RI 12Gbps 512e 2.5in PM6 Hot-Plug 1 DWPD | I88: =VLOOKUP(L88,Tabella_prezzi!$A$1:$L$189,3,FALSE) -> OpzSSD-RI3,8TB | J88: =VLOOKUP(L88,Tabella_prezzi!$A$1:$L$189,4,FALSE) -> 1010.45 | L88: L7N14 | M88: =VLOOKUP(L88,Tabella_prezzi!$A$1:$L$189,6,FALSE) -> TS4L7-SSD-RI3,8TB
A89: =VLOOKUP(L89,Tabella_prezzi!$A$1:$L$189,8,FALSE) -> 1.92TB SSD SAS ISE RI 12Gbps | B89: Hard Drives | D89: =VLOOKUP(L89,Tabella_prezzi!$A$1:$L$189,8,FALSE) -> 1.92TB SSD SAS ISE RI 12Gbps | G89: 1 | H89: =VLOOKUP(L89,Tabella_prezzi!$A$1:$L$189,9,FALSE) -> 1.92TB SSD SAS ISE RI 12Gbps 512e 2.5in Hot-Plug 1 DWPD | I89: =VLOOKUP(L89,Tabella_prezzi!$A$1:$L$189,3,FALSE) -> OpzSSD-RI1,6TB | J89: =VLOOKUP(L89,Tabella_prezzi!$A$1:$L$189,4,FALSE) -> 499.28 | L89: L7N16 | M89: =VLOOKUP(L89,Tabella_prezzi!$A$1:$L$189,6,FALSE) -> TS4L7-SSD-RI1,6TB
A90: =VLOOKUP(L90,Tabella_prezzi!$A$1:$L$189,8,FALSE) -> 1.6TB SSD SAS ISE MU 12Gbp | B90: Hard Drives | D90: =VLOOKUP(L90,Tabella_prezzi!$A$1:$L$189,8,FALSE) -> 1.6TB SSD SAS ISE MU 12Gbp | G90: 1 | H90: =VLOOKUP(L90,Tabella_prezzi!$A$1:$L$189,9,FALSE) -> 1.6TB SSD SAS ISE MU 12Gbps 512e 2.5in Hot-Plug PM6 3 DWPD | I90: =VLOOKUP(L90,Tabella_prezzi!$A$1:$L$189,3,FALSE) -> OpzSSD-MU1,6TB | J90: =VLOOKUP(L90,Tabella_prezzi!$A$1:$L$189,4,FALSE) -> 473.08 | L90: L7N17 | M90: =VLOOKUP(L90,Tabella_prezzi!$A$1:$L$189,6,FALSE) -> TS4L7-SSD-MU1,6TB
A91: =VLOOKUP(L91,Tabella_prezzi!$A$1:$L$189,8,FALSE) -> 960GB SSD SAS ISE RI 12Gbps | B91: Hard Drives | D91: =VLOOKUP(L91,Tabella_prezzi!$A$1:$L$189,8,FALSE) -> 960GB SSD SAS ISE RI 12Gbps | G91: 1 | H91: =VLOOKUP(L91,Tabella_prezzi!$A$1:$L$189,9,FALSE) -> 960GB SSD SAS ISE RI 12Gbps 512e 2.5in Hot-Plug 1 DWPD | I91: =VLOOKUP(L91,Tabella_prezzi!$A$1:$L$189,3,FALSE) -> OpzSSD-RI800GB | J91: =VLOOKUP(L91,Tabella_prezzi!$A$1:$L$189,4,FALSE) -> 283.68 | L91: L7N18 | M91: =VLOOKUP(L91,Tabella_prezzi!$A$1:$L$189,6,FALSE) -> TS4L7-SSD-RI800GB
A92: =VLOOKUP(L92,Tabella_prezzi!$A$1:$L$189,8,FALSE) -> 800GB SSD SAS ISE Mix Use 12Gbps | B92: Hard Drives | D92: =VLOOKUP(L92,Tabella_prezzi!$A$1:$L$189,8,FALSE) -> 800GB SSD SAS ISE Mix Use 12Gbps | G92: 1 | H92: =VLOOKUP(L92,Tabella_prezzi!$A$1:$L$189,9,FALSE) -> 800GB SSD SAS ISE Mix Use 12Gbps 512e 2.5in Hot-plug, 3 DWPD | I92: =VLOOKUP(L92,Tabella_prezzi!$A$1:$L$189,3,FALSE) -> OpzSSD-MU800GB | J92: =VLOOKUP(L92,Tabella_prezzi!$A$1:$L$189,4,FALSE) -> 295.03 | L92: L7N19 | M92: =VLOOKUP(L92,Tabella_prezzi!$A$1:$L$189,6,FALSE) -> TS4L7-SSD-MU800GB
A93: =VLOOKUP(L93,Tabella_prezzi!$A$1:$L$189,8,FALSE) -> Dispositivo UPS di tipo On-line doppia conversione, strutturato per il montaggio a rack da 19” | B93: Hard Drives | D93: =VLOOKUP(L93,Tabella_prezzi!$A$1:$L$189,8,FALSE) -> Dispositivo UPS di tipo On-line doppia conversione, strutturato per il montaggio a rack da 19” | G93: 1 | H93: =VLOOKUP(L93,Tabella_prezzi!$A$1:$L$189,9,FALSE) -> Dispositivo UPS di tipo On-line doppia conversione, strutturato per il montaggio a rack da 19” | I93: =VLOOKUP(L93,Tabella_prezzi!$A$1:$L$189,3,FALSE) -> OpzUps (3000VA) | J93: =VLOOKUP(L93,Tabella_prezzi!$A$1:$L$189,4,FALSE) -> 386.02 | L93: L7N20 | M93: =VLOOKUP(L93,Tabella_prezzi!$A$1:$L$189,6,FALSE) -> TS4L7-UPS
A94: =D94 -> Unità KVM - monitor 17", cavo combi PS/2&USB da 1,8mt, tastiera italiana, touch pad | B94: Hard Drives | D94: =VLOOKUP(L94,Tabella_prezzi!$A$1:$L$189,8,FALSE) -> Unità KVM - monitor 17", cavo combi PS/2&USB da 1,8mt, tastiera italiana, touch pad | G94: 1 | H94: =VLOOKUP(L94,Tabella_prezzi!$A$1:$L$189,9,FALSE) -> Unità KVM - monitor 17", cavo combi PS/2&USB da 1,8mt, tastiera italiana, touch pad | I94: =VLOOKUP(L94,Tabella_prezzi!$A$1:$L$189,3,FALSE) -> OpzGUI | J94: =VLOOKUP(L94,Tabella_prezzi!$A$1:$L$189,4,FALSE) -> 491.62 | L94: L7N21 | M94: =VLOOKUP(L94,Tabella_prezzi!$A$1:$L$189,6,FALSE) -> TS4L7-GUI
A95: Dispositivo UPS di tipo On-line doppia conversione, strutturato per il montaggio a rack da 19” | B95: Hard Drives | D95: =VLOOKUP(L95,Tabella_prezzi!$A$1:$L$189,8,FALSE) -> Dispositivo UPS di tipo On-line doppia conversione, strutturato per il montaggio a rack da 19” | G95: 1 | H95: =VLOOKUP(L95,Tabella_prezzi!$A$1:$L$189,9,FALSE) -> Dispositivo UPS di tipo On-line doppia conversione, strutturato per il montaggio a rack da 19” | I95: =VLOOKUP(L95,Tabella_prezzi!$A$1:$L$189,3,FALSE) -> OpzUps (3000VA) | J95: =VLOOKUP(L95,Tabella_prezzi!$A$1:$L$189,4,FALSE) -> 386.02 | L95: L7N20 | M95: =VLOOKUP(L95,Tabella_prezzi!$A$1:$L$189,6,FALSE) -> TS4L7-UPS
A96: Unità KVM - monitor 17", cavo combi PS/2&USB da 1,8mt, tastiera italiana, touch pad | B96: Hard Drives | D96: =VLOOKUP(L96,Tabella_prezzi!$A$1:$L$189,8,FALSE) -> Unità KVM - monitor 17", cavo combi PS/2&USB da 1,8mt, tastiera italiana, touch pad | G96: 1 | H96: =VLOOKUP(L96,Tabella_prezzi!$A$1:$L$189,9,FALSE) -> Unità KVM - monitor 17", cavo combi PS/2&USB da 1,8mt, tastiera italiana, touch pad | I96: =VLOOKUP(L96,Tabella_prezzi!$A$1:$L$189,3,FALSE) -> OpzGUI | J96: =VLOOKUP(L96,Tabella_prezzi!$A$1:$L$189,4,FALSE) -> 491.62 | L96: L7N21 | M96: =VLOOKUP(L96,Tabella_prezzi!$A$1:$L$189,6,FALSE) -> TS4L7-GUI
B97: Hard Drives | L97: L7N16 | M97: =VLOOKUP(L97,Tabella_prezzi!$A$1:$L$189,6,FALSE) -> TS4L7-SSD-RI1,6TB
A99: TS3L7_PSU
A100: Dual, Hot-plug, Redundant Power Supply (1+1), 750W | B100: Power Supply | D100: Dual, Hot-plug, Redundant Power Supply (1+1), 750W | G100: ="" ->  | I100: ="" ->  | L100: ="" ->  | M100: ="" -> 
A101: =D101 -> Dual, Hot-Plug, Power Supply 2400W Redundant, D | B101: Power Supply | D101: =VLOOKUP(L101,Tabella_prezzi!$A$1:$L$189,8,FALSE) -> Dual, Hot-Plug, Power Supply 2400W Redundant, D | G101: 1 | H101: =VLOOKUP(L101,Tabella_prezzi!$A$1:$L$189,9,FALSE) -> Dual, Hot-Plug, Power Supply 2400W Redundant, D | I101: =VLOOKUP(L101,Tabella_prezzi!$A$1:$L$189,3,FALSE) -> OpzPSU2400W | K101: =VLOOKUP(L101,Tabella_prezzi!$A$1:$L$189,4,FALSE) -> 0 | L101: L7N49 | M101: =VLOOKUP(L101,Tabella_prezzi!$A$1:$L$189,6,FALSE) -> TS4L7-PSU2400W
A102: Dual, Hot-plug Power Supply (1+1), 2000W | B102: Power Supply | D102: =VLOOKUP(L102,Tabella_prezzi!$A$1:$L$189,8,FALSE) -> Dual, Hot-plug Power Supply (1+1), 2000W in sostituzione di quelli in configurazione BASE | G102: 1 | H102: =VLOOKUP(L102,Tabella_prezzi!$A$1:$L$189,9,FALSE) -> Dual, Hot-plug Power Supply (1+1), 2000W in sostituzione di quelli in configurazione BASE | I102: =VLOOKUP(L102,Tabella_prezzi!$A$1:$L$189,3,FALSE) -> OpzPSU2000W | K102: =VLOOKUP(L102,Tabella_prezzi!$A$1:$L$189,4,FALSE) -> 306 | L102: L7N50 | M102: =VLOOKUP(L102,Tabella_prezzi!$A$1:$L$189,6,FALSE) -> TS4L7-PSU2000W
A105: ="" -> 
A106: Selezionare Chassis GPU Double-Wide Ready (2 CPU) | B106: ="" ->  | C106: ="" ->  | D106: ="" ->  | E106: ="" ->  | F106: ="" ->  | G106: ="" ->  | H106: ="" ->  | I106: ="" ->  | J106: ="" ->  | K106: ="" ->  | L106: ="" ->  | M106: ="" -> 
A108: TS3L7_AddGPU
A109: ="" ->  | C109: ="" ->  | D109: ="" ->  | E109: ="" ->  | F109: ="" ->  | G109: ="" ->  | I109: ="" ->  | J109: ="" ->  | L109: ="" ->  | M109: ="" -> 
A110: =D110 -> AMD MI100,300W PCIe, 32GB Passive, Double Wide, GPU | B110: GPU | D110: =VLOOKUP(L110,Tabella_prezzi!$A$1:$L$189,8,FALSE) -> AMD MI100,300W PCIe, 32GB Passive, Double Wide, GPU | G110: 1 | H110: =VLOOKUP(L110,Tabella_prezzi!$A$1:$L$189,9,FALSE) -> AMD MI100,300W PCIe, 32GB Passive, Double Wide, GPU | I110: =VLOOKUP(L110,Tabella_prezzi!$A$1:$L$189,3,FALSE) -> OpzGPU | J110: =VLOOKUP(L110,Tabella_prezzi!$A$1:$L$189,4,FALSE) -> 6264.37 | L110: L7N15 | M110: =VLOOKUP(L110,Tabella_prezzi!$A$1:$L$189,6,FALSE) -> TS4L7-GPU
A112: Cavo “patch” di 3 mt RJ45 certificato per gigabit ethernet | D112: =VLOOKUP(L112,Tabella_prezzi!$A$1:$L$189,8,FALSE) -> Cavo “patch” di 3 mt RJ45 certificato per gigabit ethernet | G112: ="" ->  | H112: =VLOOKUP(L112,Tabella_prezzi!$A$1:$L$189,9,FALSE) -> Cavo “patch” di 3 mt RJ45 certificato per gigabit ethernet | I112: =VLOOKUP(L112,Tabella_prezzi!$A$1:$L$189,3,FALSE) -> OpzRJ45 3m | K112: =VLOOKUP(L112,Tabella_prezzi!$A$1:$L$189,4,FALSE) -> 3 | L112: L7N62 | M112: =VLOOKUP(L112,Tabella_prezzi!$A$1:$L$189,6,FALSE) -> TS4L7-RJ453M
A113: Dell Networking, Cable, SFP+ to SFP+, 10GbE, Copper Twinax Direct Attach Cable, 3 Meter | D113: Dell Networking, Cable, SFP+ to SFP+, 10GbE, Copper Twinax Direct Attach Cable, 3 Meter | H113: =VLOOKUP(L113,Tabella_prezzi!$A$1:$L$189,9,FALSE) -> Dell Networking, Cable, SFP+ to SFP+, 10GbE, Copper Twinax Direct Attach Cable, 3 Meter | I113: =VLOOKUP(L113,Tabella_prezzi!$A$1:$L$189,3,FALSE) -> 0 | K113: =VLOOKUP(L113,Tabella_prezzi!$A$1:$L$189,4,FALSE) -> 84 | L113: L7N91 | M113: =VLOOKUP(L113,Tabella_prezzi!$A$1:$L$189,6,FALSE) -> TS4L7-DAC3SFP
A114: Mellanox LinkX 100Gb/s Passive Copper DAC 3m per scheda TS3L7-CONX6DP | D114: Mellanox LinkX 100Gb/s Passive Copper DAC 3m | H114: =VLOOKUP(L114,Tabella_prezzi!$A$1:$L$189,9,FALSE) -> Mellanox LinkX 100Gb/s Passive Copper DAC 3m per scheda TS4L7-CONX6DP | I114: =VLOOKUP(L114,Tabella_prezzi!$A$1:$L$189,3,FALSE) -> 0 | K114: =VLOOKUP(L114,Tabella_prezzi!$A$1:$L$189,4,FALSE) -> 258 | L114: L7N92 | M114: =VLOOKUP(L114,Tabella_prezzi!$A$1:$L$189,6,FALSE) -> TS4L7-MLX100M3
A115: Dell Cable SFP28 to SFP28 25GbE Passive Copper Twinax Direct Attach Cable 3 Meter | D115: Dell Cable SFP28 to SFP28 25GbE Passive Copper Twinax Direct Attach Cable 3 Meter | H115: =VLOOKUP(L115,Tabella_prezzi!$A$1:$L$189,9,FALSE) -> Dell Cable SFP28 to SFP28 25GbE Passive Copper Twinax Direct Attach Cable 3 Meter | I115: =VLOOKUP(L115,Tabella_prezzi!$A$1:$L$189,3,FALSE) -> 0 | K115: =VLOOKUP(L115,Tabella_prezzi!$A$1:$L$189,4,FALSE) -> 99 | L115: L7N93 | M115: =VLOOKUP(L115,Tabella_prezzi!$A$1:$L$189,6,FALSE) -> TS4L7-DAC3SFP28
A116: Cable, SFP+ to SFP+, 10GbE, Copper Twinax Direct Attach Cable, 3 Meter | D116: =VLOOKUP(L116,Tabella_prezzi!$A$1:$L$189,8,FALSE) -> Cable, SFP+ to SFP+, 10GbE, Copper Twinax Direct Attach Cable, 3 Meter | G116: ="" ->  | H116: =VLOOKUP(L116,Tabella_prezzi!$A$1:$L$189,9,FALSE) -> Cable, SFP+ to SFP+, 10GbE, Copper Twinax Direct Attach Cable, 3 Meter | I116: =VLOOKUP(L116,Tabella_prezzi!$A$1:$L$189,3,FALSE) -> OpzDAC3M | K116: =VLOOKUP(L116,Tabella_prezzi!$A$1:$L$189,4,FALSE) -> 9999 | L116: L7N67 | M116: =VLOOKUP(L116,Tabella_prezzi!$A$1:$L$189,6,FALSE) -> TS4L7-DAC3M
A117: Transceiver, SFP+, 10GbE, SR, 850nm Wavelength, 300m | D117: =VLOOKUP(L117,Tabella_prezzi!$A$1:$L$189,8,FALSE) -> Transceiver, SFP+, 10GbE, SR, 850nm Wavelength, 300m Reach | H117: =VLOOKUP(L117,Tabella_prezzi!$A$1:$L$189,9,FALSE) -> Transceiver, SFP+, 10GbE, SR, 850nm Wavelength, 300m Reach | I117: =VLOOKUP(L117,Tabella_prezzi!$A$1:$L$189,3,FALSE) -> Opz10GBIC | K117: =VLOOKUP(L117,Tabella_prezzi!$A$1:$L$189,4,FALSE) -> 90 | L117: L7N66 | M117: =VLOOKUP(L117,Tabella_prezzi!$A$1:$L$189,6,FALSE) -> TS4L7-10GBIC
A118: Mellanox LinkX 100Gb/s Passive Copper Cables - attacco cavo diretto - 3 m - nero | D118: =VLOOKUP(L118,Tabella_prezzi!$A$1:$L$189,8,FALSE) -> Mellanox LinkX 100Gb/s Passive Copper Cables - attacco cavo diretto - 3 m - nero | H118: =VLOOKUP(L118,Tabella_prezzi!$A$1:$L$189,9,FALSE) -> Mellanox LinkX 100Gb/s Passive Copper Cables - attacco cavo diretto - 3 m - nero | I118: =VLOOKUP(L118,Tabella_prezzi!$A$1:$L$189,3,FALSE) -> OpzLINKX3m | K118: =VLOOKUP(L118,Tabella_prezzi!$A$1:$L$189,4,FALSE) -> 9999 | L118: L7N63 | M118: =VLOOKUP(L118,Tabella_prezzi!$A$1:$L$189,6,FALSE) -> TS4L7-MEL100M3
A119: Mellanox LinkX 100Gb/s VCSEL-Based Active Optical Cables - cavo InfiniBand - 10 m | D119: =VLOOKUP(L119,Tabella_prezzi!$A$1:$L$189,8,FALSE) -> Mellanox LinkX 100Gb/s VCSEL-Based Active Optical Cables - cavo InfiniBand - 10 m | H119: =VLOOKUP(L119,Tabella_prezzi!$A$1:$L$189,9,FALSE) -> Mellanox LinkX 100Gb/s VCSEL-Based Active Optical Cables - cavo InfiniBand - 10 m | I119: =VLOOKUP(L119,Tabella_prezzi!$A$1:$L$189,3,FALSE) -> OpzLINKX10m | K119: =VLOOKUP(L119,Tabella_prezzi!$A$1:$L$189,4,FALSE) -> 9999 | L119: L7N64 | M119: =VLOOKUP(L119,Tabella_prezzi!$A$1:$L$189,6,FALSE) -> TS4L7-MEL100M10
A120: Dell EMC PowerEdge QSFP28 SR4 100GbE 85C optic | D120: =VLOOKUP(L120,Tabella_prezzi!$A$1:$L$189,8,FALSE) -> Dell EMC PowerEdge QSFP28 SR4 100GbE 85C optic Customer Install | H120: =VLOOKUP(L120,Tabella_prezzi!$A$1:$L$189,9,FALSE) -> Dell EMC PowerEdge QSFP28 SR4 100GbE 85C optic Customer Install | I120: =VLOOKUP(L120,Tabella_prezzi!$A$1:$L$189,3,FALSE) -> OpzQSFP28 | K120: =VLOOKUP(L120,Tabella_prezzi!$A$1:$L$189,4,FALSE) -> 9999 | L120: L7N65 | M120: =VLOOKUP(L120,Tabella_prezzi!$A$1:$L$189,6,FALSE) -> TS4L7-QSFP28
A121: Dell Networking Cable, OM4 LC/LC Fiber Cable, 3 Meter | D121: =VLOOKUP(L121,Tabella_prezzi!$A$1:$L$189,8,FALSE) -> Dell Networking Cable, OM4 LC/LC Fiber Cable, 3 Meter | G121: ="" ->  | H121: =VLOOKUP(L121,Tabella_prezzi!$A$1:$L$189,9,FALSE) -> Dell Networking Cable, OM4 LC/LC Fiber Cable, 3 Meter | I121: =VLOOKUP(L121,Tabella_prezzi!$A$1:$L$189,3,FALSE) -> 0 | K121: =VLOOKUP(L121,Tabella_prezzi!$A$1:$L$189,4,FALSE) -> 69 | L121: L7N130 | M121: =VLOOKUP(L121,Tabella_prezzi!$A$1:$L$189,6,FALSE) -> TS4L7-OM4M3
A123: TS3L7_CTRL
G124: ="" ->  | I124: ="" ->  | L124: ="" ->  | M124: ="" -> 
A125: =D125 -> PERC H745 Controller | B125: =D125 -> PERC H745 Controller | D125: =VLOOKUP(L125,Tabella_prezzi!$A$1:$L$189,9,FALSE) -> PERC H745 Controller | G125: ="" ->  | H125: =VLOOKUP(L125,Tabella_prezzi!$A$1:$L$189,9,FALSE) -> PERC H745 Controller | I125: ="" ->  | L125: L7N44 | M125: =VLOOKUP(L125,Tabella_prezzi!$A$1:$L$189,6,FALSE) -> 0
A126: =D126 -> HBA355i Controller Adapter, Front, Cust Kit | B126: =D126 -> HBA355i Controller Adapter, Front, Cust Kit | D126: =VLOOKUP(L126,Tabella_prezzi!$A$1:$L$189,9,FALSE) -> HBA355i Controller Adapter, Front, Cust Kit | G126: 1 | H126: =VLOOKUP(L126,Tabella_prezzi!$A$1:$L$189,9,FALSE) -> HBA355i Controller Adapter, Front, Cust Kit | I126: =VLOOKUP(L126,Tabella_prezzi!$A$1:$L$189,3,FALSE) -> 0 | K126: =VLOOKUP(L126,Tabella_prezzi!$A$1:$L$189,4,FALSE) -> 180 | L126: L7N34 | M126: =VLOOKUP(L126,Tabella_prezzi!$A$1:$L$189,6,FALSE) -> TS4L7-HBA355i-L
A128: =#REF! ->  | B128: =IF(A128="",A125,"Pippo") ->  | C128: Conf 1
C129: Conf 2
C130: Conf 3
A131: TS3L7_CMA
A132: No | G132: ="" ->  | I132: ="" ->  | L132: ="" ->  | M132: ="" -> 
A133: 2U Cable Management Arm | B133: CMA | C133: TS3L7-CMA2U | D133: 2U Cable Management Arm | G133: 1 | H133: =VLOOKUP(L133,Tabella_prezzi!$A$1:$L$189,9,FALSE) -> 2U Cable Management Arm | I133: =VLOOKUP(L133,Tabella_prezzi!$A$1:$L$189,3,FALSE) -> 0 | K133: =VLOOKUP(L133,Tabella_prezzi!$A$1:$L$189,4,FALSE) -> 50 | L133: L7N135 | M133: =VLOOKUP(L133,Tabella_prezzi!$A$1:$L$189,6,FALSE) -> TS4L7-CMA2U
A136: TS3L7_BEZEL
A137: No Bezel | B137: Bezel | D137: No Bezel | G137: ="" ->  | I137: ="" ->  | L137: ="" ->  | M137: ="" -> 
A138: -=-=-=-=-=-=-=-=-=-=-=-=-=-=-=-=-20%-=-=-=-=-=-=-=-=-=-=-=-=-=-=-=-=- | G138: ="" ->  | I138: ="" ->  | L138: ="" ->  | M138: ="" -> 
A139: [TS3L7-BZLLCD] LCD Security Bezel | B139: Bezel | C139: TS3L7-BZLLCD | D139: LCD Security Bezel | G139: 1 | H139: =VLOOKUP(L139,Tabella_prezzi!$A$1:$L$189,9,FALSE) -> PowerEdge 2U LCD Bezel | I139: =VLOOKUP(L139,Tabella_prezzi!$A$1:$L$189,3,FALSE) -> OpzBezelLCD | K139: =VLOOKUP(L139,Tabella_prezzi!$A$1:$L$189,4,FALSE) -> 63 | L139: L7N68 | M139: =VLOOKUP(L139,Tabella_prezzi!$A$1:$L$189,6,FALSE) -> TS4L7-BZLLCD
A140: [TS3L7-BZLSTD] Standard Security Bezel | B140: Bezel | C140: TS3L7-BZLSTD | D140: Standard Security Bezel | G140: 1 | H140: =VLOOKUP(L140,Tabella_prezzi!$A$1:$L$189,9,FALSE) -> PowerEdge 2U Standard Bezel | I140: =VLOOKUP(L140,Tabella_prezzi!$A$1:$L$189,3,FALSE) -> OpzBezelSTD | K140: =VLOOKUP(L140,Tabella_prezzi!$A$1:$L$189,4,FALSE) -> 42 | L140: L7N69 | M140: =VLOOKUP(L140,Tabella_prezzi!$A$1:$L$189,6,FALSE) -> TS4L7-BZLSTD
A142: TS3L7_ISDM
A143: No Boss card | G143: ="" ->  | I143: ="" ->  | L143: ="" ->  | M143: ="" -> 
A144: -=-=-=-=-=-=-=-=-=-=-=-=-=-=-=-=-20%-=-=-=-=-=-=-=-=-=-=-=-=-=-=-=-=- | G144: ="" ->  | I144: ="" ->  | L144: ="" ->  | M144: ="" -> 
A145: BOSS-S2 controller card, full height, with 2 480G M.2 Drives | D145: =VLOOKUP(L145,Tabella_prezzi!$A$1:$L$189,8,FALSE) -> BOSS-S2 controller card without cable | G145: 1 | H145: =VLOOKUP(L145,Tabella_prezzi!$A$1:$L$189,9,FALSE) -> BOSS-S2 controller card without cable | I145: =VLOOKUP(L145,Tabella_prezzi!$A$1:$L$189,3,FALSE) -> OpBOSS | K145: =VLOOKUP(L145,Tabella_prezzi!$A$1:$L$189,4,FALSE) -> 134 | L145: L7N70 | M145: =VLOOKUP(L145,Tabella_prezzi!$A$1:$L$189,6,FALSE) -> TS4L7-BOSS
A147: TS3L7_OME
A148: No OMEA | G148: ="" ->  | I148: ="" ->  | L148: ="" ->  | M148: ="" -> 
A149: [TS4L7-OMEA] OpenManage Enterprise Advanced | B149: OpenManage Enterprise Advanced | C149: TS3L7-OMEA | D149: OpenManage Enterprise Advanced | G149: 1 | H149: =VLOOKUP(L149,Tabella_prezzi!$A$1:$L$189,9,FALSE) -> OpenManage Enterprise Advanced | I149: =VLOOKUP(L149,Tabella_prezzi!$A$1:$L$189,3,FALSE) -> 0 | K149: =VLOOKUP(L149,Tabella_prezzi!$A$1:$L$189,4,FALSE) -> 214 | L149: L7N96 | M149: =VLOOKUP(L149,Tabella_prezzi!$A$1:$L$189,6,FALSE) -> TS4L7-OMEA
A151: TS3L7_WARRANTY
A152: Manutenzione in garanzia (36 mesi) | B152: Dell Services: Extended Service | D152: RESTRICTED:ProSupport One Data Center and Next Business Day Onsite Service Volume Low, 39 Month(s) | G152: ="" ->  | I152: ="" ->  | L152: ="" ->  | M152: ="" -> 
A153: =D153 -> Estensione della manutenzione in garanzia per ulteriori 24 mesi | B153: Dell Services: Extended Service | D153: =VLOOKUP(L153,Tabella_prezzi!$A$1:$L$189,8,FALSE) -> Estensione della manutenzione in garanzia per ulteriori 24 mesi | G153: 1 | H153: =VLOOKUP(L153,Tabella_prezzi!$A$1:$L$384,9,FALSE) -> Estensione della manutenzione in garanzia per ulteriori 24 mesi | I153: =VLOOKUP(L153,Tabella_prezzi!$A$1:$L$384,3,FALSE) -> OpzEstensione24 | J153: =VLOOKUP(L153,Tabella_prezzi!$A$1:$L$384,4,FALSE) -> 183.01 | L153: L7N29 | M153: =VLOOKUP(L153,Tabella_prezzi!$A$1:$L$189,6,FALSE) -> TS4L7-OpzEst24
A155: TS3L7_WARRANTY GPU
A156: Manutenzione in garanzia (36 mesi) | B156: Dell Services: Extended Service | D156: RESTRICTED:ProSupport One Data Center and Next Business Day Onsite Service Volume Low, 39 Month(s) | G156: ="" ->  | I156: ="" ->  | L156: ="" ->  | M156: ="" -> 
A157: =D157 -> Estensione della manutenzione GPU in garanzia per ulteriori 24 mesi | B157: Dell Services: Extended Service | D157: =VLOOKUP(L157,Tabella_prezzi!$A$1:$L$189,8,FALSE) -> Estensione della manutenzione GPU in garanzia per ulteriori 24 mesi | G157: 1 | H157: =VLOOKUP(L157,Tabella_prezzi!$A$1:$L$384,9,FALSE) -> Estensione della manutenzione GPU in garanzia per ulteriori 24 mesi | I157: =VLOOKUP(L157,Tabella_prezzi!$A$1:$L$384,3,FALSE) -> OpzEstensione24-GPU | J157: =VLOOKUP(L157,Tabella_prezzi!$A$1:$L$384,4,FALSE) -> 115.54 | L157: L7N31 | M157: =VLOOKUP(L157,Tabella_prezzi!$A$1:$L$189,6,FALSE) -> TS4L7-OpzEst24GPU
A159: TS34_KYHDD
A160: ="" ->  | B160: Keep Your Hard Drive | G160: ="" ->  | I160: ="" ->  | L160: ="" ->  | M160: ="" -> 
A161: =D161 -> Hard Disk Retention 36 mesi | B161: Keep Your Hard Drive | D161: =VLOOKUP(L161,Tabella_prezzi!$A$1:$L$189,8,FALSE) -> Hard Disk Retention 36 mesi | G161: 1 | H161: =VLOOKUP(L161,Tabella_prezzi!$A$1:$L$384,9,FALSE) -> Hard Disk Retention 36 mesi | I161: =VLOOKUP(L161,Tabella_prezzi!$A$1:$L$384,3,FALSE) -> OpzHDDRetention36 | J161: =VLOOKUP(L161,Tabella_prezzi!$A$1:$L$384,4,FALSE) -> 25.19 | L161: L7N28 | M161: =VLOOKUP(L161,Tabella_prezzi!$A$1:$L$189,6,FALSE) -> TS4L7-HDRTN36
A162: Hard Disk Retention 60 mesi | B162: Keep Your Hard Drive | D162: =VLOOKUP(L162,Tabella_prezzi!$A$1:$L$189,8,FALSE) -> Hard Disk Retention 60 mesi | G162: 1 | H162: =VLOOKUP(L162,Tabella_prezzi!$A$1:$L$384,9,FALSE) -> Hard Disk Retention 60 mesi | I162: =VLOOKUP(L162,Tabella_prezzi!$A$1:$L$384,3,FALSE) -> OpzHDDRetention60 | J162: =VLOOKUP(L162,Tabella_prezzi!$A$1:$L$384,4,FALSE) -> 41.81 | L162: L7N28b | M162: =VLOOKUP(L162,Tabella_prezzi!$A$1:$L$189,6,FALSE) -> TS4L7-HDRTN60
A164: TS3L2_UPS
A165: ="" ->  | G165: ="" ->  | I165: ="" ->  | L165: ="" ->  | M165: ="" -> 
A166: =D166 -> Dispositivo UPS di tipo On-line doppia conversione, strutturato per il montaggio a rack da 19” | D166: =VLOOKUP(L166,Tabella_prezzi!$A$1:$L$189,8,FALSE) -> Dispositivo UPS di tipo On-line doppia conversione, strutturato per il montaggio a rack da 19” | G166: 1 | H166: =VLOOKUP(L166,Tabella_prezzi!$A$1:$L$384,9,FALSE) -> Dispositivo UPS di tipo On-line doppia conversione, strutturato per il montaggio a rack da 19” | I166: =VLOOKUP(L166,Tabella_prezzi!$A$1:$L$384,3,FALSE) -> OpzUps (3000VA) | J166: =VLOOKUP(L166,Tabella_prezzi!$A$1:$L$384,4,FALSE) -> 386.02 | L166: L7N20 | M166: =VLOOKUP(L166,Tabella_prezzi!$A$1:$L$189,6,FALSE) -> TS4L7-UPS
A167: TS4L4_RACK
A168: ="" ->  | G168: ="" ->  | I168: ="" ->  | L168: ="" ->  | M168: ="" -> 
A169: =D169 -> Armadio Rack 42U | D169: =VLOOKUP(L169,Tabella_prezzi!$A$1:$L$189,8,FALSE) -> Armadio Rack 42U | G169: 1 | H169: =VLOOKUP(L169,Tabella_prezzi!$A$1:$L$384,9,FALSE) -> Armadio Rack 42U | I169: =VLOOKUP(L169,Tabella_prezzi!$A$1:$L$384,3,FALSE) -> OpzRack | J169: =VLOOKUP(L169,Tabella_prezzi!$A$1:$L$384,4,FALSE) -> 579.63 | L169: L7N30 | M169: =VLOOKUP(L169,Tabella_prezzi!$A$1:$L$189,6,FALSE) -> TS4L7-RACK
A171: TS4L7_GUI
A172: ="" ->  | G172: ="" ->  | I172: ="" ->  | L172: ="" ->  | M172: ="" -> 
A173: =D173 -> Unità KVM - monitor 17", cavo combi PS/2&USB da 1,8mt, tastiera italiana, touch pad | D173: =VLOOKUP(L173,Tabella_prezzi!$A$1:$L$189,8,FALSE) -> Unità KVM - monitor 17", cavo combi PS/2&USB da 1,8mt, tastiera italiana, touch pad | G173: 1 | H173: =VLOOKUP(L173,Tabella_prezzi!$A$1:$L$384,9,FALSE) -> Unità KVM - monitor 17", cavo combi PS/2&USB da 1,8mt, tastiera italiana, touch pad | I173: =VLOOKUP(L173,Tabella_prezzi!$A$1:$L$384,3,FALSE) -> OpzGUI | J173: =VLOOKUP(L173,Tabella_prezzi!$A$1:$L$384,4,FALSE) -> 491.62 | L173: L7N21 | M173: =VLOOKUP(L173,Tabella_prezzi!$A$1:$L$189,6,FALSE) -> TS4L7-GUI
A175: TS4L7_KVM
A176: ="" ->  | G176: ="" ->  | I176: ="" ->  | L176: ="" ->  | M176: ="" -> 
A177: =D177 -> KVM Switch IP per GUI 16P | D177: =VLOOKUP(L177,Tabella_prezzi!$A$1:$L$189,8,FALSE) -> KVM Switch IP per GUI 16P | G177: 1 | H177: =VLOOKUP(L177,Tabella_prezzi!$A$1:$L$384,9,FALSE) -> KVM Switch IP per GUI 16P | I177: =VLOOKUP(L177,Tabella_prezzi!$A$1:$L$384,3,FALSE) -> OpzKVM | J177: =VLOOKUP(L177,Tabella_prezzi!$A$1:$L$384,4,FALSE) -> 552.47 | L177: L7N22 | M177: =VLOOKUP(L177,Tabella_prezzi!$A$1:$L$189,6,FALSE) -> TS4L7-KVM
A178: SFP+ Transceivers
A179: Transceiver, SFP+ SR Optic for SFP+ ports (Intel X710) | D179: =VLOOKUP(L179,Tabella_prezzi!$A$1:$L$189,8,FALSE) -> SFP+ SR Optic for SFP+ ports (Intel X710) | G179: 1 | H179: =VLOOKUP(L179,Tabella_prezzi!$A$1:$L$384,9,FALSE) -> SFP+ SR Optic for SFP+ ports (Intel X710) | I179: =VLOOKUP(L179,Tabella_prezzi!$A$1:$L$384,3,FALSE) -> 0 | K179: =VLOOKUP(L179,Tabella_prezzi!$A$1:$L$189,4,FALSE) -> 126 | L179: L7N109 | M179: =VLOOKUP(L179,Tabella_prezzi!$A$1:$L$189,6,FALSE) -> TS4L7-OT10GB
B180: =ConfigurationTS3L7!$A$172:$A$186
A181: PCI1 | B181: =SE($N$75="SW";ConfigurationTS3L7!$A$283:$A$300;SE($N$75="DW";ConfigurationTS3L7!$A$240:$A$259;ConfigurationTS3L7!$A$172:$A$186)) | H181: =EXACT(B181,B182) -> FALSE
A182: PCI2 | B182: =SE($N$75="SW";ConfigurationTS3L7!$A$172:$A$186;SE($N$75="DW";ConfigurationTS3L7!$A$322:$A$322;ConfigurationTS3L7!$A$172:$A$186)) | H182: =EXACT(B182,B183) -> FALSE
A183: PCI3 | B183: =SE($N$75="SW";ConfigurationTS3L7!$A$172:$A$186;SE($N$75="DW";ConfigurationTS3L7!$A$189:$A$204;ConfigurationTS3L7!$A$172:$A$186))
A184: PCI4 | B184: =SE($N$75="SW";ConfigurationTS3L7!$A$303:$A$319;SE($N$75="DW";ConfigurationTS3L7!$A$262:$A$280;SE($N$75="2CPU";ConfigurationTS3L7!$A$189:$A$204;ConfigurationTS3L7!$A$103:$A$104)))
A185: PCI5 | B185: =SE($N$86="DW";ConfigurationTS3L7!$A$322;SE($N$75="SW";ConfigurationTS3L7!$A$172:$A$186;SE($N$75="DW";ConfigurationTS3L7!$A$172:$A$186;SE($N$75="2CPU";ConfigurationTS3L7!$A$172:$A$186;ConfigurationTS3L7!$A$103:$A$104))))
A186: PCI6 | B186: =SE($N$9="VxFlex";ConfigurationTS3L7!$A$230;ConfigurationTS3L7!$A$207:$A$218)
A187: PCI7 | B187: =SE($N$9="VxFlex";ConfigurationTS3L7!$A$235;SE($N$98="DW";ConfigurationTS3L7!$A$322;SE($N$75="1CPU";ConfigurationTS3L7!$A$103:$A$104;ConfigurationTS3L7!$A$172:$A$186)))
A188: PCI8 | B188: =SE($N$9="VxFlex";ConfigurationTS3L7!$A$235;SE($N$75="SW";ConfigurationTS3L7!$A$303:$A$319;SE($N$75="DW";ConfigurationTS3L7!$A$240:$A$259;SE($N$75="2CPU";ConfigurationTS3L7!$A$221:$A$237;ConfigurationTS3L7!$A$103:$A$104))))
A192: PCI SLOT 9
A193: ="" -> 
A194: =D194 -> Broadcom 5719 Quad Port 1GbE BASE-T Adapter, OCP NIC 3.0 | D194: =VLOOKUP(L194,Tabella_prezzi!$A$1:$L$189,9,FALSE) -> Broadcom 5719 Quad Port 1GbE BASE-T Adapter, OCP NIC 3.0 | F194: 540-BBCX | G194: 1 | H194: =VLOOKUP(L194,Tabella_prezzi!$A$1:$L$189,9,FALSE) -> Broadcom 5719 Quad Port 1GbE BASE-T Adapter, OCP NIC 3.0 | I194: =VLOOKUP(L194,Tabella_prezzi!$A$1:$L$189,3,FALSE) -> OpzGigabit | J194: =VLOOKUP(L194,Tabella_prezzi!$A$1:$L$189,4,FALSE) -> 29.18 | L194: L7N75 | M194: =VLOOKUP(L194,Tabella_prezzi!$A$1:$L$189,6,FALSE) -> TS4L7-LAN1-OCP
A195: Broadcom 57412 Dual Port 10GbE SFP+, OCP NIC 3.0 | D195: =VLOOKUP(L195,Tabella_prezzi!$A$1:$L$189,9,FALSE) -> Broadcom 57412 Dual Port 10GbE SFP+, OCP NIC 3.0 | F195: 540-BBCX | G195: 1 | H195: =VLOOKUP(L195,Tabella_prezzi!$A$1:$L$189,9,FALSE) -> Broadcom 57412 Dual Port 10GbE SFP+, OCP NIC 3.0 | I195: =VLOOKUP(L195,Tabella_prezzi!$A$1:$L$189,3,FALSE) -> OpzGigabit10Gbps | J195: =VLOOKUP(L195,Tabella_prezzi!$A$1:$L$189,4,FALSE) -> 160.48 | L195: L7N76 | M195: =VLOOKUP(L195,Tabella_prezzi!$A$1:$L$189,6,FALSE) -> TS4L7-LAN10-OCP
A196: Intel X710-T2L Dual Port 10GbE BASE-T, OCP NIC 3.0 | D196: =VLOOKUP(L196,Tabella_prezzi!$A$1:$L$189,9,FALSE) -> Intel X710-T2L Dual Port 10GbE BASE-T, OCP NIC 3.0 | F196: 540-BBCX | G196: 1 | H196: =VLOOKUP(L196,Tabella_prezzi!$A$1:$L$189,9,FALSE) -> Intel X710-T2L Dual Port 10GbE BASE-T, OCP NIC 3.0 | I196: =VLOOKUP(L196,Tabella_prezzi!$A$1:$L$189,3,FALSE) -> Opz10Gigabit BaseT | J196: =VLOOKUP(L196,Tabella_prezzi!$A$1:$L$189,4,FALSE) -> 147.52 | L196: L7N79 | M196: =VLOOKUP(L196,Tabella_prezzi!$A$1:$L$189,6,FALSE) -> TS4L7- BaseT-L
A197: TS3L2_PCI_A
A198: ="" ->  | G198: ="" ->  | I198: ="" ->  | L198: ="" ->  | M198: ="" -> 
A199: =D199 -> Broadcom 5719 Quad Port 1Gb Network Interface Card, Low Profile | D199: =VLOOKUP(L199,Tabella_prezzi!$A$1:$L$189,9,FALSE) -> Broadcom 5719 Quad Port 1Gb Network Interface Card, Low Profile | F199: 540-BBCX | G199: 1 | H199: =VLOOKUP(L199,Tabella_prezzi!$A$1:$L$189,9,FALSE) -> Broadcom 5719 Quad Port 1Gb Network Interface Card, Low Profile | I199: =VLOOKUP(L199,Tabella_prezzi!$A$1:$L$189,3,FALSE) -> OpzGigabit | J199: =VLOOKUP(L199,Tabella_prezzi!$A$1:$L$189,4,FALSE) -> 29.18 | L199: L7N05 | M199: =VLOOKUP(L199,Tabella_prezzi!$A$1:$L$189,6,FALSE) -> TS4L7-LAN1
A200: Broadcom 57412 Dual Port 10Gb, SFP+, PCIe Adapter, Low Profile + Optics | D200: =VLOOKUP(L200,Tabella_prezzi!$A$1:$L$189,9,FALSE) -> Broadcom 57412 Dual Port 10Gb, SFP+, PCIe Adapter, Low Profile + Optics | F200: 540-BBCX | G200: 1 | H200: =VLOOKUP(L200,Tabella_prezzi!$A$1:$L$189,9,FALSE) -> Broadcom 57412 Dual Port 10Gb, SFP+, PCIe Adapter, Low Profile + Optics | I200: =VLOOKUP(L200,Tabella_prezzi!$A$1:$L$189,3,FALSE) -> OpzGigabit10Gbps | J200: =VLOOKUP(L200,Tabella_prezzi!$A$1:$L$189,4,FALSE) -> 160.48 | L200: L7N06 | M200: =VLOOKUP(L200,Tabella_prezzi!$A$1:$L$189,6,FALSE) -> TS4L7-LAN10
A201: Intel Ethernet XXV710 Dual Port 10/25GbE SFP28 Adapter, PCIe Low Profile + Optics | D201: =VLOOKUP(L201,Tabella_prezzi!$A$1:$L$189,9,FALSE) -> Intel Ethernet XXV710 Dual Port 10/25GbE SFP28 Adapter, PCIe Low Profile + Optics | F201: 540-BBCX | G201: 1 | H201: =VLOOKUP(L201,Tabella_prezzi!$A$1:$L$189,9,FALSE) -> Intel Ethernet XXV710 Dual Port 10/25GbE SFP28 Adapter, PCIe Low Profile + Optics | I201: =VLOOKUP(L201,Tabella_prezzi!$A$1:$L$189,3,FALSE) -> OpzGigabit25Gbps | J201: =VLOOKUP(L201,Tabella_prezzi!$A$1:$L$189,4,FALSE) -> 249.64 | L201: L7N07 | M201: =VLOOKUP(L201,Tabella_prezzi!$A$1:$L$189,6,FALSE) -> TS4L7-LAN25
A202: QLogic FastLinQ 41262 Dual Port 25Gb SFP28 Adapter, Low Profile + Optics | D202: =VLOOKUP(L202,Tabella_prezzi!$A$1:$L$189,9,FALSE) -> QLogic FastLinQ 41262 Dual Port 25Gb SFP28 Adapter, Low Profile + Optics | F202: 540-BBCX | G202: 1 | H202: =VLOOKUP(L202,Tabella_prezzi!$A$1:$L$189,9,FALSE) -> QLogic FastLinQ 41262 Dual Port 25Gb SFP28 Adapter, Low Profile + Optics | I202: =VLOOKUP(L202,Tabella_prezzi!$A$1:$L$189,3,FALSE) -> OpzGigabit10Gbps CNA | J202: =VLOOKUP(L202,Tabella_prezzi!$A$1:$L$189,4,FALSE) -> 153.19 | L202: L7N08 | M202: =VLOOKUP(L202,Tabella_prezzi!$A$1:$L$189,6,FALSE) -> TS4L7-CNA10
A203: Intel X710-T2L Dual Port 10GbE BASE-T Adapter, PCIe LP | D203: =VLOOKUP(L203,Tabella_prezzi!$A$1:$L$189,9,FALSE) -> Intel X710-T2L Dual Port 10GbE BASE-T Adapter, PCIe LP | F203: 540-BBCX | G203: 1 | H203: =VLOOKUP(L203,Tabella_prezzi!$A$1:$L$189,9,FALSE) -> Intel X710-T2L Dual Port 10GbE BASE-T Adapter, PCIe LP | I203: =VLOOKUP(L203,Tabella_prezzi!$A$1:$L$189,3,FALSE) -> Opz10Gigabit BaseT | J203: =VLOOKUP(L203,Tabella_prezzi!$A$1:$L$189,4,FALSE) -> 147.52 | L203: L7N09 | M203: =VLOOKUP(L203,Tabella_prezzi!$A$1:$L$189,6,FALSE) -> TS4L7-BaseT-LP
A204: Intel E810 Dual Port 100GbE QSFP28 Adapter, PCIe Low Profile + Optics | D204: =VLOOKUP(L204,Tabella_prezzi!$A$1:$L$189,9,FALSE) -> Intel E810 Dual Port 100GbE QSFP28 Adapter, PCIe Low Profile + Optics | F204: 540-BBCX | G204: 1 | H204: =VLOOKUP(L204,Tabella_prezzi!$A$1:$L$189,9,FALSE) -> Intel E810 Dual Port 100GbE QSFP28 Adapter, PCIe Low Profile + Optics | I204: =VLOOKUP(L204,Tabella_prezzi!$A$1:$L$189,3,FALSE) -> Opz100Gbit | J204: =VLOOKUP(L204,Tabella_prezzi!$A$1:$L$189,4,FALSE) -> 811.34 | L204: L7N10 | M204: =VLOOKUP(L204,Tabella_prezzi!$A$1:$L$189,6,FALSE) -> TS4L7- Opz100Gbit
A205: QLogic 2772 Dual Port 32GbE Fibre Channel HBA, PCIe Low Profile+ Optics | D205: =VLOOKUP(L205,Tabella_prezzi!$A$1:$L$189,9,FALSE) -> QLogic 2772 Dual Port 32GbE Fibre Channel HBA, PCIe Low Profile+ Optics | F205: 540-BBCX | G205: 1 | H205: =VLOOKUP(L205,Tabella_prezzi!$A$1:$L$189,9,FALSE) -> QLogic 2772 Dual Port 32GbE Fibre Channel HBA, PCIe Low Profile+ Optics | I205: =VLOOKUP(L205,Tabella_prezzi!$A$1:$L$189,3,FALSE) -> OpzFibreChannel | J205: =VLOOKUP(L205,Tabella_prezzi!$A$1:$L$189,4,FALSE) -> 425.36 | L205: L7N11 | M205: =VLOOKUP(L205,Tabella_prezzi!$A$1:$L$189,6,FALSE) -> TS4L7- FibreChannel
A206: =D206 -> SAS 12Gbps HBA External Controller, Full Height | D206: =VLOOKUP(L206,Tabella_prezzi!$A$1:$L$189,9,FALSE) -> SAS 12Gbps HBA External Controller, Full Height | F206: 540-BBCX | G206: 1 | H206: =VLOOKUP(L206,Tabella_prezzi!$A$1:$L$189,9,FALSE) -> SAS 12Gbps HBA External Controller, Full Height | I206: =VLOOKUP(L206,Tabella_prezzi!$A$1:$L$189,3,FALSE) -> 0 | J206: =VLOOKUP(L206,Tabella_prezzi!$A$1:$L$189,4,FALSE) -> 92 | L206: L7N101 | M206: =VLOOKUP(L206,Tabella_prezzi!$A$1:$L$189,6,FALSE) -> TS4L7-SAS12
A207: SAS 12Gbps HBA External Controller, Full Height | D207: =VLOOKUP(L207,Tabella_prezzi!$A$1:$L$189,9,FALSE) -> SAS 12Gbps HBA External Controller, Full Height | F207: 540-BBCX | G207: 1 | H207: =VLOOKUP(L207,Tabella_prezzi!$A$1:$L$189,9,FALSE) -> SAS 12Gbps HBA External Controller, Full Height | I207: =VLOOKUP(L207,Tabella_prezzi!$A$1:$L$189,3,FALSE) -> 0 | J207: =VLOOKUP(L207,Tabella_prezzi!$A$1:$L$189,4,FALSE) -> 92 | L207: L7N101 | M207: =VLOOKUP(L207,Tabella_prezzi!$A$1:$L$189,6,FALSE) -> TS4L7-SAS12
A208: ="" ->  | G208: ="" ->  | I208: ="" ->  | L208: ="" ->  | M208: ="" -> 
A209: =D209 -> Broadcom 57412 Dual Port 10Gb, SFP+, PCIe Adapter, Low Profile + Optics | D209: =VLOOKUP(L209,Tabella_prezzi!$A$1:$L$189,9,FALSE) -> Broadcom 57412 Dual Port 10Gb, SFP+, PCIe Adapter, Low Profile + Optics | G209: 1 | I209: =VLOOKUP(L209,Tabella_prezzi!$A$1:$L$189,3,FALSE) -> OpzGigabit10Gbps | K209: =VLOOKUP(L209,Tabella_prezzi!$A$1:$L$189,4,FALSE) -> 160.48 | L209: L7N06 | M209: =VLOOKUP(L209,Tabella_prezzi!$A$1:$L$189,6,FALSE) -> TS4L7-LAN10
A210: =D210 -> Intel Ethernet XXV710 Dual Port 10/25GbE SFP28 Adapter, PCIe Low Profile + Optics | D210: =VLOOKUP(L210,Tabella_prezzi!$A$1:$L$189,9,FALSE) -> Intel Ethernet XXV710 Dual Port 10/25GbE SFP28 Adapter, PCIe Low Profile + Optics | G210: 1 | H210: =VLOOKUP(L210,Tabella_prezzi!$A$1:$L$189,9,FALSE) -> Intel Ethernet XXV710 Dual Port 10/25GbE SFP28 Adapter, PCIe Low Profile + Optics | I210: =VLOOKUP(L210,Tabella_prezzi!$A$1:$L$189,3,FALSE) -> OpzGigabit25Gbps | K210: =VLOOKUP(L210,Tabella_prezzi!$A$1:$L$189,4,FALSE) -> 249.64 | L210: L7N07 | M210: =VLOOKUP(L210,Tabella_prezzi!$A$1:$L$189,6,FALSE) -> TS4L7-LAN25
A211: =D211 -> QLogic FastLinQ 41262 Dual Port 25Gb SFP28 Adapter, Low Profile + Optics | D211: =VLOOKUP(L211,Tabella_prezzi!$A$1:$L$189,9,FALSE) -> QLogic FastLinQ 41262 Dual Port 25Gb SFP28 Adapter, Low Profile + Optics | G211: 1 | I211: =VLOOKUP(L211,Tabella_prezzi!$A$1:$L$189,3,FALSE) -> OpzGigabit10Gbps CNA | K211: =VLOOKUP(L211,Tabella_prezzi!$A$1:$L$189,4,FALSE) -> 153.19 | L211: L7N08 | M211: =VLOOKUP(L211,Tabella_prezzi!$A$1:$L$189,6,FALSE) -> TS4L7-CNA10
A212: =D212 -> Intel X710-T2L Dual Port 10GbE BASE-T Adapter, PCIe LP | D212: =VLOOKUP(L212,Tabella_prezzi!$A$1:$L$189,9,FALSE) -> Intel X710-T2L Dual Port 10GbE BASE-T Adapter, PCIe LP | G212: 1 | I212: =VLOOKUP(L212,Tabella_prezzi!$A$1:$L$189,3,FALSE) -> Opz10Gigabit BaseT | K212: =VLOOKUP(L212,Tabella_prezzi!$A$1:$L$189,4,FALSE) -> 147.52 | L212: L7N09 | M212: =VLOOKUP(L212,Tabella_prezzi!$A$1:$L$189,6,FALSE) -> TS4L7-BaseT-LP
A213: =D213 -> SAS 12Gbps HBA External Controller, Full Height | C213: TS3L7-MCX4DP | D213: =VLOOKUP(L213,Tabella_prezzi!$A$1:$L$189,9,FALSE) -> SAS 12Gbps HBA External Controller, Full Height | G213: 1 | H213: =VLOOKUP(L213,Tabella_prezzi!$A$1:$L$189,9,FALSE) -> SAS 12Gbps HBA External Controller, Full Height | I213: =VLOOKUP(L213,Tabella_prezzi!$A$1:$L$189,3,FALSE) -> 0 | K213: =VLOOKUP(L213,Tabella_prezzi!$A$1:$L$189,4,FALSE) -> 92 | L213: L7N101 | M213: =VLOOKUP(L213,Tabella_prezzi!$A$1:$L$189,6,FALSE) -> TS4L7-SAS12
A214: [TS3L7-BOSS480] BOSS controller card, full height, with 2 480G M.2 Drives | D214: =VLOOKUP(L214,Tabella_prezzi!$A$1:$L$189,8,FALSE) -> BOSS controller card, full height, with 2 480G M.2 Drives | G214: 1 | I214: =VLOOKUP(L214,Tabella_prezzi!$A$1:$L$189,3,FALSE) -> 0 | K214: =VLOOKUP(L214,Tabella_prezzi!$A$1:$L$189,4,FALSE) -> 748 | L214: L7N33 | M214: =VLOOKUP(L214,Tabella_prezzi!$A$1:$L$189,6,FALSE) -> TS4L7-BOSS480
A215: [TS3L7-SAS12] SAS 12Gbps HBA External Controller, Full Height | D215: =VLOOKUP(L215,Tabella_prezzi!$A$1:$L$189,8,FALSE) -> SAS 12Gbps HBA External Controller, Full Height | G215: 1 | H215: =VLOOKUP(L215,Tabella_prezzi!$A$1:$L$189,9,FALSE) -> SAS 12Gbps HBA External Controller, Full Height | I215: =VLOOKUP(L215,Tabella_prezzi!$A$1:$L$189,3,FALSE) -> 0 | K215: =VLOOKUP(L215,Tabella_prezzi!$A$1:$L$189,4,FALSE) -> 92 | L215: L7N101 | M215: =VLOOKUP(L215,Tabella_prezzi!$A$1:$L$189,6,FALSE) -> TS4L7-SAS12
A216: [TS3L7-H840] PERC H840 RAID Adapter for External MD14XX Only, 8GB NV Cache | D216: =VLOOKUP(L216,Tabella_prezzi!$A$1:$L$189,8,FALSE) -> PERC H840 RAID Adapter for External MD14XX Only, 8GB NV Cache, Full Height | G216: 1 | I216: =VLOOKUP(L216,Tabella_prezzi!$A$1:$L$189,3,FALSE) -> OpzH840 | K216: =VLOOKUP(L216,Tabella_prezzi!$A$1:$L$189,4,FALSE) -> 479 | L216: L7N71 | M216: =VLOOKUP(L216,Tabella_prezzi!$A$1:$L$189,6,FALSE) -> TS4L7-H840
A217: [TS3L7-57416] Broadcom 57416 Dual Port 10Gb, Base-T, PCIe Adapter | D217: =VLOOKUP(L217,Tabella_prezzi!$A$1:$L$189,8,FALSE) -> Broadcom 57416 Dual Port 10Gb, Base-T, PCIe Adapter, Full Height | G217: 1 | I217: =VLOOKUP(L217,Tabella_prezzi!$A$1:$L$189,3,FALSE) -> 0 | K217: =VLOOKUP(L217,Tabella_prezzi!$A$1:$L$189,4,FALSE) -> 334 | L217: L7N46 | M217: =VLOOKUP(L217,Tabella_prezzi!$A$1:$L$189,6,FALSE) -> TS4L7-57416
A218: [TS3L7-X710DP] Intel X710 Dual Port 10Gb Direct Attach, SFP+,PCIe | D218: =VLOOKUP(L218,Tabella_prezzi!$A$1:$L$189,8,FALSE) -> Intel X710 Dual Port 10Gb SFP+ FULL | G218: 1 | I218: =VLOOKUP(L218,Tabella_prezzi!$A$1:$L$189,3,FALSE) -> 0 | K218: =VLOOKUP(L218,Tabella_prezzi!$A$1:$L$189,4,FALSE) -> 342 | L218: L7N42 | M218: =VLOOKUP(L218,Tabella_prezzi!$A$1:$L$189,6,FALSE) -> TS4L7-X710DP
A219: [TS3L7-X710QP] Intel X710 Quad Port 10Gb Direct Attach, SFP+, PCIe | D219: =VLOOKUP(L219,Tabella_prezzi!$A$1:$L$189,8,FALSE) -> Intel X710 Quad Port 10Gb SFP+ FULL | G219: 1 | I219: =VLOOKUP(L219,Tabella_prezzi!$A$1:$L$189,3,FALSE) -> 0 | K219: =VLOOKUP(L219,Tabella_prezzi!$A$1:$L$189,4,FALSE) -> 518 | L219: L7N43 | M219: =VLOOKUP(L219,Tabella_prezzi!$A$1:$L$189,6,FALSE) -> TS4L7-X710QP
A220: [TS3L7-MCX4DP] Mellanox ConnectX-4 Lx Dual Port 25GbE SFP28 FL 2 x SFP28 SR Optic, 25GbE | C220: TS3L7-MCX4DP | D220: Mellanox ConnectX-4 Lx Dual Port 25GbE SFP28 Network Adapter, PCIe Full Height, 2 x SFP28 SR Optic, 25GbE | G220: 1 | H220: =VLOOKUP(L220,Tabella_prezzi!$A$1:$L$189,9,FALSE) -> Mellanox ConnectX-4 Lx Dual Port 25GbE SFP28 Network Adapter, PCIe Full Height, 2 x SFP28 SR Optic, 25GbE | I220: =VLOOKUP(L220,Tabella_prezzi!$A$1:$L$189,3,FALSE) -> 0 | K220: =VLOOKUP(L220,Tabella_prezzi!$A$1:$L$189,4,FALSE) -> 419 | L220: L7N94 | M220: =VLOOKUP(L220,Tabella_prezzi!$A$1:$L$189,6,FALSE) -> TS4L7-MCX4DP
A222: TS3L2_PCI_B
A223: ="" ->  | G223: ="" ->  | I223: ="" ->  | L223: ="" ->  | M223: ="" -> 
A224: =D224 -> Broadcom 5719 Quad Port 1Gb Network Interface Card, Low Profile | D224: =VLOOKUP(L224,Tabella_prezzi!$A$1:$L$189,8,FALSE) -> Broadcom 5719 Quad Port 1Gb Network Interface Card, Low Profile | F224: 540-BBCX | G224: 1 | H224: =VLOOKUP(L224,Tabella_prezzi!$A$1:$L$189,9,FALSE) -> Broadcom 5719 Quad Port 1Gb Network Interface Card, Low Profile | I224: =VLOOKUP(L224,Tabella_prezzi!$A$1:$L$189,3,FALSE) -> OpzGigabit | J224: =VLOOKUP(L224,Tabella_prezzi!$A$1:$L$189,4,FALSE) -> 29.18 | L224: L7N05 | M224: =VLOOKUP(L224,Tabella_prezzi!$A$1:$L$189,6,FALSE) -> TS4L7-LAN1
A225: Broadcom 57412 Dual Port 10Gb, SFP+, PCIe Adapter, Low Profile + Optics | D225: =VLOOKUP(L225,Tabella_prezzi!$A$1:$L$189,8,FALSE) -> Broadcom 57412 Dual Port 10Gb, SFP+, PCIe Adapter, Low Profile + Optics | F225: 540-BBCX | G225: 1 | H225: =VLOOKUP(L225,Tabella_prezzi!$A$1:$L$189,9,FALSE) -> Broadcom 57412 Dual Port 10Gb, SFP+, PCIe Adapter, Low Profile + Optics | I225: =VLOOKUP(L225,Tabella_prezzi!$A$1:$L$189,3,FALSE) -> OpzGigabit10Gbps | J225: =VLOOKUP(L225,Tabella_prezzi!$A$1:$L$189,4,FALSE) -> 160.48 | L225: L7N06 | M225: =VLOOKUP(L225,Tabella_prezzi!$A$1:$L$189,6,FALSE) -> TS4L7-LAN10
A226: Intel Ethernet XXV710 Dual Port 10/25GbE SFP28 Adapter, PCIe Low Profile + Optics | D226: =VLOOKUP(L226,Tabella_prezzi!$A$1:$L$189,8,FALSE) -> Intel Ethernet XXV710 Dual Port 10/25GbE SFP28 Adapter, PCIe Low Profile + Optics | F226: 540-BBCX | G226: 1 | H226: =VLOOKUP(L226,Tabella_prezzi!$A$1:$L$189,9,FALSE) -> Intel Ethernet XXV710 Dual Port 10/25GbE SFP28 Adapter, PCIe Low Profile + Optics | I226: =VLOOKUP(L226,Tabella_prezzi!$A$1:$L$189,3,FALSE) -> OpzGigabit25Gbps | J226: =VLOOKUP(L226,Tabella_prezzi!$A$1:$L$189,4,FALSE) -> 249.64 | L226: L7N07 | M226: =VLOOKUP(L226,Tabella_prezzi!$A$1:$L$189,6,FALSE) -> TS4L7-LAN25
A227: QLogic FastLinQ 41262 Dual Port 25Gb SFP28 Adapter, Low Profile + Optics | D227: =VLOOKUP(L227,Tabella_prezzi!$A$1:$L$189,8,FALSE) -> QLogic FastLinQ 41262 Dual Port 25Gb SFP28 Adapter, Low Profile + Optics | F227: 540-BBCX | G227: 1 | H227: =VLOOKUP(L227,Tabella_prezzi!$A$1:$L$189,9,FALSE) -> QLogic FastLinQ 41262 Dual Port 25Gb SFP28 Adapter, Low Profile + Optics | I227: =VLOOKUP(L227,Tabella_prezzi!$A$1:$L$189,3,FALSE) -> OpzGigabit10Gbps CNA | J227: =VLOOKUP(L227,Tabella_prezzi!$A$1:$L$189,4,FALSE) -> 153.19 | L227: L7N08 | M227: =VLOOKUP(L227,Tabella_prezzi!$A$1:$L$189,6,FALSE) -> TS4L7-CNA10
A228: Intel X710-T2L Dual Port 10GbE BASE-T Adapter, PCIe LP | D228: =VLOOKUP(L228,Tabella_prezzi!$A$1:$L$189,8,FALSE) -> Intel X710-T2L Dual Port 10GbE BASE-T Adapter, PCIe LP | F228: 540-BBCX | G228: 1 | H228: =VLOOKUP(L228,Tabella_prezzi!$A$1:$L$189,9,FALSE) -> Intel X710-T2L Dual Port 10GbE BASE-T Adapter, PCIe LP | I228: =VLOOKUP(L228,Tabella_prezzi!$A$1:$L$189,3,FALSE) -> Opz10Gigabit BaseT | J228: =VLOOKUP(L228,Tabella_prezzi!$A$1:$L$189,4,FALSE) -> 147.52 | L228: L7N09 | M228: =VLOOKUP(L228,Tabella_prezzi!$A$1:$L$189,6,FALSE) -> TS4L7-BaseT-LP
A229: Intel E810 Dual Port 100GbE QSFP28 Adapter, PCIe Low Profile + Optics | D229: =VLOOKUP(L229,Tabella_prezzi!$A$1:$L$189,8,FALSE) -> Intel E810 Dual Port 100GbE QSFP28 Adapter, PCIe Low Profile + Optics | F229: 540-BBCX | G229: 1 | H229: =VLOOKUP(L229,Tabella_prezzi!$A$1:$L$189,9,FALSE) -> Intel E810 Dual Port 100GbE QSFP28 Adapter, PCIe Low Profile + Optics | I229: =VLOOKUP(L229,Tabella_prezzi!$A$1:$L$189,3,FALSE) -> Opz100Gbit | J229: =VLOOKUP(L229,Tabella_prezzi!$A$1:$L$189,4,FALSE) -> 811.34 | L229: L7N10 | M229: =VLOOKUP(L229,Tabella_prezzi!$A$1:$L$189,6,FALSE) -> TS4L7- Opz100Gbit
A230: QLogic 2772 Dual Port 32GbE Fibre Channel HBA, PCIe Low Profile+ Optics | D230: =VLOOKUP(L230,Tabella_prezzi!$A$1:$L$189,8,FALSE) -> QLogic 2772 Dual Port 32GbE Fibre Channel HBA, PCIe Low Profile+ Optics | F230: 540-BBCX | G230: 1 | H230: =VLOOKUP(L230,Tabella_prezzi!$A$1:$L$189,9,FALSE) -> QLogic 2772 Dual Port 32GbE Fibre Channel HBA, PCIe Low Profile+ Optics | I230: =VLOOKUP(L230,Tabella_prezzi!$A$1:$L$189,3,FALSE) -> OpzFibreChannel | J230: =VLOOKUP(L230,Tabella_prezzi!$A$1:$L$189,4,FALSE) -> 425.36 | L230: L7N11 | M230: =VLOOKUP(L230,Tabella_prezzi!$A$1:$L$189,6,FALSE) -> TS4L7- FibreChannel
A231: -=-=-=-=-=-=-=-=-=-=-=-=-=-=-=-=-20%-=-=-=-=-=-=-=-=-=-=-=-=-=-=-=-=- | G231: ="" ->  | I231: ="" ->  | L231: ="" ->  | M231: ="" -> 
A232: [TS3L7-BOSS480] BOSS controller card, full height, with 2 480G M.2 Drives | D232: =VLOOKUP(L232,Tabella_prezzi!$A$1:$L$189,8,FALSE) -> BOSS controller card, full height, with 2 480G M.2 Drives | G232: 1 | I232: =VLOOKUP(L232,Tabella_prezzi!$A$1:$L$189,3,FALSE) -> 0 | K232: =VLOOKUP(L232,Tabella_prezzi!$A$1:$L$189,4,FALSE) -> 748 | L232: L7N33 | M232: =VLOOKUP(L232,Tabella_prezzi!$A$1:$L$189,6,FALSE) -> TS4L7-BOSS480
... 334 more rows

Sheet Tabella_prezzi (hidden)
A1: L7N01 | B1: 1 | C1: Server rackable bi-processore prest. | D1: 4047.7 | E1: L7N01 | F1: TS4L7-SRV | G1: 1 | I1: PowerEdge R7525 Server | J1: L7N01-ServerR7525 | K1: 210-AMTE | L1: DELL | P1: 210-321-BCPX | Q1: -
A2: L7N02 | B2: 2 | C2: Kit n. 1 Processore aggiuntivo | D2: 680.84 | E2: L7N02 | F2: TS4L7-CPU | G2: 1 | H2: AMD EPYC 7313 3.0GHz, 16C/32T, 128M Cache (155W) DDR4-3200 | I2: AMD EPYC 7313 3.0GHz, 16C/32T, 128M Cache (155W) DDR4-3200 | J2: L7N02-OpzCPU | K2: 338-BZSB | L2: DELL | P2: 338-BZSB | Q2: WX6G7
G3: 1 | H3: L Shape Heatsink for 2nd CPU equal to or greater than 180W,PowerEdge R6525/R7525, Customer Install | I3: L Shape Heatsink for 2nd CPU equal to or greater than 180W,PowerEdge R6525/R7525, Customer Install | K3: 412-AASW | L3: DELL | P3: 412-AASW | Q3: 4RCGC
G4: 1 | H4: PowerEdge R7525 High Performance Fan Customer Kit V3 | I4: PowerEdge R7525 High Performance Fan Customer Kit V3 | K4: 121-BBBI | L4: DELL | P4: 121-BBBI | Q4: HVVRP
G5: 1 | H5: Riser with Two x8(x16 connector) PCIe Gen4 (Slots 4 & 5), Customer Install | I5: Riser with Two x8(x16 connector) PCIe Gen4 (Slots 4 & 5), Customer Install | K5: 330-BBTM | L5: DELL | P5: 330-BBTM | Q5: 234T7
G6: 1 | H6: Riser 4B, PCIe Gen4 1x16 (x16 connector), Half Length, PowerEdge R7525, CK | I6: Riser 4B, PCIe Gen4 1x16 (x16 connector), Half Length, PowerEdge R7525, CK | K6: 330-BBPR | L6: DELL | P6: 330-BBPR
G7: 1 | H7: Riser 1B, PCIe Gen4 2x8 (x16 connector), Half Length, PowerEdge R7525, CK | I7: Riser 1B, PCIe Gen4 2x8 (x16 connector), Half Length, PowerEdge R7525, CK | K7: 330-BBPV | L7: DELL | P7: 330-BBPV | Q7: R80PP
G8: 1 | H8: Riser 2A, PCIe Gen4 2x16 (x16 connector), PowerEdge R7525, CK | I8: Riser 2A, PCIe Gen4 2x16 (x16 connector), PowerEdge R7525, CK | K8: 330-BBPO | L8: DELL | P8: 330-BBPO
A9: L7N03 | B9: 3 | C9: OpzRAM32GB | D9: 263.87 | E9: L7N03 | F9: TS4L7-RAM32 | G9: 1 | H9: 32GB - 2Rx4 DDR4 RDIMM 3200MHz | I9: 32GB - 2Rx4 DDR4 RDIMM 3200MHz | J9: L7N03-OpzRAM32GB | K9: AA799087 | L9: DELL | P9: AA79SNP75X1VC/32G | Q9: SNP75X1VC/32G
A10: L7N04 | B10: 4 | C10: OpzRAM64GB | D10: 302.6 | E10: L7N04 | F10: TS4L7-RAM64 | G10: 1 | H10: 64GB - 2RX4 DDR4 RDIMM 3200MHz | I10: 64GB - 2RX4 DDR4 RDIMM 3200MHz | J10: L7N04-OpzRAM64GB | K10: AA799110 | L10: DELL | P10: AA79SNPP2MYXC/64G | Q10: SNPP2MYXC/64G
A11: L7N05 | B11: 5 | C11: OpzGigabit | D11: 29.18 | E11: L7N05 | F11: TS4L7-LAN1 | G11: 1 | H11: Broadcom 5719 Quad Port 1Gb Network Interface Card, Low Profile | I11: Broadcom 5719 Quad Port 1Gb Network Interface Card, Low Profile | J11: L7N75-OpzGigabitLP | K11: 540-BBDF | L11: DELL | M11: 1 | N11: 2 | O11: 3 | P11: 540-XF9VF | Q11: XF9VF
A12: L7N75 | B12: 5 | C12: OpzGigabit | D12: 29.18 | E12: L7N05b | F12: TS4L7-LAN1-OCP | G12: 1 | H12: Broadcom 5719 Quad Port 1GbE BASE-T Adapter, OCP NIC 3.0 | I12: Broadcom 5719 Quad Port 1GbE BASE-T Adapter, OCP NIC 3.0 | J12: L7N75-OpzGigabitOCP | K12: 540-BCOB | L12: DELL | M12: 4 | P12: 540-W0N4T | Q12: W0N4T
A13: L7N06 | B13: 6 | C13: OpzGigabit10Gbps | D13: 160.48 | E13: L7N06 | F13: TS4L7-LAN10 | G13: 1 | H13: Broadcom 57412 Dual Port 10Gb, SFP+, PCIe Adapter, Low Profile + Optics | I13: Broadcom 57412 Dual Port 10Gb, SFP+, PCIe Adapter, Low Profile + Optics | J13: L7N06-OpzGigabit10Gbps | K13: 540-BBUP | L13: DELL | M13: 1 | N13: 2 | O13: 3 | P13: 540-H6N50 | Q13: H6N50
G14: 2 | H14: SFP+ SR Optic for all SFP+ | I14: Dell Networking, Transceiver, SFP+, 10GbE, SR, 850nm Wavelength, 300m Reach - Kit | K14: 407-BCBE | L14: DELL | P14: 407-4Y8DN | Q14: 4Y8DN
A15: L7N76 | B15: 6 | C15: OpzGigabit10Gbps | D15: 160.48 | E15: L7N76 | F15: TS4L7-LAN10-OCP | G15: 1 | H15: Broadcom 57412 Dual Port 10GbE SFP+, OCP NIC 3.0 | I15: Broadcom 57412 Dual Port 10GbE SFP+, OCP NIC 3.0 | J15: L7N76-OpzGigabit10GbpsLP | K15: 540-BCNT | L15: DELL | M15: 4 | P15: 540-N7R67 | Q15: N7R67
G16: 2 | H16: SFP+ SR Optic for all SFP+ | I16: Dell Networking, Transceiver, SFP+, 10GbE, SR, 850nm Wavelength, 300m Reach - Kit | K16: 407-BBOU | L16: DELL | P16: 407-4Y8DN | Q16: 4Y8DN
A17: L7N07 | B17: 7 | C17: OpzGigabit25Gbps | D17: 249.64 | E17: L7N07 | F17: TS4L7-LAN25 | G17: 1 | H17: Intel Ethernet XXV710 Dual Port 10/25GbE SFP28 Adapter, PCIe Low Profile + Optics | I17: Intel Ethernet XXV710 Dual Port 10/25GbE SFP28 Adapter, PCIe Low Profile + Optics | J17: L7N07-OpzGigabit25Gbps | K17: 540-BCCM | L17: DELL | M17: 1 | N17: 2 | O17: 3 | P17: 540-86P4V | Q17: 86P4V
G18: 2 | H18: SFP28 SR Optic, 25GbE, 85C, for all SFP28 ports | I18: SFP28 SR Optic, 25GbE, 85C, for all SFP28 ports | K18: 407-BCHI | L18: DELL | P18: 407-PY7V9 | Q18: PY7V9
A19: L7N77 | B19: 7 | C19: OpzGigabit25Gbps | D19: 249.64 | E19: L7N07b | F19: TS4L7-LAN25-L | G19: 1 | H19: Intel Ethernet XXV710 Dual Port 10/25GbE SFP28 Adapter, PCIe Low Profile + Optics | I19: Intel Ethernet XXV710 Dual Port 10/25GbE SFP28 Adapter, PCIe Low Profile + Optics | J19: L7N77-OpzGigabit25GbpsLP | K19: 540-BBZO | L19: DELL | M19: 4 | P19: 540-9RVF0 | Q19: 9RVF0
G20: 2 | H20: Dell Networking, Transceiver, 25GbE SFP28 SR, No FEC, MMF, Duplex LC | I20: Dell Networking, Transceiver, 25GbE SFP28 SR, No FEC, MMF, Duplex LC | K20: 407-BCGJ | L20: DELL | P20: 407-PY7V9 | Q20: PY7V9
A21: L7N08 | B21: 8 | C21: OpzGigabit10Gbps CNA | D21: 153.19 | E21: L7N08 | F21: TS4L7-CNA10 | G21: 1 | H21: QLogic FastLinQ 41262 Dual Port 25Gb SFP28 Adapter, Low Profile + Optics | I21: QLogic FastLinQ 41262 Dual Port 25Gb SFP28 Adapter, Low Profile + Optics | J21: L7N08-OpzCNA10Gbps | K21: 540-BBYH | L21: DELL | M21: 1 | N21: 2 | O21: 3 | P21: 540-42H35 | Q21: 42H35
G22: 2 | H22: SFP+ SR Optic for all SFP+ | I22: SFP+ SR Optic for all SFP+ | K22: 407-BBOU | L22: DELL | P22: 407-4Y8DN | Q22: 4Y8DN
A23: L7N78 | B23: 8 | C23: OpzGigabit10Gbps CNA | D23: 153.19 | E23: L7N08b | F23: TS4L7-CNA10-L | G23: 1 | H23: QLogic 41262 Dual Port 25Gb SFP28 Adapter, Low Profile + Optics | I23: QLogic 41262 Dual Port 25Gb SFP28 Adapter, Low Profile + Optics | J23: L7N08-OpzCNA10GbpsLP | K23: 540-BBZM | L23: DELL | M23: 4 | P23: 540-01CN1 | Q23: 01CN1
G24: 2 | H24: Dell Networking, Transceiver, SFP+, 10GbE, SR, 850nm Wavelength, 300m Reach - Kit | I24: Dell Networking, Transceiver, SFP+, 10GbE, SR, 850nm Wavelength, 300m Reach - Kit | K24: 407-BBOU | L24: DELL | P24: 407-4Y8DN | Q24: 4Y8DN
A25: L7N09 | B25: 9 | C25: Opz10Gigabit BaseT | D25: 147.52 | E25: L7N09 | F25: TS4L7-BaseT-LP | G25: 1 | H25: Intel X710-T2L Dual Port 10GbE BASE-T Adapter, PCIe LP | I25: Intel X710-T2L Dual Port 10GbE BASE-T Adapter, PCIe LP | J25: L7N09-Opz-BaseT | K25: 540-BCSC | L25: DELL | M25: 1 | N25: 2 | O25: 3 | P25: 403-YH1DK | Q25: YH1DK
A26: L7N79 | B26: 9 | C26: Opz10Gigabit BaseT | D26: 147.52 | E26: L7N09b | F26: TS4L7- BaseT-L | G26: 1 | H26: Intel X710-T2L Dual Port 10GbE BASE-T, OCP NIC 3.0 | I26: Intel X710-T2L Dual Port 10GbE BASE-T, OCP NIC 3.0 | J26: L7N79-Opz-BaseT | K26: 540-BCRS | L26: DELL | M26: 4 | P26: 403-P0TRP | Q26: P0TRP
A27: L7N10 | B27: 10 | C27: Opz100Gbit | D27: 811.34 | E27: L7N10 | F27: TS4L7- Opz100Gbit | G27: 1 | H27: Intel E810 Dual Port 100GbE QSFP28 Adapter, PCIe Low Profile + Optics | I27: Intel E810 Dual Port 100GbE QSFP28 Adapter, PCIe Low Profile + Optics | J27: L7N10-Opz100Gbit | K27: 540-BDDX | L27: DELL | M27: 4 | P27: 403-P0TRP | Q27: P0TRP
G28: 1 | H28: Dell EMC PowerEdge QSFP28 SR4 100GbE 85C optic | I28: Dell EMC PowerEdge QSFP28 SR4 100GbE 85C optic | K28: 407-BCEQ | L28: DELL | M28: 4 | P28: 403-P0TRP | Q28: P0TRP
A29: L7N11 | B29: 11 | C29: OpzFibreChannel | D29: 425.36 | E29: L7N11 | F29: TS4L7- FibreChannel | G29: 1 | H29: QLogic 2772 Dual Port 32GbE Fibre Channel HBA, PCIe Low Profile+ Optics | I29: QLogic 2772 Dual Port 32GbE Fibre Channel HBA, PCIe Low Profile+ Optics | J29: L7N11-OpzFibreChannel | K29: 540-BDHC | L29: DELL | M29: 4 | P29: 403-P0TRP | Q29: P0TRP
A30: L7N12 | B30: 12 | C30: OpzHDD2TB | D30: 205.39 | E30: L7N12 | F30: TS4L7-HDD2TB | G30: 1 | H30: 2.4TB 10k SAS ISE 12Gbps | I30: 2.4TB 10K RPM SAS ISE 12Gbps 512e 2.5in Hot-plug Hard Drive | J30: L7N10-OpzHDD2TB | K30: 400-AVEZ | L30: DELL | P30: 400-HTMGW | Q30: HTMGW
A31: L7N13 | B31: 13 | C31: OpzHDD1TB | D31: 89.16 | E31: L7N13 | F31: TS4L7-HDD1TB | G31: 1 | H31: 1.2TB 10K RPM SAS ISE 12Gbps | I31: 1.2TB 10K RPM SAS ISE 12Gbps 512n 2.5in Hot-plug Hard Drive | J31: L7N11-OpzHDD1TB | K31: 400-AVFE | L31: DELL | P31: 400-400-ATJL | Q31: 400-ATJL
A32: L7N14 | B32: 14 | C32: OpzSSD-RI3,8TB | D32: 1010.45 | E32: L7N14 | F32: TS4L7-SSD-RI3,8TB | G32: 1 | H32: 3.84TB SSD SAS ISE RI 12Gbps | I32: 3.84TB SSD SAS ISE RI 12Gbps 512e 2.5in PM6 Hot-Plug 1 DWPD | J32: L7N12-OpzHDD300GB | K32: 345-BCNU | L32: DELL | P32: 400-PDNT1 | Q32: PDNT1
A33: L7N15 | B33: 15 | C33: OpzGPU | D33: 6264.37 | E33: L7N15 | F33: TS4L7-GPU | G33: 1 | H33: AMD MI100,300W PCIe, 32GB Passive, Double Wide, GPU | I33: AMD MI100,300W PCIe, 32GB Passive, Double Wide, GPU | J33: L7N15-GPU | K33: 470-AEFO | L33: DELL
A34: L7N16 | B34: 16 | C34: OpzSSD-RI1,6TB | D34: 499.28 | E34: L7N16 | F34: TS4L7-SSD-RI1,6TB | G34: 1 | H34: 1.92TB SSD SAS ISE RI 12Gbps | I34: 1.92TB SSD SAS ISE RI 12Gbps 512e 2.5in Hot-Plug 1 DWPD | J34: L7N13-OpzSSD-RI1,6TB | K34: 345-BBVC | L34: DELL | P34: 400-2H59H | Q34: 2H59H
A35: L7N17 | B35: 17 | C35: OpzSSD-MU1,6TB | D35: 473.08 | E35: L7N17 | F35: TS4L7-SSD-MU1,6TB | G35: 1 | H35: 1.6TB SSD SAS ISE MU 12Gbp | I35: 1.6TB SSD SAS ISE MU 12Gbps 512e 2.5in Hot-Plug PM6 3 DWPD | J35: L7N14-OpzSSD-MU1,6TB | K35: 400-AZOY | L35: DELL | P35: 400-CDPWY | Q35: CDPWY
A36: L7N18 | B36: 18 | C36: OpzSSD-RI800GB | D36: 283.68 | E36: L7N18 | F36: TS4L7-SSD-RI800GB | G36: 1 | H36: 960GB SSD SAS ISE RI 12Gbps | I36: 960GB SSD SAS ISE RI 12Gbps 512e 2.5in Hot-Plug 1 DWPD | J36: L7N15-OpzSSD-RI800GB | K36: 400-AXQU | L36: DELL | P36: 400-VPV60 | Q36: VPV60
A37: L7N19 | B37: 19 | C37: OpzSSD-MU800GB | D37: 295.03 | E37: L7N19 | F37: TS4L7-SSD-MU800GB | G37: 1 | H37: 800GB SSD SAS ISE Mix Use 12Gbps | I37: 800GB SSD SAS ISE Mix Use 12Gbps 512e 2.5in Hot-plug, 3 DWPD | J37: L7N16-OpzSSD-MU800GB | K37: 400-AZQO | L37: DELL | P37: 400-MW0DK | Q37: MW0DK
A38: L7N20 | B38: 20 | C38: OpzUps (3000VA) | D38: 386.02 | E38: L7N20 | F38: TS4L7-UPS | G38: 1 | H38: Dispositivo UPS di tipo On-line doppia conversione, strutturato per il montaggio a rack da 19” | I38: Dispositivo UPS di tipo On-line doppia conversione, strutturato per il montaggio a rack da 19” | J38: L7N19-OpzUps | K38: RPMM9/3K | P38: RPMMRPMM9/3K | Q38: RPMM9/3K
A40: L7N21 | B40: 21 | C40: OpzGUI | D40: 491.62 | E40: L7N21 | F40: TS4L7-GUI | G40: 1 | H40: Unità KVM - monitor 17", cavo combi PS/2&USB da 1,8mt, tastiera italiana, touch pad | I40: Unità KVM - monitor 17", cavo combi PS/2&USB da 1,8mt, tastiera italiana, touch pad | J40: L7N20-OpzGUI | K40: F9857N | P40: F985F9857N | Q40: F9857N
A41: L7N22 | B41: 22 | C41: OpzKVM | D41: 552.47 | E41: L7N22 | F41: TS4L7-KVM | G41: 1 | H41: KVM Switch IP per GUI 16P | I41: KVM Switch IP per GUI 16P | J41: L7N21-OpzKVM | K41: T9816NIP | P41: T981T9816NIP | Q41: T9816NIP
A42: L7N23 | B42: 23 | C42: OpzWinServSTD | D42: 816.77 | E42: L7N23 | F42: TS4L7-WINSRVSTD | G42: 1 | H42: Windows Server 2022,Standard,ROK,16CORE | I42: Windows Server 2022,Standard,ROK,16CORE | J42: L7N22-OpzWinServSTD | K42: 634-BYKR | L42: DELL | P42: 634-634-BSFX | Q42: 634-BSFX
A43: L7N24 | B43: 24 | C43: OpzDeviceCal | D43: 27.23 | E43: L7N24 | F43: TS4L7-WINDEVCAL | G43: 1 | H43: 1-pack of Windows Server 2022/2019 Device CALs (STD or DC) | I43: 1-pack of Windows Server 2022/2019 Device CALs (STD or DC) | J43: L7N23-OpzDeviceCal | K43: 634-BYLD | L43: DELL | P43: 623-623-BBCV | Q43: 623-BBCV
A44: L7N25 | B44: 25 | C44: OpzUserCal | D44: 37.45 | E44: L7N25 | F44: TS4L7-WINUSRCAL | G44: 1 | H44: 1-pack of Windows Server 2022/2019 User CALs (STD or DC) | I44: 1-pack of Windows Server 2022/2019 User CALs (STD or DC) | J44: L7N24-OpzUserCal | K44: 634-BYKZ | L44: DELL | P44: 623-623-BBCT | Q44: 623-BBCT
A45: L7N26 | B45: 26 | C45: OpzWinServSTD2core | D45: 92.94 | E45: L7N26 | F45: TS4L7-WINSRV2C | G45: 1 | H45: Windows Server 2022 Standard Edition, Add License,2CORE | I45: Windows Server 2022 Standard Edition, Add License,2CORE | J45: L7N25-OpzWinServSTD2core | K45: 634-BYKQ | L45: DELL | P45: 634-634-BSGS | Q45: 634-BSGS
A46: L7N27 | B46: 27 | C46: OpzOpenSource | D46: 37.12 | E46: L7N27 | F46: TS4L7-LINUX | G46: 1 | H46: Ubuntu Server 22.04 LTS 64 Bit | I46: Ubuntu Server 22.04 LTS 64 Bit | J46: L7N26-OpzOpenSource
A47: L7N28 | B47: 28 | C47: OpzHDDRetention36 | D47: 25.19 | E47: L7N28 | F47: TS4L7-HDRTN36 | G47: 1 | H47: Hard Disk Retention 36 mesi | I47: Hard Disk Retention 36 mesi | J47: L7N29-OpzHDDRetention60 | K47: 785-10921 | L47: DELL | M47: 1 | N47: 2 | O47: 3 | P47: 405-V5FKR | Q47: V5FKR
A48: L7N28b | B48: 28 | C48: OpzHDDRetention60 | D48: 41.81 | E48: L7N28 | F48: TS4L7-HDRTN60 | G48: 1 | H48: Hard Disk Retention 60 mesi | I48: Hard Disk Retention 60 mesi | J48: L7N29-OpzHDDRetention60 | K48: 785-10921 | L48: DELL | M48: 1 | N48: 2 | O48: 3 | P48: 405-V5FKR | Q48: V5FKR
A49: L7N29 | B49: 29 | C49: OpzEstensione24 | D49: 183.01 | E49: L7N29 | F49: TS4L7-OpzEst24 | G49: 1 | H49: Estensione della manutenzione in garanzia per ulteriori 24 mesi | I49: Estensione della manutenzione in garanzia per ulteriori 24 mesi | J49: L7N30-OpzEst24 | K49: P6142NCONSIP | P49: P614P6142NCONSIP | Q49: P6142NCONSIP
A50: L7N30 | B50: 30 | C50: OpzRack | D50: 579.63 | E50: L7N30 | F50: TS4L7-RACK | G50: 1 | H50: Armadio Rack 42U | I50: Armadio Rack 42U | J50: L7N29-OpzRack | K50: P6142NCONSIP | P50: P614P6142NCONSIP | Q50: P6142NCONSIP
A51: L7N31 | B51: 31 | C51: OpzEstensione24-GPU | D51: 115.54 | E51: L7N31 | F51: TS4L7-OpzEst24GPU | G51: 1 | H51: Estensione della manutenzione GPU in garanzia per ulteriori 24 mesi | I51: Estensione della manutenzione GPU in garanzia per ulteriori 24 mesi | J51: L7N31 - OpzEstensione24-GPU | K51: P6142NCONSIP | P51: P614P6142NCONSIP | Q51: P6142NCONSIP
A52: L7N31 | B52: 31 | D52: 334 | E52: L7N31 | F52: TS4L7-57416-L | G52: 1 | H52: Broadcom 57416 Dual Port 10Gb, Base-T, PCIe Adapter, Low Profile | I52: Broadcom 57416 Dual Port 10Gb, Base-T, PCIe Adapter, Low Profile | J52: TS4-OpzA205741L | K52: 540-BBVM | L52: DELL | M52: 4 | P52: 540-MT69G | Q52: MT69G
A53: L7N32 | B53: 32 | E53: L7N32 | F53: TS4L7-BOSS240 | G53: 1 | H53: BOSS controller card, full height, with 2 240G M.2 Drives | I53: BOSS controller card, full height, with 2 240G M.2 Drives | K53: 403-BBVQ | L53: DELL | M53: 1 | N53: 2 | O53: 3 | P53: 403-4FXXT | Q53: 4FXXT
G54: 2 | H54: Dell 240GB SSD M.2 SATA 6Gbps Drive | I54: Dell 240GB SSD M.2 SATA 6Gbps Drive | K54: 400-ASDQ | L54: DELL | P54: 400-4GWX0 | Q54: 4GWX0
A55: L7N33 | B55: 33 | D55: 748 | E55: L7N33 | F55: TS4L7-BOSS480 | G55: 1 | H55: BOSS controller card, full height, with 2 480G M.2 Drives | I55: BOSS controller card, full height, with 2 480G M.2 Drives | J55: TS4-OpzA20B480G | K55: 403-BBVQ | L55: DELL | M55: 1 | N55: 2 | O55: 3 | P55: 403-4FXXT | Q55: 4FXXT
G56: 2 | H56: Dell 480GB M.2 SSD SATA 512n 6Gbps S3520 | I56: Dell 480GB M.2 SSD SATA 512n 6Gbps S3520 | K56: 400-AVSS | L56: DELL | P56: 400-9NF27 | Q56: 9NF27
A57: L7N34 | B57: 34 | D57: 180 | E57: L7N34 | F57: TS4L7-HBA355i-L | G57: 1 | H57: HBA355i Controller Adapter, Front, Cust Kit | I57: HBA355i Controller Adapter, Front, Cust Kit | J57: TS4-OpzA20HBA3L | K57: 405-AANM | L57: DELL | M57: 4 | P57: 405-Y29HF | Q57: Y29HF
A58: L7N35 | B58: 35 | D58: 9999 | E58: L7N35 | F58: TS4L7-HBA330M | G58: 1 | H58: Customer Kit,Card,Controller,HBA330,Minicard | I58: Customer Kit,Card,Controller,HBA330,Minicard | K58: 405-AAJW | L58: DELL | M58: int | P58: 405-THN56 | Q58: THN56
A59: L7N36 | B59: 36 | D59: 299 | E59: L7N36 | F59: TS4L7-GPUSW | G59: 1 | H59: Kit upgrade chassies for Server GPU Single-Wide Ready | I59: Kit upgrade chassies for Server GPU Single-Wide Ready | J59: TS4-OpzA20GPUSW | K59: 490-BEIX | L59: DELL | P59: 490-JKFGX | Q59: JKFGX
A60: L7N37 | B60: 37 | D60: 0 | E60: L7N37 | F60: TS4L7-GPUDW | G60: 1 | H60: Kit upgrade chassies for Server GPU Double-Wide Ready | I60: Kit upgrade chassies for Server GPU Double-Wide Ready | J60: TS4-OpzA20GPUDW | K60: 490-BEIX | L60: DELL | P60: 490-JKFGX | Q60: JKFGX
A61: L7N105 | B61: 105 | D61: 0 | E61: L7N105 | F61: TS4L7_2cpuChassis | G61: 1 | H61: Kit upgrade chassies for 2 CPU | I61: Kit upgrade chassies for 2 CPU | J61: TS4-Opz2CPU | L61: DELL | P61: 490-JKFGX | Q61: JKFGX
A62: L7N38 | B62: 38 | D62: 0 | E62: L7N38 | F62: TS4L7-VSAN | G62: 1 | H62: Kit upgrade chassies for Server vSAN Ready | I62: Kit upgrade chassies for Server vSAN Ready | J62: TS4-OpzA20VSAN | L62: DELL
A63: L7N39 | B63: 39 | D63: 720 | E63: L7N39 | F63: TS4L7-CONX6SP | G63: 1 | H63: Mellanox ConnectX-6 Single Port HDR100 QSFP56 Infiniband FULL | I63: Mellanox ConnectX-6 Single Port HDR100 QSFP56 Infiniband FULL | J63: TS4-OpzA20CX6SP | K63: 540-BCMU | L63: DELL | M63: NO | P63: 540-DXMD8 | Q63: DXMD8
A64: L7N40 | B64: 40 | D64: 812 | E64: L7N40 | F64: TS4L7-CONX6DP | G64: 1 | H64: Mellanox ConnectX-6 DX Dual Port 100GbE QFSFP56 FULL | I64: Mellanox ConnectX-6 DX Dual Port 100GbE QFSFP56 FULL | J64: TS4-OpzA20CX6DP | K64: 540-BCXP | M64: NO | P64: 540-2RMCP | Q64: 2RMCP
A65: L7N41 | B65: 41 | D65: 342 | E65: L7N41 | F65: TS4L7-X710DP-L | G65: 1 | H65: Intel X710 Dual Port 10Gb SFP+ LOW | I65: Intel X710 Dual Port 10Gb SFP+ LOW | J65: TS4-OpzA20710DL | K65: 540-BBML | L65: Intel X710 adapters require firmware 19.0 or later to work with the SFP + SR Optic (Factory Installed SKU # 407-BCBE and Kit SKU 407-BCBN). | M65: 4 | P65: 540-VHNMC | Q65: VHNMC
A66: L7N42 | B66: 42 | D66: 342 | E66: L7N42 | F66: TS4L7-X710DP | G66: 1 | H66: Intel X710 Dual Port 10Gb SFP+ FULL | I66: Intel X710 Dual Port 10Gb SFP+ FULL | J66: TS4-OpzA20710D | K66: 540-BBIV | M66: 1 | N66: 2 | O66: 3 | P66: 540-6W1YC | Q66: 6W1YC
A67: L7N43 | B67: 43 | D67: 518 | E67: L7N43 | F67: TS4L7-X710QP | G67: 1 | H67: Intel X710 Quad Port 10Gb SFP+ FULL | I67: Intel X710 Quad Port 10Gb SFP+ FULL | J67: TS4-OpzA20710Q | K67: 540-BBIW | L67: Intel X710 adapters require firmware 19.0 or later to work with the SFP + SR Optic (Factory Installed SKU # 407-BCBE and Kit SKU 407-BCBN). | P67: 540-60WX8 | Q67: 60WX8
A68: L7N44 | B68: 44 | E68: L7N44 | G68: 1 | H68: PERC H745 Controller | I68: PERC H745 Controller | K68: 405-AAMX | L68: DELL | M68: 4 | P68: 405-39M19 | Q68: 39M19
A69: L7N45 | B69: 45 | E69: L7N45 | G69: 1 | H69: Customer Kit,Card,Controller,H740P,Minicard | I69: Customer Kit,Card,Controller,H740P,Minicard | K69: 405-AANL | L69: DELL | M69: int | P69: 405-4R84R | Q69: 4R84R
A70: L7N46 | B70: 46 | D70: 334 | E70: L7N46 | F70: TS4L7-57416 | G70: 1 | H70: Broadcom 57416 Dual Port 10Gb, Base-T, PCIe Adapter, Full Height | I70: Broadcom 57416 Dual Port 10Gb, Base-T, PCIe Adapter, Full Height | J70: TS4-OpzA2057416 | K70: 540-BBUO | L70: DELL | P70: 540-GRT2K | Q70: GRT2K
A71: L7N47 | B71: 47 | C71: Kit n. 1 Processore 8 Core base | D71: 99999 | E71: L7N47 | F71: TS4L7-SRV8CORE | G71: 1 | H71: Upgrade da Processore base a Processore 8 core | I71: Upgrade da Processore base a Processore 8 core | J71: TS4-OpzA20SRV8C | K71: 338-BTSX | L71: DELL | P71: 338-WP22J | Q71: WP22J
A72: L7N48 | B72: 48 | C72: Kit n. 1 Processore 8 Core aggiuntivo | D72: 99999 | E72: L7N48 | F72: TS4L7-CPU8CORE | G72: 1 | H72: Upgrade da Processore aggiuntivo a Processore 8 core | I72: Upgrade da Processore aggiuntivo a Processore 8 core | J72: TS4-OpzA20CPU8C | K72: 338-BTSX | L72: DELL | P72: 338-WP22J | Q72: WP22J
A73: L7N49 | B73: 49 | C73: OpzPSU2400W | D73: 0 | E73: L7N49 | F73: TS4L7-PSU2400W | G73: 1 | H73: Dual, Hot-Plug, Power Supply 2400W Redundant, D | I73: Dual, Hot-Plug, Power Supply 2400W Redundant, D | J73: TS4L7-PSU2400W | K73: 450-AJEV | L73: DELL | P73: 450-T4RTF | Q73: T4RTF
A74: L7N50 | B74: 50 | C74: OpzPSU2000W | D74: 306 | E74: L7N50 | F74: TS4L7-PSU2000W | G74: 1 | H74: Dual, Hot-plug Power Supply (1+1), 2000W in sostituzione di quelli in configurazione BASE | I74: Dual, Hot-plug Power Supply (1+1), 2000W in sostituzione di quelli in configurazione BASE | J74: TS4-OpzA202000W | K74: 450-AENT | L74: DELL | P74: 450-54WHW | Q74: 54WHW
A75: L7N51 | B75: 51 | C75: OpzSSD-RI3,84TB | D75: 1380 | E75: L7N51 | F75: TS4L7-RI3840GB | G75: 1 | H75: SSD 3,84TB SAS RI 12Gbps 2.5in Hot-plug, 1 DWPD | I75: SSD 3,84TB SAS RI 12Gbps 2.5in Hot-plug, 1 DWPD | J75: TS4-OpzA20RI384 | K75: 400-BBQZ | L75: DELL | P75: 400-64G77 | Q75: 64G77
A76: L7N52 | B76: 52 | C76: OpzSSD-RI7,68TB | D76: 2580 | E76: L7N52 | F76: TS4L7-RI7680GB | G76: 1 | H76: SSD 7,68TB VSAS RI 12Gbps 2.5in Hot-plug, 1 DWPD | I76: SSD 7,68TB VSAS RI 12Gbps 2.5in Hot-plug, 1 DWPD | J76: TS4-OpzA20RI768 | K76: 400-BFPF | L76: DELL | P76: 400-7HH3W | Q76: 7HH3W
A77: L7N53 | B77: 53 | C77: OpzSSD-WI800GB | D77: 1106 | E77: L7N53 | F77: TS4L7-WI800GB | G77: 1 | H77: 800GB SSD SAS Write Intensive 12Gbps 512e 2.5in Hot Plug Drive, PM5, 10 DWPD, 29200 TBW, CK | I77: 800GB SSD SAS Write Intensive 12Gbps 512e 2.5in Hot Plug Drive, PM5, 10 DWPD, 29200 TBW, CK | J77: TS4-OpzA20800WI | K77: 400-BDIL | L77: DELL | P77: 400-6P43P | Q77: 6P43P
A78: L7N54 | B78: 54 | C78: OpzSSD-WI1600GB | D78: 9999 | E78: L7N54 | F78: TS4L7-WI1600GB | G78: 1 | H78: 1.6TB SSD SAS Write Intensive 12Gbps 512e 2.5in Hot Plug PM5-M Dr, 10 DWPD, 29200 TBW, CK | I78: 1.6TB SSD SAS Write Intensive 12Gbps 512e 2.5in Hot Plug PM5-M Dr, 10 DWPD, 29200 TBW, CK | K78: 400-BDGY | L78: DELL | P78: 400-NHGRN | Q78: NHGRN
A79: L7N55 | B79: 55 | C79: OpzGPUT4 | D79: 2450 | E79: L7N55 | F79: TS4L7-TESLAT4 | G79: 1 | H79: NVIDIA TeslaT4 16GB GPU | I79: NVIDIA TeslaT4 16GB GPU | J79: TS4-OpzA20GPUT4 | K79: 490-BEYM | L79: DELL | P79: 490-F9PH5 | Q79: F9PH5
A80: L7N56 | B80: 56 | C80: OpzGPURTX6000 | D80: 4800 | E80: L7N56 | F80: TS4L7-RTX6000 | G80: 1 | H80: NVIDIA Quadro RTX 6000 24 GB, 250W, Dual Slot, GPU | I80: NVIDIA Quadro RTX 6000 24 GB, 250W, Dual Slot, GPU | J80: TS4-OpzA20GPU60 | K80: 490-BFRS | L80: DELL | P80: 490-VN574 | Q80: VN574
A81: L7N57 | B81: 57 | C81: OpzGPUM10 | D81: 2700 | E81: L7N57 | F81: TS4L7-TESLAM10 | G81: 1 | H81: NVIDIA Tesla M10 GPU | I81: NVIDIA Tesla M10 GPU | J81: TS4-OpzA20GPU10 | K81: 489-BBCJ | L81: DELL | P81: 489-409GF | Q81: 409GF
A82: L7N58 | B82: 58 | C82: OpzGPUV100S | D82: 10130 | E82: L7N58 | F82: TS4L7-V100S32G | G82: 1 | H82: NVIDIA Tesla V100S 32GB, 250W, Passive, Double Wide, GPU | I82: NVIDIA Tesla V100S 32GB, 250W, Passive, Double Wide, GPU | J82: TS4-OpzA20V100S | K82: 490-BFRT | L82: DELL | P82: 490-GH9J0 | Q82: GH9J0
A83: L7N59 | B83: 59 | C83: OpzWinServDC | D83: 4339 | E83: L7N59 | F83: TS4L7-WINDC | G83: 1 | H83: Windows Server 2019 Data Center, ROK, 16CORE | I83: Windows Server 2019 Data Center, ROK, 16CORE | J83: TS4-OpzA20WDC | K83: 634-BSGB | L83: DELL | P83: 634-634-BSGB | Q83: 634-BSGB
A84: L7N60 | B84: 60 | C84: OpzWinServDC2core | D84: 545 | E84: L7N60 | F84: TS4L7-WINDC2C | G84: 1 | H84: Windows Server 2019 Data Center, Additional License, 2CORE | I84: Windows Server 2019 Data Center, Additional License, 2CORE | J84: TS4-OpzA20WDC2C | K84: 634-BSGR | L84: DELL | P84: 634-634-BSGR | Q84: 634-BSGR
A85: L7N61 | B85: 61 | C85: OpzWinServDC16core | D85: 4336 | E85: L7N61 | F85: TS4L7-WINDC16C | G85: 1 | H85: MS2019 Datacenter Ed, Additional License, 16 CORE,NO MEDIA/KEY, Customer Kit | I85: MS2019 Datacenter Ed, Additional License, 16 CORE,NO MEDIA/KEY, Customer Kit | K85: 634-BSGT | L85: DELL | P85: 634-634-BSGT | Q85: 634-BSGT
A86: L7N62 | B86: 62 | C86: OpzRJ45 3m | D86: 3 | E86: L7N62 | F86: TS4L7-RJ453M | G86: 1 | H86: Cavo “patch” di 3 mt RJ45 certificato per gigabit ethernet | I86: Cavo “patch” di 3 mt RJ45 certificato per gigabit ethernet | J86: TS4-OpzA20RJ45
A87: L7N63 | B87: 63 | C87: OpzLINKX3m | D87: 9999 | E87: L7N63 | F87: TS4L7-MEL100M3 | G87: 1 | H87: Mellanox LinkX 100Gb/s Passive Copper Cables - attacco cavo diretto - 3 m - nero | I87: Mellanox LinkX 100Gb/s Passive Copper Cables - attacco cavo diretto - 3 m - nero | K87: AA407867 | L87: DELL | P87: AA40AA407867 | Q87: AA407867
A88: L7N64 | B88: 64 | C88: OpzLINKX10m | D88: 9999 | E88: L7N64 | F88: TS4L7-MEL100M10 | G88: 1 | H88: Mellanox LinkX 100Gb/s VCSEL-Based Active Optical Cables - cavo InfiniBand - 10 m | I88: Mellanox LinkX 100Gb/s VCSEL-Based Active Optical Cables - cavo InfiniBand - 10 m | K88: A8431034 | L88: DELL | P88: A843MFA1A00-E010 | Q88: MFA1A00-E010
A89: L7N65 | B89: 65 | C89: OpzQSFP28 | D89: 9999 | E89: L7N65 | F89: TS4L7-QSFP28 | G89: 1 | H89: Dell EMC PowerEdge QSFP28 SR4 100GbE 85C optic Customer Install | I89: Dell EMC PowerEdge QSFP28 SR4 100GbE 85C optic Customer Install | K89: 407-BCEX | L89: DELL | P89: 407-5M3CP | Q89: 5M3CP
A90: L7N66 | B90: 66 | C90: Opz10GBIC | D90: 90 | E90: L7N66 | F90: TS4L7-10GBIC | G90: 1 | H90: Transceiver, SFP+, 10GbE, SR, 850nm Wavelength, 300m Reach | I90: Transceiver, SFP+, 10GbE, SR, 850nm Wavelength, 300m Reach | K90: 407-BBOU | L90: DELL | P90: 407-RK0CX | Q90: RK0CX
A91: L7N67 | B91: 67 | C91: OpzDAC3M | D91: 9999 | E91: L7N67 | F91: TS4L7-DAC3M | G91: 1 | H91: Cable, SFP+ to SFP+, 10GbE, Copper Twinax Direct Attach Cable, 3 Meter | I91: Cable, SFP+ to SFP+, 10GbE, Copper Twinax Direct Attach Cable, 3 Meter | K91: 470-AAVJ | L91: DELL | P91: 470-4WM8D | Q91: 4WM8D
A92: L7N68 | B92: 68 | C92: OpzBezelLCD | D92: 63 | E92: L7N68 | F92: TS4L7-BZLLCD | G92: 1 | H92: PowerEdge 2U LCD Bezel | I92: PowerEdge 2U LCD Bezel | J92: TS4-OpzA20BZLCD | K92: 325-BCHW | L92: DELL | P92: 325-MPW3H | Q92: MPW3H
A93: L7N69 | B93: 69 | C93: OpzBezelSTD | D93: 42 | E93: L7N69 | F93: TS4L7-BZLSTD | G93: 1 | H93: PowerEdge 2U Standard Bezel | I93: PowerEdge 2U Standard Bezel | J93: TS4-OpzA20BZSTD | K93: 350-BBJW | L93: DELL | P93: 350-0V5VK | Q93: 0V5VK
A94: L7N70 | B94: 70 | C94: OpBOSS | D94: 134 | E94: L7N70 | F94: TS4L7-BOSS | G94: 1 | H94: BOSS-S2 controller card without cable | I94: BOSS-S2 controller card without cable | J94: TS4-OpzBOSS | K94: 403-BCMD | L94: DELL | P94: 385-NYT1H | Q94: NYT1H
G95: 1 | H95: Cables & mechanical part for BOSS S2, R7525 | I95: Cables & mechanical part for BOSS S2, R7525 | K95: 403-BCNS | L95: DELL | P95: 385-YYC3N | Q95: YYC3N
G96: 1 | H96: Rear x4 Cables & mechanical part for BOSS S2, R7525 | I96: Rear x4 Cables & mechanical part for BOSS S2, R7525 | K96: 403-BCQC | L96: DELL
G97: 2 | H97: 480GB,2E,IT06,M.2 Single Stick | I97: 480GB,2E,IT06,M.2 Single Stick | K97: 400-BLCK | L97: DELL
A98: L7N71 | B98: 71 | C98: OpzH840 | D98: 479 | E98: L7N71 | F98: TS4L7-H840 | G98: 1 | H98: PERC H840 RAID Adapter for External MD14XX Only, 8GB NV Cache, Full Height | I98: PERC H840 RAID Adapter for External MD14XX Only, 8GB NV Cache, Full Height | J98: TS4-OpzA20H840 | K98: 405-AAMZ | L98: DELL
A99: L7N72 | B99: 72 | D99: 16549 | E99: L7N72 | F99: TS4L7-VS7STD6AK | G99: 1 | H99: VMware vSphere 7 Standard Acceleration Kit OEM for 6 CPU, 3YR License and Maintenance | I99: VMware vSphere 7 Standard Acceleration Kit OEM for 6 CPU, 3YR License and Maintenance | J99: TS4-OpzA20VMW01 | L99: DELL
A100: L7N73 | B100: 73 | D100: 1557 | E100: L7N73 | F100: TS4L7-VS7STD | G100: 1 | H100: VMware vSphere 7 Standard OEM, 1 CPU (max 32 cores/CPU socket), 3YR License and Maintenance | I100: VMware vSphere 7 Standard OEM, 1 CPU (max 32 cores/CPU socket), 3YR License and Maintenance | J100: TS4-OpzA20VMW02 | L100: DELL
A101: L7N74 | B101: 74 | D101: 34860 | E101: L7N74 | F101: TS4L7-VS7EPL6AK | G101: 1 | H101: VMware vSphere 7 Enterprise Plus Acceleration Kit OEM for 6 CPU, 3YR License and Maintenance | I101: VMware vSphere 7 Enterprise Plus Acceleration Kit OEM for 6 CPU, 3YR License and Maintenance | J101: TS4-OpzA20VMW03 | L101: DELL
A102: L7N80 | B102: 75 | D102: 4576 | E102: L7N80 | F102: TS4L7-VS7EPL | G102: 1 | H102: VMware vSphere 7 Enterprise Plus OEM, 1 CPU (max 32 cores/CPU socket), 3YR License and Maintenance | I102: VMware vSphere 7 Enterprise Plus OEM, 1 CPU (max 32 cores/CPU socket), 3YR License and Maintenance | J102: TS4-OpzA20VMW04 | L102: DELL
A103: L7N81 | B103: 76 | D103: 7860 | E103: L7N81 | F103: TS4L7-VCS7STD | G103: 1 | H103: VMware vCenter 7 Standard OEM ,Per Instance,3YR License and Maintenance | I103: VMware vCenter 7 Standard OEM ,Per Instance,3YR License and Maintenance | J103: TS4-OpzA20VMW05
A104: L7N82 | B104: 77 | D104: 7196 | E104: L7N82 | F104: TS4L7-ST7ENT | G104: 1 | H104: VMware vSAN 7 Enterprise OEM, 1 CPU (max 32 cores/CPU socket), 3YR License and Maintenance | I104: VMware vSAN 7 Enterprise OEM, 1 CPU (max 32 cores/CPU socket), 3YR License and Maintenance | J104: TS4-OpzA20VMW06
A105: L7N83 | B105: 78 | D105: 5028 | E105: L7N83 | F105: TS4L7-HZ8ADC10 | G105: 1 | H105: VMware Horizon 8 Advanced OEM,10 Pack,CCU, 3YR License and Maintenance | I105: VMware Horizon 8 Advanced OEM,10 Pack,CCU, 3YR License and Maintenance | J105: TS4-OpzA20VMW07
A106: L7N84 | B106: 79 | D106: 7116 | E106: L7N84 | F106: TS4L7-HZ8ENC10 | G106: 1 | H106: VMware Horizon 8 Enterprise OEM,10 Pack,CCU, 3YR License and Maintenance | I106: VMware Horizon 8 Enterprise OEM,10 Pack,CCU, 3YR License and Maintenance | J106: TS4-OpzA20VMW08
A107: L7N85 | B107: 80 | D107: 3089 | E107: L7N85 | F107: TS4L7-HZ8ADN10 | G107: 1 | H107: VMware Horizon Advanced OEM, 10 Pack, Named User, 3YR License and Maintenance | I107: VMware Horizon Advanced OEM, 10 Pack, Named User, 3YR License and Maintenance | J107: TS4-OpzA20VMW09
A108: L7N86 | B108: 81 | D108: 4398 | E108: L7N86 | F108: TS4L7-HZ8ENN10 | G108: 1 | H108: VMware Horizon 8 Enterprise OEM,10 Pack, Named User, 3YR License and Maintenance | I108: VMware Horizon 8 Enterprise OEM,10 Pack, Named User, 3YR License and Maintenance | J108: TS4-OpzA20VMW10
A109: L7N87 | B109: 82 | D109: 2727 | E109: L7N87 | F109: TS4L7-Encl13Y4H | G109: 1 | H109: Enclosure SAS 12 Slot 3.5", 3YR ProSupport and 4hr Mission Critical | I109: Enclosure SAS 12 Slot 3.5", 3YR ProSupport and 4hr Mission Critical | J109: TS4-OpzA20E13Y4
A110: L7N88 | B110: 83 | D110: 2827 | E110: L7N88 | F110: TS4L7-Encl25Y4H | G110: 1 | H110: Enclosure SAS 12 Slot 3.5", 5YR ProSupport and 4hr Mission Critical | I110: Enclosure SAS 12 Slot 3.5", 5YR ProSupport and 4hr Mission Critical | J110: TS4-OpzA20E25Y4
A111: L7N89 | B111: 84 | D111: 2653 | E111: L7N89 | F111: TS4L7-RACKM32A | G111: 1 | H111: Armadio Rack 42U 600x1200, 2 x PDU Monofase 2G, ZeroU, 32A, 230V, (36) C13 & (6) C19 | I111: Armadio Rack 42U 600x1200, 2 x PDU Monofase 2G, ZeroU, 32A, 230V, (36) C13 & (6) C19 | J111: TS4-OpzA20RAPCM
A112: L7N90 | B112: 85 | D112: 4311 | E112: L7N90 | F112: TS4L7-RACKT32A | G112: 1 | H112: Armadio Rack 42U 600x1200, 2 x PDU Trifase 2G, ZeroU, 22.0kW(32A) 17.3kW(24A), 230V, (30) C13 & (12) C19 | I112: Armadio Rack 42U 600x1200, 2 x PDU Trifase 2G, ZeroU, 22.0kW(32A) 17.3kW(24A), 230V, (30) C13 & (12) C19 | J112: TS4-OpzA20RAPCT
A113: L7N91 | B113: 86 | D113: 84 | E113: L7N91 | F113: TS4L7-DAC3SFP | G113: 1 | H113: Dell Networking, Cable, SFP+ to SFP+, 10GbE, Copper Twinax Direct Attach Cable, 3 Meter | I113: Dell Networking, Cable, SFP+ to SFP+, 10GbE, Copper Twinax Direct Attach Cable, 3 Meter | J113: TS4-OpzA20DAC3S
A114: L7N92 | B114: 87 | D114: 258 | E114: L7N92 | F114: TS4L7-MLX100M3 | G114: 1 | H114: Mellanox LinkX 100Gb/s Passive Copper DAC 3m per scheda TS4L7-CONX6DP | I114: Mellanox LinkX 100Gb/s Passive Copper DAC 3m per scheda TS4L7-CONX6DP | J114: TS4-OpzA20ML100
A115: L7N93 | B115: 88 | D115: 99 | E115: L7N93 | F115: TS4L7-DAC3SFP28 | G115: 1 | H115: Dell Cable SFP28 to SFP28 25GbE Passive Copper Twinax Direct Attach Cable 3 Meter | I115: Dell Cable SFP28 to SFP28 25GbE Passive Copper Twinax Direct Attach Cable 3 Meter | J115: TS4-OpzA20DAC28
A116: L7N94 | B116: 89 | D116: 419 | E116: L7N94 | F116: TS4L7-MCX4DP | G116: 1 | H116: Mellanox ConnectX-4 Lx Dual Port 25GbE SFP28 Network Adapter, PCIe Full Height, 2 x SFP28 SR Optic, 25GbE | I116: Mellanox ConnectX-4 Lx Dual Port 25GbE SFP28 Network Adapter, PCIe Full Height, 2 x SFP28 SR Optic, 25GbE | J116: TS4-OpzA20MCX4F
A117: L7N95 | B117: 90 | D117: 419 | E117: L7N95 | F117: TS4L7-MCX4DP-L | G117: 1 | H117: Mellanox ConnectX-4 Lx Dual Port 25GbE SFP28 Network Adapter, Low Profile, 2 x SFP28 SR Optic, 25GbE | I117: Mellanox ConnectX-4 Lx Dual Port 25GbE SFP28 Network Adapter, Low Profile, 2 x SFP28 SR Optic, 25GbE | J117: TS4-OpzA20MCX4L
A118: L7N96 | B118: 91 | D118: 214 | E118: L7N96 | F118: TS4L7-OMEA | G118: 1 | H118: OpenManage Enterprise Advanced | I118: OpenManage Enterprise Advanced | J118: TS4-OpzA20OMEA
A119: L7N97 | B119: 97 | D119: 0 | E119: L7N97 | F119: TS4L7-NVME | G119: 1 | H119: Kit upgrade chassies for Server nVME | I119: Kit upgrade chassies for Server nVME | J119: TS4-OpzA20NVME | K119: 330-BBLV | L119: DELL
A120: L7N98 | B120: 98 | D120: 3027 | E120: L7N98 | F120: TS4L7-Encl33Y4H | G120: 1 | H120: Enclosure SAS 24 Slot 2.5", 3YR ProSupport and 4hr Mission Critical | I120: Enclosure SAS 24 Slot 2.5", 3YR ProSupport and 4hr Mission Critical | J120: TS4-OpzA20E33Y4 | K120: 210-ADBP | L120: DELL
A121: L7N99 | B121: 99 | D121: 3327 | E121: L7N99 | F121: TS4L7-EncL75Y4H | G121: 1 | H121: Enclosure SAS 24 Slot 2.5", 5YR ProSupport and 4hr Mission Critical | I121: Enclosure SAS 24 Slot 2.5", 5YR ProSupport and 4hr Mission Critical | J121: TS4-OpzA20E45Y4 | K121: 210-ADBP | L121: DELL
A122: L7N100 | B122: 100 | D122: 92 | E122: L7N100 | F122: TS4L7-SAS12-L | G122: 1 | H122: SAS 12Gbps HBA External Controller, Low Profile | I122: SAS 12Gbps HBA External Controller, Low Profile | J122: TS4-OpzA20SAS12L | K122: 405-AAES | L122: DELL
A123: L7N101 | B123: 101 | D123: 92 | E123: L7N101 | F123: TS4L7-SAS12 | G123: 1 | H123: SAS 12Gbps HBA External Controller, Full Height | I123: SAS 12Gbps HBA External Controller, Full Height | J123: TS4-OpzA20SAS12 | K123: 405-AADZ | L123: DELL
A124: L7N102 | B124: 102 | D124: 479 | E124: L7N102 | F124: TS4L7-H840-L | G124: 1 | H124: PERC H840 RAID Adapter, Low Profile for External Enclosure | I124: PERC H840 RAID Adapter, Low Profile for External Enclosure | J124: TS4-OpzA20H840L | K124: 405-AANN | L124: DELL
A125: L7N103 | B125: 103 | D125: 494 | E125: L7N103 | F125: TS4L7-ED16TB | G125: 1 | H125: HDD 16TB SAS 12Gbps 7k 3.5in Hot-Plug per Enclosure 3.5" | I125: HDD 16TB SAS 12Gbps 7k 3.5in Hot-Plug per Enclosure 3.5" | J125: TS4-OpzA20ED16TB | K125: 400-BJKO | L125: DELL
A126: L7N104 | B126: 104 | D126: 443 | E126: L7N104 | F126: TS4L7-ED12TB | G126: 1 | H126: HDD 12TB SAS 12Gbps 7k 3.5in Hot-Plug per Enclosure 3.5" | I126: HDD 12TB SAS 12Gbps 7k 3.5in Hot-Plug per Enclosure 3.5" | J126: TS4-OpzA20ED12TB | K126: 400-AXLG | L126: DELL
A127: L7N105 | B127: 105 | D127: 281 | E127: L7N105 | F127: TS4L7-ED08TB | G127: 1 | H127: HDD 8TB SAS 12Gbps 7k 3.5in Hot-Plug per Enclosure 3.5" | I127: HDD 8TB SAS 12Gbps 7k 3.5in Hot-Plug per Enclosure 3.5" | J127: TS4-OpzA20ED8TB | K127: 400-BLCE | L127: DELL
A128: L7N106 | B128: 106 | D128: 226 | E128: L7N106 | F128: TS4L7-ED2TB | G128: 1 | H128: HDD 2400GB 10K SAS 12Gbps 2.5in Hot-plug per Enclosure 2.5" | I128: HDD 2400GB 10K SAS 12Gbps 2.5in Hot-plug per Enclosure 2.5" | J128: L2N05-OpzHDD2TB | K128: 400-AUQX | L128: DELL
A129: L7N107 | B129: 107 | D129: 727 | E129: L7N107 | F129: TS4L2-EDRI800 | G129: 1 | H129: SSD 960GB SAS RI 12Gbps 2.5in Hot-plug, 1 DWPD per Enclosure 2.5" | I129: SSD 960GB SAS RI 12Gbps 2.5in Hot-plug, 1 DWPD per Enclosure 2.5" | J129: L2N08-OpzSSD-RI800GB | K129: 400-BBOU | L129: DELL
A130: L7N108 | B130: 108 | D130: 10130 | E130: L7N108 | F130: TS4L7-A100 | G130: 1 | H130: NVIDIA Ampere A100, PCIe, 250W , 40GB Passive, Double Wide, Full Height GPU | I130: NVIDIA Ampere A100, PCIe, 250W , 40GB Passive, Double Wide, Full Height GPU | J130: TS4-OpzA20A100 | K130: 490-BGFV | L130: DELL
A131: L7N109 | B131: 109 | D131: 126 | E131: L7N109 | F131: TS4L7-OT10GB | G131: 1 | H131: SFP+ SR Optic for SFP+ ports (Intel X710) | I131: SFP+ SR Optic for SFP+ ports (Intel X710) | J131: TS4-OpzA20O10GB | K131: 407-BCBN | L131: DELL
A132: L7N110 | B132: 110 | D132: 8.66 | E132: L7N110 | F132: TS4L7-VAPPS1Y | G132: 1 | H132: NVIDIA vApps Subscription License 1 Year, 1 CCU | I132: NVIDIA vApps Subscription License 1 Year, 1 CCU | J132: TS4-OpzA20NVIDIA1 | K132: A9923501 | L132: DELL
A133: L7N111 | B133: 111 | D133: 25.98 | E133: L7N111 | F133: TS4L7-VAPPS3Y | G133: 1 | H133: NVIDIA vApps Subscription License 3 Years, 1 CCU | I133: NVIDIA vApps Subscription License 3 Years, 1 CCU | J133: TS4-OpzA20NVIDIA2 | K133: A9923502 | L133: DELL
A134: L7N112 | B134: 112 | D134: 43.3 | E134: L7N112 | F134: TS4L7-VAPPS5Y | G134: 1 | H134: NVIDIA vApps Subscription License 5 Years, 1 CCU | I134: NVIDIA vApps Subscription License 5 Years, 1 CCU | J134: TS4-OpzA20NVIDIA3 | K134: AA121477 | L134: DELL
A135: L7N113 | B135: 113 | D135: 43.3 | E135: L7N113 | F135: TS4L7-VPC1Y | G135: 1 | H135: NVIDIA vPC Subscription License 1 Year, 1 CCU | I135: NVIDIA vPC Subscription License 1 Year, 1 CCU | J135: TS4-OpzA20NVIDIA4 | K135: A9923507 | L135: DELL
A136: L7N114 | B136: 114 | D136: 129.91 | E136: L7N114 | F136: TS4L7-VPC3Y | G136: 1 | H136: NVIDIA vPC Subscription License 3 Years, 1 CCU | I136: NVIDIA vPC Subscription License 3 Years, 1 CCU | J136: TS4-OpzA20NVIDIA5 | K136: A9923508 | L136: DELL
A137: L7N115 | B137: 115 | D137: 173.2 | E137: L7N115 | F137: TS4L7-VPC5Y | G137: 1 | H137: NVIDIA vPC Subscription License 5 Years, 1 CCU | I137: NVIDIA vPC Subscription License 5 Years, 1 CCU | J137: TS4-OpzA20NVIDIA6 | K137: AA121478 | L137: DELL
A138: L7N116 | B138: 116 | D138: 210.13 | E138: L7N116 | F138: TS4L7-VWS1Y | G138: 1 | H138: NVIDIA RTX vWS Subscription License 1 Year, 1 CCU | I138: NVIDIA RTX vWS Subscription License 1 Year, 1 CCU | J138: TS4-OpzA20NVIDIA7 | K138: A9923513 | L138: DELL
A139: L7N117 | B139: 117 | D139: 649.5 | E139: L7N117 | F139: TS4L7-VWS3Y | G139: 1 | H139: NVIDIA RTX vWS Subscription License 3 Years, 1 CCU | I139: NVIDIA RTX vWS Subscription License 3 Years, 1 CCU | J139: TS4-OpzA20NVIDIA8 | K139: A9923514 | L139: DELL
A140: L7N118 | B140: 118 | D140: 1082.51 | E140: L7N118 | F140: TS4L7-VWS5Y | G140: 1 | H140: NVIDIA RTX vWS Subscription License 5 Years, 1 CCU | I140: NVIDIA RTX vWS Subscription License 5 Years, 1 CCU | J140: TS4-OpzA20NVIDIA9 | K140: AA121476 | L140: DELL
A141: L7N119 | B141: 119 | D141: 129.91 | E141: L7N119 | F141: TS4L7-VCS1Y | G141: 1 | H141: NVIDIA Virtual Compute Server Subscription, 1 GPU (Max 8 CC VMs), 1 Year | I141: NVIDIA Virtual Compute Server Subscription, 1 GPU (Max 8 CC VMs), 1 Year | J141: TS4-OpzA20NVIDIA10 | K141: AA731569 | L141: DELL
A142: L7N120 | B142: 120 | D142: 378.25 | E142: L7N120 | F142: TS4L7-VCS3Y | G142: 1 | H142: NVIDIA Virtual Compute Server Subscription, 1 GPU (Max 8 CC VMs), 3 Years | I142: NVIDIA Virtual Compute Server Subscription, 1 GPU (Max 8 CC VMs), 3 Years | J142: TS4-OpzA20NVIDIA11 | K142: AB229530 | L142: DELL
A143: L7N121 | B143: 121 | D143: 630.41 | E143: L7N121 | F143: TS4L7-VCS5Y | G143: 1 | H143: NVIDIA Virtual Compute Server Subscription, 1 GPU (Max 8 CC VMs), 5 Years | I143: NVIDIA Virtual Compute Server Subscription, 1 GPU (Max 8 CC VMs), 5 Years | J143: TS4-OpzA20NVIDIA12 | K143: AB229531 | L143: DELL
A144: L7N122 | B144: 122 | D144: 36.56 | E144: L7N122 | F144: TS4L7-VAPPS-P4Y | G144: 1 | H144: NVIDIA vApps Bundle Perpetual License Plus 4yr vApps SUMS, 1CCU | I144: NVIDIA vApps Bundle Perpetual License Plus 4yr vApps SUMS, 1CCU | J144: TS4-OpzA20NVIDIA13 | K144: AA787756 | L144: DELL
A145: L7N123 | B145: 123 | D145: 41.37 | E145: L7N123 | F145: TS4L7-VAPPS-P5Y | G145: 1 | H145: NVIDIA vApps Bundle Perpetual License Plus 5yr vApps SUMS, 1CCU | I145: NVIDIA vApps Bundle Perpetual License Plus 5yr vApps SUMS, 1CCU | J145: TS4-OpzA20NVIDIA14 | K145: AA787759 | L145: DELL
A146: L7N124 | B146: 124 | D146: 182.82 | E146: L7N124 | F146: TS4L7-VPC-P4Y | G146: 1 | H146: NVIDIA vPC Bundle Perpetual License Plus 4yr vPC SUMS, 1CCU | I146: NVIDIA vPC Bundle Perpetual License Plus 4yr vPC SUMS, 1CCU | J146: TS4-OpzA20NVIDIA15 | K146: AA787765 | L146: DELL
A147: L7N125 | B147: 125 | D147: 206.87 | E147: L7N125 | F147: TS4L7-VPC-P5Y | G147: 1 | H147: NVIDIA vPC Bundle Perpetual License Plus 5yr vPC SUMS, 1CCU | I147: NVIDIA vPC Bundle Perpetual License Plus 5yr vPC SUMS, 1CCU | J147: TS4-OpzA20NVIDIA16 | K147: AA787768 | L147: DELL
A148: L7N126 | B148: 126 | D148: 774.6 | E148: L7N126 | F148: TS4L7-VWS-P4Y | G148: 1 | H148: NVIDIA RTX vWS Bundle Perpetual License Plus 4yr RTX vWS SUMS, 1CCU | I148: NVIDIA RTX vWS Bundle Perpetual License Plus 4yr RTX vWS SUMS, 1CCU | J148: TS4-OpzA20NVIDIA17 | K148: AA787774 | L148: DELL
A149: L7N127 | B149: 127 | D149: 870.81 | E149: L7N127 | F149: TS4L7-VWS-P5Y | G149: 1 | H149: NVIDIA RTX vWS Bundle Perpetual License Plus 5yr RTX vWS SUMS, 1CCU | I149: NVIDIA RTX vWS Bundle Perpetual License Plus 5yr RTX vWS SUMS, 1CCU | J149: TS4-OpzA20NVIDIA18 | K149: AA787777 | L149: DELL
A150: L7N128 | B150: 128 | D150: 1 | E150: L7N128 | F150: TS4L7-VWSUPG4Y | G150: 1 | H150: NVIDIA vPC to NVIDIA RTX vWS Upgrade 4 year SUMS Bundle | I150: NVIDIA vPC to NVIDIA RTX vWS Upgrade 4 year SUMS Bundle | J150: TS4-OpzA20NVIDIA19 | K150: AB284633 | L150: DELL
A151: L7N129 | B151: 129 | D151: 1 | E151: L7N129 | F151: TS4L7-VWSUPG5Y | G151: 1 | H151: NVIDIA vPC to NVIDIA RTX vWS Upgrade 5 year SUMS Bundle | I151: NVIDIA vPC to NVIDIA RTX vWS Upgrade 5 year SUMS Bundle | J151: TS4-OpzA20NVIDIA20 | K151: AB284636 | L151: DELL
A152: L7N130 | B152: 130 | D152: 69 | E152: L7N130 | F152: TS4L7-OM4M3 | G152: 1 | H152: Dell Networking Cable, OM4 LC/LC Fiber Cable, 3 Meter | I152: Dell Networking Cable, OM4 LC/LC Fiber Cable, 3 Meter | J152: TS4L7-OM4M3 | L152: DELL
A153: L7N131 | B153: 131 | D153: 12460 | E153: L7N131 | F153: TS4L7-A10080GB | G153: 1 | H153: NVIDIA Ampere A100, PCIe, 300W, 80GB Passive, Double Wide, Full Height GPU | I153: NVIDIA Ampere A100, PCIe, 300W, 80GB Passive, Double Wide, Full Height GPU | J153: TS4-OpzA20A10080 | K153: 490-BHBK | L153: DELL
A154: L7N132 | B154: 132 | D154: 1269 | E154: L7N132 | F154: TS4L7-GPUA2 | G154: 1 | H154: NVIDIA Ampere A2, PCIe, 60W, 16GB Passive, Single Wide, Full Height GPU | I154: NVIDIA Ampere A2, PCIe, 60W, 16GB Passive, Single Wide, Full Height GPU | J154: TS4-OpzA20A2 | K154: 490-BHMC | L154: DELL
A155: L7N133 | B155: 133 | D155: 4657 | E155: L7N133 | F155: TS4L7-GPUA30 | G155: 1 | H155: NVIDIA Ampere A30, PCIe, 165W, 24GB Passive, Double Wide, Full Height GPU | I155: NVIDIA Ampere A30, PCIe, 165W, 24GB Passive, Double Wide, Full Height GPU | J155: TS4-OpzA20A30 | K155: 490-BGUS | L155: DELL
A156: L7N134 | B156: 134 | D156: 3394 | E156: L7N134 | F156: TS4L7-GPUA16 | G156: 1 | H156: NVIDIA Ampere A16, PCIe, 250W, 64GB Passive, Double Wide, Full Height GPU | I156: NVIDIA Ampere A16, PCIe, 250W, 64GB Passive, Double Wide, Full Height GPU | J156: TS4-OpzA20A16 | K156: 490-BHES | L156: DELL
A157: L7N135 | B157: 135 | D157: 50 | E157: L7N135 | F157: TS4L7-CMA2U | G157: 1 | H157: 2U Cable Management Arm | I157: 2U Cable Management Arm | J157: TS4-OpzA20CMA2U | K157: 770-BBIP | L157: DELL
